{"text_format":"3","workbook":"xlsx","n_sheets":15,"sheets":["Осы үлгіні пайдалану жолы","Оқушылар тізімі","Тамыз","Қыркүйек","Қазан","Қараша","Желтоқсан","Қаңтар","Ақпан","Наурыз","Сәуір","Мамыр","Маусым","Шілде","Оқушының қатысуы туралы есеп"],"not_rendered":{"defined_names":16},"read":"whole","date_system":"1900"}

{"sheet":"Осы үлгіні пайдалану жолы","index":0,"n_rows":25,"n_cols":5,"rows_kept":25,"merged":[[3,2,3,12],[4,4,4,12],[5,4,5,12],[6,4,6,12],[7,4,7,12],[8,4,8,7],[11,2,11,12],[12,4,12,12],[13,4,13,12],[14,4,14,12],[17,2,17,12],[18,4,18,12],[19,4,19,12],[20,4,20,12],[21,4,21,12],[24,2,24,12]]}
["ОСЫ ҮЛГІНІ ПАЙДАЛАНУ ЖОЛЫ"]
[]
[null,"ҚАЙДА БАСТАЙМЫН?"]
[null,null,"Оқушы қатысуын бақылауды бастау алдында бірнеше қадам орындау керек:"]
[{"$nulls":3},"1.","Оқушыларды қосу: Оқушылар тізімі парағында оқушы ақпаратын енгізіңіз, мысалы, қамқоршы аттары және байланыс деректері. Оқушы идентификаторы маңызды жазба болып табылады, өйткені ол әр оқушы үшін бір мәнді идентификаторды қамтамасыз етеді және ол бүкіл жұмыс кітабында деректерді енгізуді жеңілдету үшін әр түрлі оқушы идентификаторы ашылмалы тізімдерінде пайдаланылады. Оқушылар тізімінде енгізілген ақпарат басқа парақтарда да пайдаланылады, мысалы, «Оқушы қатысуы туралы есепте» және ай сайынғы қатысу жазбаларында."]
[{"$nulls":3},"2.","Мектептік күнтізбе жылын өзгерту: Тамыз қатысу парағында тақырыптың жоғарғы оң жақ жиегіндегі санағыш басқару элементін басып мектептің күнтізбе жылын жаңартыңыз. Бұл өзгерту осы жұмыс кітабындағы бүкіл ай сайынғы қатысу жазбаларының тақырыбын жаңартады. (Санағыш түймешігі басып шығарылмайтынын ескеріңіз.)"]
[{"$nulls":3},"3.","(Міндетті емес) Бүкіл жұмыс кітабындағы түстерді өзгерту: Алдымен соңғы параққа, Оқушының қатысуы туралы есеп өтіңіз және Сараптама қойындысында, Өзгертулер тобында Парақ қорғанысын алу пәрменін таңдаңыз. Содан кейін, Бет орналасуы қойындысындағы Тақырыптар тобында Түстер түймешігін басып, түстер жиынтығынан басқа тақырып түстері жиынын таңдаңыз. Түс өзгертулерін және барлық басқа тақырып өзгертулерін енгізгеннен кейін Оқушының қатысуы туралы есеп парағына оралып, Сараптама қойындысындағы Өзгертулер тобында Парақ қорғанысын алу түймешігін басыңыз, содан кейін OK түймешігін басыңыз."]
[{"$nulls":4},"Кеңес: Мектеп түстеріне сәйкес келетін теңшелетін тақырып түстері жиынын жасаңыз! Мұны істеу үшін Бет орналасуы қойындысындағы Тақырыптар тобында Түстер түймешігін басыңыз, содан кейін түстер жиынтығының төменгі жағының жанында Жаңа тақырып түстерін жасау пәрменін таңдаңыз. Теңшелетін түстер жиынын жасау туралы қосымша мәлімет алу үшін келесі анықтама бөлімін қараңыз: "]
[{"$nulls":4},"Құжат тақырыбын теңшеңіз."]
[]
[null,"ОҚУШЫЛАРДЫ ҚОСТЫМ, ЕНДІ НЕ ІСТЕУ КЕРЕК?"]
[null,null,"Оқушылар тізіміне оқушыларды енгізгеннен кейін олардың мектепке қатысуын мына қадамдарды пайдаланып бақылауды бастай аласыз:"]
[{"$nulls":3},"1.","Оқушыны қатысу жазбасына қосу үшін Оқушы идентификаторы бағанының астындағы ұяшықта басып, тізімнен идентификаторды таңдаңыз. Идентификатор таңдалғаннан кейін оқушы аты автоматты түрде көрсетіледі. "]
[{"$nulls":4},"Кеңес: Деректерді енгізу қадамдарын сақтаңыз! Бір ай үшін оқушыларды қосқаннан кейін енгізілген оқушы идентификаторларын таңдаңыз, көшіріңіз, содан кейін басқа айлардың Оқушы идентификаторы бағанына енгізіңіз. "]
[{"$nulls":3},"2.","Содан кейін түсті пернеде берілген қатысу түрлерін пайдаланып айдың әр күні үшін оның қатысу жазбасын енгізіңіз. Оқушының қатысуын «Қорытындылар» бағанындағы әр оқушының қатысу түрі автоматты түрде есептейді. Әр күннің жалпы қатыспаулары «Жалпы» жолындағы кестенің төменгі жағында автоматты түрде есептеледі."]
[]
[null,"АЙ САЙЫНҒЫ ҚАТЫСУ ЖАЗБАСЫНА ҚОСЫМША ОҚУШЫЛАРДЫ ҚАЛАЙ ҚОСУҒА БОЛАДЫ?"]
[null,null,"Ай сайынғы қатысу жазбасы парақтары және оқушылар тізімі — Excel кестелері. Кез келген Excel кестесіне жаңа жолдарды қосу үшін келесі әрекеттерді орындаңыз:"]
[{"$nulls":3},"● ","Егер кестеде «Қорытынды» жолы болмаса, кесте астында тере бастаңыз, сонда ол Enter немесе Tab пернесін басқанда автоматты түрде кеңееді."]
[{"$nulls":3},"● ","Ұяшық меңзерін соңғы оқушының «Болмаған күндері» сияқты «Қорытынды» жолының үстіндегі ұяшыққа апарыңыз, содан кейін Tab пернесін басыңыз."]
[{"$nulls":3},"● ","Кестеде тінтуірдің оң жақ түймешігін басып, қалқымалы мәзірде Кірістіру пәрменіне нұсқаңыз, содан кейін Кестенің жолдары жоғары немесе Кесте жолдары астында. "]
[{"$nulls":3},"● ","Кестенің төменгі бұрышында тінтуірді кесте өлшемін өзгерту таңбалауышына орнатыңыз және қол жетімді кесте жолдарының санын арттыру үшін төмен апарыңыз."]
[]
[null,"БҮКІЛ ОҚУ ЖЫЛЫ ҮШІН ОҚУШЫНЫҢ ҚАТЫСУЫН КӨРЕ АЛАМЫН БА?"]
[null,null,"Осы жұмыс кітабындағы соңғы парақ, «Оқушының қатысуы туралы есеп», өткен жылдағы қатысуды бақылайды. Белгілі бір оқушы үшін есепті көру үшін төмендегі ұяшықта басыңыз Оқушы идентификаторы содан кейін ашылмалы тізімде идентификаторды таңдаңыз. Таңдалған оқушы үшін алдында оқушылар тізімінде енгізген ақпарат автоматты түрде көрсетіледі. «Оқушы қатысуы туралы есепті» бірінші рет пайдаланғанда, мектепті, бағаны, мұғалімді және бөлмені енгізу керектігін ескеріңіз. Бұл мәліметтер басқа оқушыны таңдағанда өзгермейді. "]

{"sheet":"Оқушылар тізімі","index":1,"n_rows":8,"n_cols":19,"rows_kept":8}
["ОҚУШЫЛАР ТІЗІМІ"]
[]
[null,"Оқушы идентификаторы","Оқушы аты","Оқушы тегі","Жынысы","Туған күні","Ата-ана немесе қамқоршы 1","Ата-ана/қамқоршы 1 қатынасы","Ата-ана/қамқоршы 1 жұмыс нөмірі","Ата-ана/қамқоршы 1 үй нөмірі","Ата-ана/қамқоршы 2","Ата-ана/қамқоршы 2 қатынасы","Ата-ана/қамқоршы 2 жұмыс нөмірі","Ата-ана/қамқоршы 2 үй нөмірі","Жедел контакт","Жедел контакт қатынасы","Жедел контактінің жұмыс нөмірі","Жедел контактінің үй нөмірі","Оқушының аты-жөні"]
[null,"S001","Марат","Абенов","Е","1997-03-28","Майра","Абенов","1 235 550 134","2 345 550 134","Майра Абенова","Әке",{"v":1235550134,"d":"1,235,550,134"},{"v":2345550134,"d":"2,345,550,134"},"Алибек Оразов","Ата",{"v":7895550189,"d":"7,895,550,189"},{"v":7895550134,"d":"7,895,550,134"},{"$f":"СтуденттерТізімі[[#This Row],[Оқушы аты]]&\" \" &СтуденттерТізімі[[#This Row],[Оқушы тегі]]","v":"Марат Абенов"}]
[null,"S002","Оқушы",2,{"$nulls":14},{"$f":"СтуденттерТізімі[[#This Row],[Оқушы аты]]&\" \" &СтуденттерТізімі[[#This Row],[Оқушы тегі]]","v":"Оқушы 2"}]
[null,"S003","Оқушы",3,{"$nulls":14},{"$f":"СтуденттерТізімі[[#This Row],[Оқушы аты]]&\" \" &СтуденттерТізімі[[#This Row],[Оқушы тегі]]","v":"Оқушы 3"}]
[null,"S004","Оқушы",4,{"$nulls":14},{"$f":"СтуденттерТізімі[[#This Row],[Оқушы аты]]&\" \" &СтуденттерТізімі[[#This Row],[Оқушы тегі]]","v":"Оқушы 4"}]
[null,"S005","Оқушы",5,{"$nulls":14},{"$f":"СтуденттерТізімі[[#This Row],[Оқушы аты]]&\" \" &СтуденттерТізімі[[#This Row],[Оқушы тегі]]","v":"Оқушы 5"}]

{"sheet":"Тамыз","index":2,"n_rows":12,"n_cols":39,"rows_kept":12,"merged":[[4,34,4,38]]}
["ОҚУШЫНЫҢ ҚАТЫСУ ЖАЗБАСЫ",{"$nulls":36},"Оқу жылының басы:",2012]
[]
[null,null,"ТҮСТІ ПЕРНЕ","К","Кешіккен",null,null,"P","Кешірілген",null,null,"Pi","Кешірілмеген",null,null,"Б","Бар",null,null,"М","Мектепте емес"]
[]
[null,{"$f":"DATE(ЖылдықКүнтізбе,8,1)","v":"2012-08-01"},null,{"$f":"TEXT(WEEKDAY(DATE(ЖылдықКүнтізбе,8,1),1),\"aaa\")","v":"Wed"},{"$f":"TEXT(WEEKDAY(DATE(ЖылдықКүнтізбе,8,2),1),\"aaa\")","v":"Thu"},{"$f":"TEXT(WEEKDAY(DATE(ЖылдықКүнтізбе,8,3),1),\"aaa\")","v":"Fri"},{"$f":"TEXT(WEEKDAY(DATE(ЖылдықКүнтізбе,8,4),1),\"aaa\")","v":"Sat"},{"$f":"TEXT(WEEKDAY(DATE(ЖылдықКүнтізбе,8,5),1),\"aaa\")","v":"Sun"},{"$f":"TEXT(WEEKDAY(DATE(ЖылдықКүнтізбе,8,6),1),\"aaa\")","v":"Mon"},{"$f":"TEXT(WEEKDAY(DATE(ЖылдықКүнтізбе,8,7),1),\"aaa\")","v":"Tue"},{"$f":"TEXT(WEEKDAY(DATE(ЖылдықКүнтізбе,8,8),1),\"aaa\")","v":"Wed"},{"$f":"TEXT(WEEKDAY(DATE(ЖылдықКүнтізбе,8,9),1),\"aaa\")","v":"Thu"},{"$f":"TEXT(WEEKDAY(DATE(ЖылдықКүнтізбе,8,10),1),\"aaa\")","v":"Fri"},{"$f":"TEXT(WEEKDAY(DATE(ЖылдықКүнтізбе,8,11),1),\"aaa\")","v":"Sat"},{"$f":"TEXT(WEEKDAY(DATE(ЖылдықКүнтізбе,8,12),1),\"aaa\")","v":"Sun"},{"$f":"TEXT(WEEKDAY(DATE(ЖылдықКүнтізбе,8,13),1),\"aaa\")","v":"Mon"},{"$f":"TEXT(WEEKDAY(DATE(ЖылдықКүнтізбе,8,14),1),\"aaa\")","v":"Tue"},{"$f":"TEXT(WEEKDAY(DATE(ЖылдықКүнтізбе,8,15),1),\"aaa\")","v":"Wed"},{"$f":"TEXT(WEEKDAY(DATE(ЖылдықКүнтізбе,8,16),1),\"aaa\")","v":"Thu"},{"$f":"TEXT(WEEKDAY(DATE(ЖылдықКүнтізбе,8,17),1),\"aaa\")","v":"Fri"},{"$f":"TEXT(WEEKDAY(DATE(ЖылдықКүнтізбе,8,18),1),\"aaa\")","v":"Sat"},{"$f":"TEXT(WEEKDAY(DATE(ЖылдықКүнтізбе,8,19),1),\"aaa\")","v":"Sun"},{"$f":"TEXT(WEEKDAY(DATE(ЖылдықКүнтізбе,8,20),1),\"aaa\")","v":"Mon"},{"$f":"TEXT(WEEKDAY(DATE(ЖылдықКүнтізбе,8,21),1),\"aaa\")","v":"Tue"},{"$f":"TEXT(WEEKDAY(DATE(ЖылдықКүнтізбе,8,22),1),\"aaa\")","v":"Wed"},{"$f":"TEXT(WEEKDAY(DATE(ЖылдықКүнтізбе,8,23),1),\"aaa\")","v":"Thu"},{"$f":"TEXT(WEEKDAY(DATE(ЖылдықКүнтізбе,8,24),1),\"aaa\")","v":"Fri"},{"$f":"TEXT(WEEKDAY(DATE(ЖылдықКүнтізбе,8,25),1),\"aaa\")","v":"Sat"},{"$f":"TEXT(WEEKDAY(DATE(ЖылдықКүнтізбе,8,26),1),\"aaa\")","v":"Sun"},{"$f":"TEXT(WEEKDAY(DATE(ЖылдықКүнтізбе,8,27),1),\"aaa\")","v":"Mon"},{"$f":"TEXT(WEEKDAY(DATE(ЖылдықКүнтізбе,8,28),1),\"aaa\")","v":"Tue"},{"$f":"TEXT(WEEKDAY(DATE(ЖылдықКүнтізбе,8,29),1),\"aaa\")","v":"Wed"},{"$f":"TEXT(WEEKDAY(DATE(ЖылдықКүнтізбе,8,30),1),\"aaa\")","v":"Thu"},{"$f":"TEXT(WEEKDAY(DATE(ЖылдықКүнтізбе,8,31),1),\"aaa\")","v":"Fri"},"Қорытындылар"]
[null,"Оқушы идентификаторы","Оқушы аты","1","2","3","4","5","6","7","8","9","10","11","12","13","14","15","16","17","18","19","20","21","22","23","24","25","26","27","28","29","30","31","К","P","Pi","Б","Болмаған күндері"]
[null,"S001",{"$f":"IFERROR(VLOOKUP(ТамызҚатысу[[#This Row],[Оқушы идентификаторы]],СтуденттерТізімі[],18,FALSE),\"\")","v":"Марат Абенов"},"Б","Б","К","К","Б","М","М","Б","Б","P","Б","Б","М","М","Б","Б","Б","Б","Б","М","М","Б","Б","Б","Б","Б","М","М","Б","Б","Б",{"$f":"COUNTIF(ТамызҚатысу[[#This Row],[1]:[31]],1-код)","v":0},{"$f":"COUNTIF(ТамызҚатысу[[#This Row],[1]:[31]],2-код)","v":0},{"$f":"COUNTIF(ТамызҚатысу[[#This Row],[1]:[31]],3-код)","v":0},{"$f":"COUNTIF(ТамызҚатысу[[#This Row],[1]:[31]],4-код)","v":0},{"$f":"SUM(ТамызҚатысу[[#This Row],[P]:[Pi]])","v":0}]
[null,"S002",{"$f":"IFERROR(VLOOKUP(ТамызҚатысу[[#This Row],[Оқушы идентификаторы]],СтуденттерТізімі[],18,FALSE),\"\")","v":"Оқушы 2"},"Б","Pi","Б","Б","Б","М","М","Б","P","P","P","P","М","М","Б","Б","Б","Б","Б","М","М","Б","Б","Б","К","К","М","М","Б","Б","Б",{"$f":"COUNTIF(ТамызҚатысу[[#This Row],[1]:[31]],1-код)","v":0},{"$f":"COUNTIF(ТамызҚатысу[[#This Row],[1]:[31]],2-код)","v":0},{"$f":"COUNTIF(ТамызҚатысу[[#This Row],[1]:[31]],3-код)","v":0},{"$f":"COUNTIF(ТамызҚатысу[[#This Row],[1]:[31]],4-код)","v":0},{"$f":"SUM(ТамызҚатысу[[#This Row],[P]:[Pi]])","v":0}]
[null,"S003",{"$f":"IFERROR(VLOOKUP(ТамызҚатысу[[#This Row],[Оқушы идентификаторы]],СтуденттерТізімі[],18,FALSE),\"\")","v":"Оқушы 3"},"Б","P","Б","Б","Б","М","М","Б","Б","Pi","Б","Б","М","М","Б","Б","Б","Б","Б","М","М","Б","Б","P","P","Б","М","М","Б","Б","Б",{"$f":"COUNTIF(ТамызҚатысу[[#This Row],[1]:[31]],1-код)","v":0},{"$f":"COUNTIF(ТамызҚатысу[[#This Row],[1]:[31]],2-код)","v":0},{"$f":"COUNTIF(ТамызҚатысу[[#This Row],[1]:[31]],3-код)","v":0},{"$f":"COUNTIF(ТамызҚатысу[[#This Row],[1]:[31]],4-код)","v":0},{"$f":"SUM(ТамызҚатысу[[#This Row],[P]:[Pi]])","v":0}]
[null,"S004",{"$f":"IFERROR(VLOOKUP(ТамызҚатысу[[#This Row],[Оқушы идентификаторы]],СтуденттерТізімі[],18,FALSE),\"\")","v":"Оқушы 4"},"Б","Б","Б","Б","Б","М","М","Б","Б","Б","Б","Б","М","М","Б","Б","Б","Б","Б","М","М","Б","Pi","Б","Б","P","М","М","Б","P","Б",{"$f":"COUNTIF(ТамызҚатысу[[#This Row],[1]:[31]],1-код)","v":0},{"$f":"COUNTIF(ТамызҚатысу[[#This Row],[1]:[31]],2-код)","v":0},{"$f":"COUNTIF(ТамызҚатысу[[#This Row],[1]:[31]],3-код)","v":0},{"$f":"COUNTIF(ТамызҚатысу[[#This Row],[1]:[31]],4-код)","v":0},{"$f":"SUM(ТамызҚатысу[[#This Row],[P]:[Pi]])","v":0}]
[null,"S005",{"$f":"IFERROR(VLOOKUP(ТамызҚатысу[[#This Row],[Оқушы идентификаторы]],СтуденттерТізімі[],18,FALSE),\"\")","v":"Оқушы 5"},"Б","Б","Б","Б","Б","М","М","Б","Б","Б","Б","Б","М","М","Б","Б","Б","Б","Б","М","М","Б","Б","Б","Б","Б","М","М","Б","Б","Б",{"$f":"COUNTIF(ТамызҚатысу[[#This Row],[1]:[31]],1-код)","v":0},{"$f":"COUNTIF(ТамызҚатысу[[#This Row],[1]:[31]],2-код)","v":0},{"$f":"COUNTIF(ТамызҚатысу[[#This Row],[1]:[31]],3-код)","v":0},{"$f":"COUNTIF(ТамызҚатысу[[#This Row],[1]:[31]],4-код)","v":0},{"$f":"SUM(ТамызҚатысу[[#This Row],[P]:[Pi]])","v":0}]
[null,null,"Жалпы болмаған күндері",{"$f":"COUNTIF(ТамызҚатысу[1],\"Pi\")+COUNTIF(ТамызҚатысу[1],\"P\")","v":0},{"$f":"COUNTIF(ТамызҚатысу[2],\"Pi\")+COUNTIF(ТамызҚатысу[2],\"P\")","v":2},{"$f":"COUNTIF(ТамызҚатысу[3],\"Pi\")+COUNTIF(ТамызҚатысу[3],\"P\")","v":0},{"$f":"COUNTIF(ТамызҚатысу[4],\"Pi\")+COUNTIF(ТамызҚатысу[4],\"P\")","v":0},{"$f":"COUNTIF(ТамызҚатысу[5],\"Pi\")+COUNTIF(ТамызҚатысу[5],\"P\")","v":0},{"$f":"COUNTIF(ТамызҚатысу[6],\"Pi\")+COUNTIF(ТамызҚатысу[6],\"P\")","v":0},{"$f":"COUNTIF(ТамызҚатысу[7],\"Pi\")+COUNTIF(ТамызҚатысу[7],\"P\")","v":0},{"$f":"COUNTIF(ТамызҚатысу[8],\"Pi\")+COUNTIF(ТамызҚатысу[8],\"P\")","v":0},{"$f":"COUNTIF(ТамызҚатысу[9],\"Pi\")+COUNTIF(ТамызҚатысу[9],\"P\")","v":1},{"$f":"COUNTIF(ТамызҚатысу[10],\"Pi\")+COUNTIF(ТамызҚатысу[10],\"P\")","v":3},{"$f":"COUNTIF(ТамызҚатысу[11],\"Pi\")+COUNTIF(ТамызҚатысу[11],\"P\")","v":1},{"$f":"COUNTIF(ТамызҚатысу[12],\"Pi\")+COUNTIF(ТамызҚатысу[12],\"P\")","v":1},{"$f":"COUNTIF(ТамызҚатысу[13],\"Pi\")+COUNTIF(ТамызҚатысу[13],\"P\")","v":0},{"$f":"COUNTIF(ТамызҚатысу[14],\"Pi\")+COUNTIF(ТамызҚатысу[14],\"P\")","v":0},{"$f":"COUNTIF(ТамызҚатысу[15],\"Pi\")+COUNTIF(ТамызҚатысу[15],\"P\")","v":0},{"$f":"COUNTIF(ТамызҚатысу[16],\"Pi\")+COUNTIF(ТамызҚатысу[16],\"P\")","v":0},{"$f":"COUNTIF(ТамызҚатысу[17],\"Pi\")+COUNTIF(ТамызҚатысу[17],\"P\")","v":0},{"$f":"COUNTIF(ТамызҚатысу[18],\"Pi\")+COUNTIF(ТамызҚатысу[18],\"P\")","v":0},{"$f":"COUNTIF(ТамызҚатысу[19],\"Pi\")+COUNTIF(ТамызҚатысу[19],\"P\")","v":0},{"$f":"COUNTIF(ТамызҚатысу[20],\"Pi\")+COUNTIF(ТамызҚатысу[20],\"P\")","v":0},{"$f":"COUNTIF(ТамызҚатысу[21],\"Pi\")+COUNTIF(ТамызҚатысу[21],\"P\")","v":0},{"$f":"COUNTIF(ТамызҚатысу[22],\"Pi\")+COUNTIF(ТамызҚатысу[22],\"P\")","v":0},{"$f":"COUNTIF(ТамызҚатысу[23],\"Pi\")+COUNTIF(ТамызҚатысу[23],\"P\")","v":1},{"$f":"COUNTIF(ТамызҚатысу[24],\"Pi\")+COUNTIF(ТамызҚатысу[24],\"P\")","v":1},{"$f":"COUNTIF(ТамызҚатысу[25],\"Pi\")+COUNTIF(ТамызҚатысу[25],\"P\")","v":1},{"$f":"COUNTIF(ТамызҚатысу[26],\"Pi\")+COUNTIF(ТамызҚатысу[26],\"P\")","v":1},{"$f":"COUNTIF(ТамызҚатысу[27],\"Pi\")+COUNTIF(ТамызҚатысу[27],\"P\")","v":0},{"$f":"COUNTIF(ТамызҚатысу[28],\"Pi\")+COUNTIF(ТамызҚатысу[28],\"P\")","v":0},{"$f":"COUNTIF(ТамызҚатысу[29],\"Pi\")+COUNTIF(ТамызҚатысу[29],\"P\")","v":0},{"$f":"COUNTIF(ТамызҚатысу[30],\"Pi\")+COUNTIF(ТамызҚатысу[30],\"P\")","v":1},{"$f":"COUNTIF(ТамызҚатысу[31],\"Pi\")+COUNTIF(ТамызҚатысу[31],\"P\")","v":0},{"$f":"SUBTOTAL(109,ТамызҚатысу[К])","v":0},{"$f":"SUBTOTAL(109,ТамызҚатысу[P])","v":0},{"$f":"SUBTOTAL(109,ТамызҚатысу[Pi])","v":0},{"$f":"SUBTOTAL(109,ТамызҚатысу[Б])","v":0},{"$f":"SUBTOTAL(109,ТамызҚатысу[Болмаған күндері])","v":0}]

{"sheet":"Қыркүйек","index":3,"n_rows":12,"n_cols":39,"rows_kept":12,"merged":[[4,34,4,38]]}
["ОҚУШЫНЫҢ ҚАТЫСУ ЖАЗБАСЫ",{"$nulls":36},"Оқу жылының басы:",{"$f":"ЖылдықКүнтізбе","v":2012}]
[]
[null,null,{"$f":"ТүстіКілтМәтін","v":"ТҮСТІ ПЕРНЕ"},{"$f":"1-код","v":"К"},{"$f":"1-кодМәтіні","v":"Кешіккен"},null,null,{"$f":"2-код","v":"P"},{"$f":"2-кодМәтіні","v":"Кешірілген"},null,null,{"$f":"3-код","v":"Pi"},{"$f":"3-кодМәтіні","v":"Кешірілмеген"},null,null,{"$f":"4-код","v":"Б"},{"$f":"4-кодМәтіні","v":"Бар"},null,null,{"$f":"5-код","v":"М"},{"$f":"5-кодМәтіні","v":"Мектепте емес"}]
[]
[null,{"$f":"DATE(ЖылдықКүнтізбе,9,1)","v":"2012-09-01"},null,{"$f":"TEXT(WEEKDAY(DATE(ЖылдықКүнтізбе,9,1),1),\"aaa\")","v":"Sat"},{"$f":"TEXT(WEEKDAY(DATE(ЖылдықКүнтізбе,9,2),1),\"aaa\")","v":"Sun"},{"$f":"TEXT(WEEKDAY(DATE(ЖылдықКүнтізбе,9,3),1),\"aaa\")","v":"Mon"},{"$f":"TEXT(WEEKDAY(DATE(ЖылдықКүнтізбе,9,4),1),\"aaa\")","v":"Tue"},{"$f":"TEXT(WEEKDAY(DATE(ЖылдықКүнтізбе,9,5),1),\"aaa\")","v":"Wed"},{"$f":"TEXT(WEEKDAY(DATE(ЖылдықКүнтізбе,9,6),1),\"aaa\")","v":"Thu"},{"$f":"TEXT(WEEKDAY(DATE(ЖылдықКүнтізбе,9,7),1),\"aaa\")","v":"Fri"},{"$f":"TEXT(WEEKDAY(DATE(ЖылдықКүнтізбе,9,8),1),\"aaa\")","v":"Sat"},{"$f":"TEXT(WEEKDAY(DATE(ЖылдықКүнтізбе,9,9),1),\"aaa\")","v":"Sun"},{"$f":"TEXT(WEEKDAY(DATE(ЖылдықКүнтізбе,9,10),1),\"aaa\")","v":"Mon"},{"$f":"TEXT(WEEKDAY(DATE(ЖылдықКүнтізбе,9,11),1),\"aaa\")","v":"Tue"},{"$f":"TEXT(WEEKDAY(DATE(ЖылдықКүнтізбе,9,12),1),\"aaa\")","v":"Wed"},{"$f":"TEXT(WEEKDAY(DATE(ЖылдықКүнтізбе,9,13),1),\"aaa\")","v":"Thu"},{"$f":"TEXT(WEEKDAY(DATE(ЖылдықКүнтізбе,9,14),1),\"aaa\")","v":"Fri"},{"$f":"TEXT(WEEKDAY(DATE(ЖылдықКүнтізбе,9,15),1),\"aaa\")","v":"Sat"},{"$f":"TEXT(WEEKDAY(DATE(ЖылдықКүнтізбе,9,16),1),\"aaa\")","v":"Sun"},{"$f":"TEXT(WEEKDAY(DATE(ЖылдықКүнтізбе,9,17),1),\"aaa\")","v":"Mon"},{"$f":"TEXT(WEEKDAY(DATE(ЖылдықКүнтізбе,9,18),1),\"aaa\")","v":"Tue"},{"$f":"TEXT(WEEKDAY(DATE(ЖылдықКүнтізбе,9,19),1),\"aaa\")","v":"Wed"},{"$f":"TEXT(WEEKDAY(DATE(ЖылдықКүнтізбе,9,20),1),\"aaa\")","v":"Thu"},{"$f":"TEXT(WEEKDAY(DATE(ЖылдықКүнтізбе,9,21),1),\"aaa\")","v":"Fri"},{"$f":"TEXT(WEEKDAY(DATE(ЖылдықКүнтізбе,9,22),1),\"aaa\")","v":"Sat"},{"$f":"TEXT(WEEKDAY(DATE(ЖылдықКүнтізбе,9,23),1),\"aaa\")","v":"Sun"},{"$f":"TEXT(WEEKDAY(DATE(ЖылдықКүнтізбе,9,24),1),\"aaa\")","v":"Mon"},{"$f":"TEXT(WEEKDAY(DATE(ЖылдықКүнтізбе,9,25),1),\"aaa\")","v":"Tue"},{"$f":"TEXT(WEEKDAY(DATE(ЖылдықКүнтізбе,9,26),1),\"aaa\")","v":"Wed"},{"$f":"TEXT(WEEKDAY(DATE(ЖылдықКүнтізбе,9,27),1),\"aaa\")","v":"Thu"},{"$f":"TEXT(WEEKDAY(DATE(ЖылдықКүнтізбе,9,28),1),\"aaa\")","v":"Fri"},{"$f":"TEXT(WEEKDAY(DATE(ЖылдықКүнтізбе,9,29),1),\"aaa\")","v":"Sat"},{"$f":"TEXT(WEEKDAY(DATE(ЖылдықКүнтізбе,9,30),1),\"aaa\")","v":"Sun"},null,"Қорытындылар"]
[null,"Оқушы идентификаторы","Оқушы аты","1","2","3","4","5","6","7","8","9","10","11","12","13","14","15","16","17","18","19","20","21","22","23","24","25","26","27","28","29","30"," ","К","P","Pi","Б","Болмаған күндері"]
[null,null,{"$f":"IFERROR(VLOOKUP(ҚыркүйекҚатысу[[#This Row],[Оқушы идентификаторы]],СтуденттерТізімі[],18,FALSE),\"\")","v":""},{"$nulls":31},{"$f":"COUNTIF(ҚыркүйекҚатысу[[#This Row],[1]:[ ]],1-код)","v":0},{"$f":"COUNTIF(ҚыркүйекҚатысу[[#This Row],[1]:[ ]],2-код)","v":0},{"$f":"COUNTIF(ҚыркүйекҚатысу[[#This Row],[1]:[ ]],3-код)","v":0},{"$f":"COUNTIF(ҚыркүйекҚатысу[[#This Row],[1]:[ ]],4-код)","v":0},{"$f":"SUM(ҚыркүйекҚатысу[[#This Row],[P]:[Pi]])","v":0}]
[null,null,{"$f":"IFERROR(VLOOKUP(ҚыркүйекҚатысу[[#This Row],[Оқушы идентификаторы]],СтуденттерТізімі[],18,FALSE),\"\")","v":""},{"$nulls":31},{"$f":"COUNTIF(ҚыркүйекҚатысу[[#This Row],[1]:[ ]],1-код)","v":0},{"$f":"COUNTIF(ҚыркүйекҚатысу[[#This Row],[1]:[ ]],2-код)","v":0},{"$f":"COUNTIF(ҚыркүйекҚатысу[[#This Row],[1]:[ ]],3-код)","v":0},{"$f":"COUNTIF(ҚыркүйекҚатысу[[#This Row],[1]:[ ]],4-код)","v":0},{"$f":"SUM(ҚыркүйекҚатысу[[#This Row],[P]:[Pi]])","v":0}]
[null,null,{"$f":"IFERROR(VLOOKUP(ҚыркүйекҚатысу[[#This Row],[Оқушы идентификаторы]],СтуденттерТізімі[],18,FALSE),\"\")","v":""},{"$nulls":31},{"$f":"COUNTIF(ҚыркүйекҚатысу[[#This Row],[1]:[ ]],1-код)","v":0},{"$f":"COUNTIF(ҚыркүйекҚатысу[[#This Row],[1]:[ ]],2-код)","v":0},{"$f":"COUNTIF(ҚыркүйекҚатысу[[#This Row],[1]:[ ]],3-код)","v":0},{"$f":"COUNTIF(ҚыркүйекҚатысу[[#This Row],[1]:[ ]],4-код)","v":0},{"$f":"SUM(ҚыркүйекҚатысу[[#This Row],[P]:[Pi]])","v":0}]
[null,null,{"$f":"IFERROR(VLOOKUP(ҚыркүйекҚатысу[[#This Row],[Оқушы идентификаторы]],СтуденттерТізімі[],18,FALSE),\"\")","v":""},{"$nulls":31},{"$f":"COUNTIF(ҚыркүйекҚатысу[[#This Row],[1]:[ ]],1-код)","v":0},{"$f":"COUNTIF(ҚыркүйекҚатысу[[#This Row],[1]:[ ]],2-код)","v":0},{"$f":"COUNTIF(ҚыркүйекҚатысу[[#This Row],[1]:[ ]],3-код)","v":0},{"$f":"COUNTIF(ҚыркүйекҚатысу[[#This Row],[1]:[ ]],4-код)","v":0},{"$f":"SUM(ҚыркүйекҚатысу[[#This Row],[P]:[Pi]])","v":0}]
[null,null,{"$f":"IFERROR(VLOOKUP(ҚыркүйекҚатысу[[#This Row],[Оқушы идентификаторы]],СтуденттерТізімі[],18,FALSE),\"\")","v":""},{"$nulls":31},{"$f":"COUNTIF(ҚыркүйекҚатысу[[#This Row],[1]:[ ]],1-код)","v":0},{"$f":"COUNTIF(ҚыркүйекҚатысу[[#This Row],[1]:[ ]],2-код)","v":0},{"$f":"COUNTIF(ҚыркүйекҚатысу[[#This Row],[1]:[ ]],3-код)","v":0},{"$f":"COUNTIF(ҚыркүйекҚатысу[[#This Row],[1]:[ ]],4-код)","v":0},{"$f":"SUM(ҚыркүйекҚатысу[[#This Row],[P]:[Pi]])","v":0}]
[null,null,"Жалпы болмаған күндері",{"$f":"COUNTIF(ҚыркүйекҚатысу[1],\"Pi\")+COUNTIF(ҚыркүйекҚатысу[1],\"P\")","v":0},{"$f":"COUNTIF(ҚыркүйекҚатысу[2],\"Pi\")+COUNTIF(ҚыркүйекҚатысу[2],\"P\")","v":0},{"$f":"COUNTIF(ҚыркүйекҚатысу[3],\"Pi\")+COUNTIF(ҚыркүйекҚатысу[3],\"P\")","v":0},{"$f":"COUNTIF(ҚыркүйекҚатысу[4],\"Pi\")+COUNTIF(ҚыркүйекҚатысу[4],\"P\")","v":0},{"$f":"COUNTIF(ҚыркүйекҚатысу[5],\"Pi\")+COUNTIF(ҚыркүйекҚатысу[5],\"P\")","v":0},{"$f":"COUNTIF(ҚыркүйекҚатысу[6],\"Pi\")+COUNTIF(ҚыркүйекҚатысу[6],\"P\")","v":0},{"$f":"COUNTIF(ҚыркүйекҚатысу[7],\"Pi\")+COUNTIF(ҚыркүйекҚатысу[7],\"P\")","v":0},{"$f":"COUNTIF(ҚыркүйекҚатысу[8],\"Pi\")+COUNTIF(ҚыркүйекҚатысу[8],\"P\")","v":0},{"$f":"COUNTIF(ҚыркүйекҚатысу[9],\"Pi\")+COUNTIF(ҚыркүйекҚатысу[9],\"P\")","v":0},{"$f":"COUNTIF(ҚыркүйекҚатысу[10],\"Pi\")+COUNTIF(ҚыркүйекҚатысу[10],\"P\")","v":0},{"$f":"COUNTIF(ҚыркүйекҚатысу[11],\"Pi\")+COUNTIF(ҚыркүйекҚатысу[11],\"P\")","v":0},{"$f":"COUNTIF(ҚыркүйекҚатысу[12],\"Pi\")+COUNTIF(ҚыркүйекҚатысу[12],\"P\")","v":0},{"$f":"COUNTIF(ҚыркүйекҚатысу[13],\"Pi\")+COUNTIF(ҚыркүйекҚатысу[13],\"P\")","v":0},{"$f":"COUNTIF(ҚыркүйекҚатысу[14],\"Pi\")+COUNTIF(ҚыркүйекҚатысу[14],\"P\")","v":0},{"$f":"COUNTIF(ҚыркүйекҚатысу[15],\"Pi\")+COUNTIF(ҚыркүйекҚатысу[15],\"P\")","v":0},{"$f":"COUNTIF(ҚыркүйекҚатысу[16],\"Pi\")+COUNTIF(ҚыркүйекҚатысу[16],\"P\")","v":0},{"$f":"COUNTIF(ҚыркүйекҚатысу[17],\"Pi\")+COUNTIF(ҚыркүйекҚатысу[17],\"P\")","v":0},{"$f":"COUNTIF(ҚыркүйекҚатысу[18],\"Pi\")+COUNTIF(ҚыркүйекҚатысу[18],\"P\")","v":0},{"$f":"COUNTIF(ҚыркүйекҚатысу[19],\"Pi\")+COUNTIF(ҚыркүйекҚатысу[19],\"P\")","v":0},{"$f":"COUNTIF(ҚыркүйекҚатысу[20],\"Pi\")+COUNTIF(ҚыркүйекҚатысу[20],\"P\")","v":0},{"$f":"COUNTIF(ҚыркүйекҚатысу[21],\"Pi\")+COUNTIF(ҚыркүйекҚатысу[21],\"P\")","v":0},{"$f":"COUNTIF(ҚыркүйекҚатысу[22],\"Pi\")+COUNTIF(ҚыркүйекҚатысу[22],\"P\")","v":0},{"$f":"COUNTIF(ҚыркүйекҚатысу[23],\"Pi\")+COUNTIF(ҚыркүйекҚатысу[23],\"P\")","v":0},{"$f":"COUNTIF(ҚыркүйекҚатысу[24],\"Pi\")+COUNTIF(ҚыркүйекҚатысу[24],\"P\")","v":0},{"$f":"COUNTIF(ҚыркүйекҚатысу[25],\"Pi\")+COUNTIF(ҚыркүйекҚатысу[25],\"P\")","v":0},{"$f":"COUNTIF(ҚыркүйекҚатысу[26],\"Pi\")+COUNTIF(ҚыркүйекҚатысу[26],\"P\")","v":0},{"$f":"COUNTIF(ҚыркүйекҚатысу[27],\"Pi\")+COUNTIF(ҚыркүйекҚатысу[27],\"P\")","v":0},{"$f":"COUNTIF(ҚыркүйекҚатысу[28],\"Pi\")+COUNTIF(ҚыркүйекҚатысу[28],\"P\")","v":0},{"$f":"COUNTIF(ҚыркүйекҚатысу[29],\"Pi\")+COUNTIF(ҚыркүйекҚатысу[29],\"P\")","v":0},{"$f":"COUNTIF(ҚыркүйекҚатысу[30],\"Pi\")+COUNTIF(ҚыркүйекҚатысу[30],\"P\")","v":0},{"$f":"COUNTIF(ҚыркүйекҚатысу[[ ]],\"Pi\")+COUNTIF(ҚыркүйекҚатысу[[ ]],\"P\")","v":0},{"$f":"SUBTOTAL(109,ҚыркүйекҚатысу[К])","v":0},{"$f":"SUBTOTAL(109,ҚыркүйекҚатысу[P])","v":0},{"$f":"SUBTOTAL(109,ҚыркүйекҚатысу[Pi])","v":0},{"$f":"SUBTOTAL(109,ҚыркүйекҚатысу[Б])","v":0},{"$f":"SUBTOTAL(109,ҚыркүйекҚатысу[Болмаған күндері])","v":0}]

{"sheet":"Қазан","index":4,"n_rows":12,"n_cols":39,"rows_kept":12,"merged":[[4,34,4,38]]}
["ОҚУШЫНЫҢ ҚАТЫСУ ЖАЗБАСЫ",{"$nulls":36},"Оқу жылының басы:",{"$f":"ЖылдықКүнтізбе","v":2012}]
[]
[null,null,{"$f":"ТүстіКілтМәтін","v":"ТҮСТІ ПЕРНЕ"},{"$f":"1-код","v":"К"},{"$f":"1-кодМәтіні","v":"Кешіккен"},null,null,{"$f":"2-код","v":"P"},{"$f":"2-кодМәтіні","v":"Кешірілген"},null,null,{"$f":"3-код","v":"Pi"},{"$f":"3-кодМәтіні","v":"Кешірілмеген"},null,null,{"$f":"4-код","v":"Б"},{"$f":"4-кодМәтіні","v":"Бар"},null,null,{"$f":"5-код","v":"М"},{"$f":"5-кодМәтіні","v":"Мектепте емес"}]
[]
[null,{"$f":"DATE(ЖылдықКүнтізбе,10,1)","v":"2012-10-01"},null,{"$f":"TEXT(WEEKDAY(DATE(ЖылдықКүнтізбе,10,1),1),\"aaa\")","v":"Mon"},{"$f":"TEXT(WEEKDAY(DATE(ЖылдықКүнтізбе,10,2),1),\"aaa\")","v":"Tue"},{"$f":"TEXT(WEEKDAY(DATE(ЖылдықКүнтізбе,10,3),1),\"aaa\")","v":"Wed"},{"$f":"TEXT(WEEKDAY(DATE(ЖылдықКүнтізбе,10,4),1),\"aaa\")","v":"Thu"},{"$f":"TEXT(WEEKDAY(DATE(ЖылдықКүнтізбе,10,5),1),\"aaa\")","v":"Fri"},{"$f":"TEXT(WEEKDAY(DATE(ЖылдықКүнтізбе,10,6),1),\"aaa\")","v":"Sat"},{"$f":"TEXT(WEEKDAY(DATE(ЖылдықКүнтізбе,10,7),1),\"aaa\")","v":"Sun"},{"$f":"TEXT(WEEKDAY(DATE(ЖылдықКүнтізбе,10,8),1),\"aaa\")","v":"Mon"},{"$f":"TEXT(WEEKDAY(DATE(ЖылдықКүнтізбе,10,9),1),\"aaa\")","v":"Tue"},{"$f":"TEXT(WEEKDAY(DATE(ЖылдықКүнтізбе,10,10),1),\"aaa\")","v":"Wed"},{"$f":"TEXT(WEEKDAY(DATE(ЖылдықКүнтізбе,10,11),1),\"aaa\")","v":"Thu"},{"$f":"TEXT(WEEKDAY(DATE(ЖылдықКүнтізбе,10,12),1),\"aaa\")","v":"Fri"},{"$f":"TEXT(WEEKDAY(DATE(ЖылдықКүнтізбе,10,13),1),\"aaa\")","v":"Sat"},{"$f":"TEXT(WEEKDAY(DATE(ЖылдықКүнтізбе,10,14),1),\"aaa\")","v":"Sun"},{"$f":"TEXT(WEEKDAY(DATE(ЖылдықКүнтізбе,10,15),1),\"aaa\")","v":"Mon"},{"$f":"TEXT(WEEKDAY(DATE(ЖылдықКүнтізбе,10,16),1),\"aaa\")","v":"Tue"},{"$f":"TEXT(WEEKDAY(DATE(ЖылдықКүнтізбе,10,17),1),\"aaa\")","v":"Wed"},{"$f":"TEXT(WEEKDAY(DATE(ЖылдықКүнтізбе,10,18),1),\"aaa\")","v":"Thu"},{"$f":"TEXT(WEEKDAY(DATE(ЖылдықКүнтізбе,10,19),1),\"aaa\")","v":"Fri"},{"$f":"TEXT(WEEKDAY(DATE(ЖылдықКүнтізбе,10,20),1),\"aaa\")","v":"Sat"},{"$f":"TEXT(WEEKDAY(DATE(ЖылдықКүнтізбе,10,21),1),\"aaa\")","v":"Sun"},{"$f":"TEXT(WEEKDAY(DATE(ЖылдықКүнтізбе,10,22),1),\"aaa\")","v":"Mon"},{"$f":"TEXT(WEEKDAY(DATE(ЖылдықКүнтізбе,10,23),1),\"aaa\")","v":"Tue"},{"$f":"TEXT(WEEKDAY(DATE(ЖылдықКүнтізбе,10,24),1),\"aaa\")","v":"Wed"},{"$f":"TEXT(WEEKDAY(DATE(ЖылдықКүнтізбе,10,25),1),\"aaa\")","v":"Thu"},{"$f":"TEXT(WEEKDAY(DATE(ЖылдықКүнтізбе,10,26),1),\"aaa\")","v":"Fri"},{"$f":"TEXT(WEEKDAY(DATE(ЖылдықКүнтізбе,10,27),1),\"aaa\")","v":"Sat"},{"$f":"TEXT(WEEKDAY(DATE(ЖылдықКүнтізбе,10,28),1),\"aaa\")","v":"Sun"},{"$f":"TEXT(WEEKDAY(DATE(ЖылдықКүнтізбе,10,29),1),\"aaa\")","v":"Mon"},{"$f":"TEXT(WEEKDAY(DATE(ЖылдықКүнтізбе,10,30),1),\"aaa\")","v":"Tue"},{"$f":"TEXT(WEEKDAY(DATE(ЖылдықКүнтізбе,10,31),1),\"aaa\")","v":"Wed"},"Қорытындылар"]
[null,"Оқушы идентификаторы","Оқушы аты","1","2","3","4","5","6","7","8","9","10","11","12","13","14","15","16","17","18","19","20","21","22","23","24","25","26","27","28","29","30","31","К","P","Pi","Б","Болмаған күндері"]
[null,null,{"$f":"IFERROR(VLOOKUP(ҚазанҚатысу[[#This Row],[Оқушы идентификаторы]],СтуденттерТізімі[],18,FALSE),\"\")","v":""},{"$nulls":31},{"$f":"COUNTIF(ҚазанҚатысу[[#This Row],[1]:[31]],1-код)","v":0},{"$f":"COUNTIF(ҚазанҚатысу[[#This Row],[1]:[31]],2-код)","v":0},{"$f":"COUNTIF(ҚазанҚатысу[[#This Row],[1]:[31]],3-код)","v":0},{"$f":"COUNTIF(ҚазанҚатысу[[#This Row],[1]:[31]],4-код)","v":0},{"$f":"SUM(ҚыркүйекҚатысу[[#This Row],[P]:[Pi]])","v":0}]
[null,null,{"$f":"IFERROR(VLOOKUP(ҚазанҚатысу[[#This Row],[Оқушы идентификаторы]],СтуденттерТізімі[],18,FALSE),\"\")","v":""},{"$nulls":31},{"$f":"COUNTIF(ҚазанҚатысу[[#This Row],[1]:[31]],1-код)","v":0},{"$f":"COUNTIF(ҚазанҚатысу[[#This Row],[1]:[31]],2-код)","v":0},{"$f":"COUNTIF(ҚазанҚатысу[[#This Row],[1]:[31]],3-код)","v":0},{"$f":"COUNTIF(ҚазанҚатысу[[#This Row],[1]:[31]],4-код)","v":0},{"$f":"SUM(ҚыркүйекҚатысу[[#This Row],[P]:[Pi]])","v":0}]
[null,null,{"$f":"IFERROR(VLOOKUP(ҚазанҚатысу[[#This Row],[Оқушы идентификаторы]],СтуденттерТізімі[],18,FALSE),\"\")","v":""},{"$nulls":31},{"$f":"COUNTIF(ҚазанҚатысу[[#This Row],[1]:[31]],1-код)","v":0},{"$f":"COUNTIF(ҚазанҚатысу[[#This Row],[1]:[31]],2-код)","v":0},{"$f":"COUNTIF(ҚазанҚатысу[[#This Row],[1]:[31]],3-код)","v":0},{"$f":"COUNTIF(ҚазанҚатысу[[#This Row],[1]:[31]],4-код)","v":0},{"$f":"SUM(ҚыркүйекҚатысу[[#This Row],[P]:[Pi]])","v":0}]
[null,null,{"$f":"IFERROR(VLOOKUP(ҚазанҚатысу[[#This Row],[Оқушы идентификаторы]],СтуденттерТізімі[],18,FALSE),\"\")","v":""},{"$nulls":31},{"$f":"COUNTIF(ҚазанҚатысу[[#This Row],[1]:[31]],1-код)","v":0},{"$f":"COUNTIF(ҚазанҚатысу[[#This Row],[1]:[31]],2-код)","v":0},{"$f":"COUNTIF(ҚазанҚатысу[[#This Row],[1]:[31]],3-код)","v":0},{"$f":"COUNTIF(ҚазанҚатысу[[#This Row],[1]:[31]],4-код)","v":0},{"$f":"SUM(ҚыркүйекҚатысу[[#This Row],[P]:[Pi]])","v":0}]
[null,null,{"$f":"IFERROR(VLOOKUP(ҚазанҚатысу[[#This Row],[Оқушы идентификаторы]],СтуденттерТізімі[],18,FALSE),\"\")","v":""},{"$nulls":31},{"$f":"COUNTIF(ҚазанҚатысу[[#This Row],[1]:[31]],1-код)","v":0},{"$f":"COUNTIF(ҚазанҚатысу[[#This Row],[1]:[31]],2-код)","v":0},{"$f":"COUNTIF(ҚазанҚатысу[[#This Row],[1]:[31]],3-код)","v":0},{"$f":"COUNTIF(ҚазанҚатысу[[#This Row],[1]:[31]],4-код)","v":0},{"$f":"SUM(ҚыркүйекҚатысу[[#This Row],[P]:[Pi]])","v":0}]
[null,null,"Жалпы болмаған күндері",{"$f":"COUNTIF(ҚазанҚатысу[1],\"Pi\")+COUNTIF(ҚазанҚатысу[1],\"P\")","v":0},{"$f":"COUNTIF(ҚазанҚатысу[2],\"Pi\")+COUNTIF(ҚазанҚатысу[2],\"P\")","v":0},{"$f":"COUNTIF(ҚазанҚатысу[3],\"Pi\")+COUNTIF(ҚазанҚатысу[3],\"P\")","v":0},{"$f":"COUNTIF(ҚазанҚатысу[4],\"Pi\")+COUNTIF(ҚазанҚатысу[4],\"P\")","v":0},{"$f":"COUNTIF(ҚазанҚатысу[5],\"Pi\")+COUNTIF(ҚазанҚатысу[5],\"P\")","v":0},{"$f":"COUNTIF(ҚазанҚатысу[6],\"Pi\")+COUNTIF(ҚазанҚатысу[6],\"P\")","v":0},{"$f":"COUNTIF(ҚазанҚатысу[7],\"Pi\")+COUNTIF(ҚазанҚатысу[7],\"P\")","v":0},{"$f":"COUNTIF(ҚазанҚатысу[8],\"Pi\")+COUNTIF(ҚазанҚатысу[8],\"P\")","v":0},{"$f":"COUNTIF(ҚазанҚатысу[9],\"Pi\")+COUNTIF(ҚазанҚатысу[9],\"P\")","v":0},{"$f":"COUNTIF(ҚазанҚатысу[10],\"Pi\")+COUNTIF(ҚазанҚатысу[10],\"P\")","v":0},{"$f":"COUNTIF(ҚазанҚатысу[11],\"Pi\")+COUNTIF(ҚазанҚатысу[11],\"P\")","v":0},{"$f":"COUNTIF(ҚазанҚатысу[12],\"Pi\")+COUNTIF(ҚазанҚатысу[12],\"P\")","v":0},{"$f":"COUNTIF(ҚазанҚатысу[13],\"Pi\")+COUNTIF(ҚазанҚатысу[13],\"P\")","v":0},{"$f":"COUNTIF(ҚазанҚатысу[14],\"Pi\")+COUNTIF(ҚазанҚатысу[14],\"P\")","v":0},{"$f":"COUNTIF(ҚазанҚатысу[15],\"Pi\")+COUNTIF(ҚазанҚатысу[15],\"P\")","v":0},{"$f":"COUNTIF(ҚазанҚатысу[16],\"Pi\")+COUNTIF(ҚазанҚатысу[16],\"P\")","v":0},{"$f":"COUNTIF(ҚазанҚатысу[17],\"Pi\")+COUNTIF(ҚазанҚатысу[17],\"P\")","v":0},{"$f":"COUNTIF(ҚазанҚатысу[18],\"Pi\")+COUNTIF(ҚазанҚатысу[18],\"P\")","v":0},{"$f":"COUNTIF(ҚазанҚатысу[19],\"Pi\")+COUNTIF(ҚазанҚатысу[19],\"P\")","v":0},{"$f":"COUNTIF(ҚазанҚатысу[20],\"Pi\")+COUNTIF(ҚазанҚатысу[20],\"P\")","v":0},{"$f":"COUNTIF(ҚазанҚатысу[21],\"Pi\")+COUNTIF(ҚазанҚатысу[21],\"P\")","v":0},{"$f":"COUNTIF(ҚазанҚатысу[22],\"Pi\")+COUNTIF(ҚазанҚатысу[22],\"P\")","v":0},{"$f":"COUNTIF(ҚазанҚатысу[23],\"Pi\")+COUNTIF(ҚазанҚатысу[23],\"P\")","v":0},{"$f":"COUNTIF(ҚазанҚатысу[24],\"Pi\")+COUNTIF(ҚазанҚатысу[24],\"P\")","v":0},{"$f":"COUNTIF(ҚазанҚатысу[25],\"Pi\")+COUNTIF(ҚазанҚатысу[25],\"P\")","v":0},{"$f":"COUNTIF(ҚазанҚатысу[26],\"Pi\")+COUNTIF(ҚазанҚатысу[26],\"P\")","v":0},{"$f":"COUNTIF(ҚазанҚатысу[27],\"Pi\")+COUNTIF(ҚазанҚатысу[27],\"P\")","v":0},{"$f":"COUNTIF(ҚазанҚатысу[28],\"Pi\")+COUNTIF(ҚазанҚатысу[28],\"P\")","v":0},{"$f":"COUNTIF(ҚазанҚатысу[29],\"Pi\")+COUNTIF(ҚазанҚатысу[29],\"P\")","v":0},{"$f":"COUNTIF(ҚазанҚатысу[30],\"Pi\")+COUNTIF(ҚазанҚатысу[30],\"P\")","v":0},{"$f":"COUNTIF(ҚазанҚатысу[31],\"Pi\")+COUNTIF(ҚазанҚатысу[31],\"P\")","v":0},{"$f":"SUBTOTAL(109,ҚазанҚатысу[К])","v":0},{"$f":"SUBTOTAL(109,ҚазанҚатысу[P])","v":0},{"$f":"SUBTOTAL(109,ҚазанҚатысу[Pi])","v":0},{"$f":"SUBTOTAL(109,ҚазанҚатысу[Б])","v":0},{"$f":"SUBTOTAL(109,ҚазанҚатысу[Болмаған күндері])","v":0}]

{"sheet":"Қараша","index":5,"n_rows":12,"n_cols":39,"rows_kept":12,"merged":[[4,34,4,38]]}
["ОҚУШЫНЫҢ ҚАТЫСУ ЖАЗБАСЫ",{"$nulls":36},"Оқу жылының басы:",{"$f":"ЖылдықКүнтізбе","v":2012}]
[]
[null,null,{"$f":"ТүстіКілтМәтін","v":"ТҮСТІ ПЕРНЕ"},{"$f":"1-код","v":"К"},{"$f":"1-кодМәтіні","v":"Кешіккен"},null,null,{"$f":"2-код","v":"P"},{"$f":"2-кодМәтіні","v":"Кешірілген"},null,null,{"$f":"3-код","v":"Pi"},{"$f":"3-кодМәтіні","v":"Кешірілмеген"},null,null,{"$f":"4-код","v":"Б"},{"$f":"4-кодМәтіні","v":"Бар"},null,null,{"$f":"5-код","v":"М"},{"$f":"5-кодМәтіні","v":"Мектепте емес"}]
[]
[null,{"$f":"DATE(ЖылдықКүнтізбе,11,1)","v":"2012-11-01"},null,{"$f":"TEXT(WEEKDAY(DATE(ЖылдықКүнтізбе,11,1),1),\"aaa\")","v":"Thu"},{"$f":"TEXT(WEEKDAY(DATE(ЖылдықКүнтізбе,11,2),1),\"aaa\")","v":"Fri"},{"$f":"TEXT(WEEKDAY(DATE(ЖылдықКүнтізбе,11,3),1),\"aaa\")","v":"Sat"},{"$f":"TEXT(WEEKDAY(DATE(ЖылдықКүнтізбе,11,4),1),\"aaa\")","v":"Sun"},{"$f":"TEXT(WEEKDAY(DATE(ЖылдықКүнтізбе,11,5),1),\"aaa\")","v":"Mon"},{"$f":"TEXT(WEEKDAY(DATE(ЖылдықКүнтізбе,11,6),1),\"aaa\")","v":"Tue"},{"$f":"TEXT(WEEKDAY(DATE(ЖылдықКүнтізбе,11,7),1),\"aaa\")","v":"Wed"},{"$f":"TEXT(WEEKDAY(DATE(ЖылдықКүнтізбе,11,8),1),\"aaa\")","v":"Thu"},{"$f":"TEXT(WEEKDAY(DATE(ЖылдықКүнтізбе,11,9),1),\"aaa\")","v":"Fri"},{"$f":"TEXT(WEEKDAY(DATE(ЖылдықКүнтізбе,11,10),1),\"aaa\")","v":"Sat"},{"$f":"TEXT(WEEKDAY(DATE(ЖылдықКүнтізбе,11,11),1),\"aaa\")","v":"Sun"},{"$f":"TEXT(WEEKDAY(DATE(ЖылдықКүнтізбе,11,12),1),\"aaa\")","v":"Mon"},{"$f":"TEXT(WEEKDAY(DATE(ЖылдықКүнтізбе,11,13),1),\"aaa\")","v":"Tue"},{"$f":"TEXT(WEEKDAY(DATE(ЖылдықКүнтізбе,11,14),1),\"aaa\")","v":"Wed"},{"$f":"TEXT(WEEKDAY(DATE(ЖылдықКүнтізбе,11,15),1),\"aaa\")","v":"Thu"},{"$f":"TEXT(WEEKDAY(DATE(ЖылдықКүнтізбе,11,16),1),\"aaa\")","v":"Fri"},{"$f":"TEXT(WEEKDAY(DATE(ЖылдықКүнтізбе,11,17),1),\"aaa\")","v":"Sat"},{"$f":"TEXT(WEEKDAY(DATE(ЖылдықКүнтізбе,11,18),1),\"aaa\")","v":"Sun"},{"$f":"TEXT(WEEKDAY(DATE(ЖылдықКүнтізбе,11,19),1),\"aaa\")","v":"Mon"},{"$f":"TEXT(WEEKDAY(DATE(ЖылдықКүнтізбе,11,20),1),\"aaa\")","v":"Tue"},{"$f":"TEXT(WEEKDAY(DATE(ЖылдықКүнтізбе,11,21),1),\"aaa\")","v":"Wed"},{"$f":"TEXT(WEEKDAY(DATE(ЖылдықКүнтізбе,11,22),1),\"aaa\")","v":"Thu"},{"$f":"TEXT(WEEKDAY(DATE(ЖылдықКүнтізбе,11,23),1),\"aaa\")","v":"Fri"},{"$f":"TEXT(WEEKDAY(DATE(ЖылдықКүнтізбе,11,24),1),\"aaa\")","v":"Sat"},{"$f":"TEXT(WEEKDAY(DATE(ЖылдықКүнтізбе,11,25),1),\"aaa\")","v":"Sun"},{"$f":"TEXT(WEEKDAY(DATE(ЖылдықКүнтізбе,11,26),1),\"aaa\")","v":"Mon"},{"$f":"TEXT(WEEKDAY(DATE(ЖылдықКүнтізбе,11,27),1),\"aaa\")","v":"Tue"},{"$f":"TEXT(WEEKDAY(DATE(ЖылдықКүнтізбе,11,28),1),\"aaa\")","v":"Wed"},{"$f":"TEXT(WEEKDAY(DATE(ЖылдықКүнтізбе,11,29),1),\"aaa\")","v":"Thu"},{"$f":"TEXT(WEEKDAY(DATE(ЖылдықКүнтізбе,11,30),1),\"aaa\")","v":"Fri"},null,"Қорытындылар"]
[null,"Оқушы идентификаторы","Оқушы аты","1","2","3","4","5","6","7","8","9","10","11","12","13","14","15","16","17","18","19","20","21","22","23","24","25","26","27","28","29","30"," ","К","P","Pi","Б","Болмаған күндері"]
[null,null,{"$f":"IFERROR(VLOOKUP(ҚарашаҚатысу[[#This Row],[Оқушы идентификаторы]],СтуденттерТізімі[],18,FALSE),\"\")","v":""},{"$nulls":31},{"$f":"COUNTIF(ҚарашаҚатысу[[#This Row],[1]:[ ]],1-код)","v":0},{"$f":"COUNTIF(ҚарашаҚатысу[[#This Row],[1]:[ ]],2-код)","v":0},{"$f":"COUNTIF(ҚарашаҚатысу[[#This Row],[1]:[ ]],3-код)","v":0},{"$f":"COUNTIF(ҚарашаҚатысу[[#This Row],[1]:[ ]],4-код)","v":0},{"$f":"SUM(ҚыркүйекҚатысу[[#This Row],[P]:[Pi]])","v":0}]
[null,null,{"$f":"IFERROR(VLOOKUP(ҚарашаҚатысу[[#This Row],[Оқушы идентификаторы]],СтуденттерТізімі[],18,FALSE),\"\")","v":""},{"$nulls":31},{"$f":"COUNTIF(ҚарашаҚатысу[[#This Row],[1]:[ ]],1-код)","v":0},{"$f":"COUNTIF(ҚарашаҚатысу[[#This Row],[1]:[ ]],2-код)","v":0},{"$f":"COUNTIF(ҚарашаҚатысу[[#This Row],[1]:[ ]],3-код)","v":0},{"$f":"COUNTIF(ҚарашаҚатысу[[#This Row],[1]:[ ]],4-код)","v":0},{"$f":"SUM(ҚыркүйекҚатысу[[#This Row],[P]:[Pi]])","v":0}]
[null,null,{"$f":"IFERROR(VLOOKUP(ҚарашаҚатысу[[#This Row],[Оқушы идентификаторы]],СтуденттерТізімі[],18,FALSE),\"\")","v":""},{"$nulls":31},{"$f":"COUNTIF(ҚарашаҚатысу[[#This Row],[1]:[ ]],1-код)","v":0},{"$f":"COUNTIF(ҚарашаҚатысу[[#This Row],[1]:[ ]],2-код)","v":0},{"$f":"COUNTIF(ҚарашаҚатысу[[#This Row],[1]:[ ]],3-код)","v":0},{"$f":"COUNTIF(ҚарашаҚатысу[[#This Row],[1]:[ ]],4-код)","v":0},{"$f":"SUM(ҚыркүйекҚатысу[[#This Row],[P]:[Pi]])","v":0}]
[null,null,{"$f":"IFERROR(VLOOKUP(ҚарашаҚатысу[[#This Row],[Оқушы идентификаторы]],СтуденттерТізімі[],18,FALSE),\"\")","v":""},{"$nulls":31},{"$f":"COUNTIF(ҚарашаҚатысу[[#This Row],[1]:[ ]],1-код)","v":0},{"$f":"COUNTIF(ҚарашаҚатысу[[#This Row],[1]:[ ]],2-код)","v":0},{"$f":"COUNTIF(ҚарашаҚатысу[[#This Row],[1]:[ ]],3-код)","v":0},{"$f":"COUNTIF(ҚарашаҚатысу[[#This Row],[1]:[ ]],4-код)","v":0},{"$f":"SUM(ҚыркүйекҚатысу[[#This Row],[P]:[Pi]])","v":0}]
[null,null,{"$f":"IFERROR(VLOOKUP(ҚарашаҚатысу[[#This Row],[Оқушы идентификаторы]],СтуденттерТізімі[],18,FALSE),\"\")","v":""},{"$nulls":31},{"$f":"COUNTIF(ҚарашаҚатысу[[#This Row],[1]:[ ]],1-код)","v":0},{"$f":"COUNTIF(ҚарашаҚатысу[[#This Row],[1]:[ ]],2-код)","v":0},{"$f":"COUNTIF(ҚарашаҚатысу[[#This Row],[1]:[ ]],3-код)","v":0},{"$f":"COUNTIF(ҚарашаҚатысу[[#This Row],[1]:[ ]],4-код)","v":0},{"$f":"SUM(ҚыркүйекҚатысу[[#This Row],[P]:[Pi]])","v":0}]
[null,null,"Жалпы болмаған күндері",{"$f":"COUNTIF(ҚарашаҚатысу[1],\"Pi\")+COUNTIF(ҚарашаҚатысу[1],\"P\")","v":0},{"$f":"COUNTIF(ҚарашаҚатысу[2],\"Pi\")+COUNTIF(ҚарашаҚатысу[2],\"P\")","v":0},{"$f":"COUNTIF(ҚарашаҚатысу[3],\"Pi\")+COUNTIF(ҚарашаҚатысу[3],\"P\")","v":0},{"$f":"COUNTIF(ҚарашаҚатысу[4],\"Pi\")+COUNTIF(ҚарашаҚатысу[4],\"P\")","v":0},{"$f":"COUNTIF(ҚарашаҚатысу[5],\"Pi\")+COUNTIF(ҚарашаҚатысу[5],\"P\")","v":0},{"$f":"COUNTIF(ҚарашаҚатысу[6],\"Pi\")+COUNTIF(ҚарашаҚатысу[6],\"P\")","v":0},{"$f":"COUNTIF(ҚарашаҚатысу[7],\"Pi\")+COUNTIF(ҚарашаҚатысу[7],\"P\")","v":0},{"$f":"COUNTIF(ҚарашаҚатысу[8],\"Pi\")+COUNTIF(ҚарашаҚатысу[8],\"P\")","v":0},{"$f":"COUNTIF(ҚарашаҚатысу[9],\"Pi\")+COUNTIF(ҚарашаҚатысу[9],\"P\")","v":0},{"$f":"COUNTIF(ҚарашаҚатысу[10],\"Pi\")+COUNTIF(ҚарашаҚатысу[10],\"P\")","v":0},{"$f":"COUNTIF(ҚарашаҚатысу[11],\"Pi\")+COUNTIF(ҚарашаҚатысу[11],\"P\")","v":0},{"$f":"COUNTIF(ҚарашаҚатысу[12],\"Pi\")+COUNTIF(ҚарашаҚатысу[12],\"P\")","v":0},{"$f":"COUNTIF(ҚарашаҚатысу[13],\"Pi\")+COUNTIF(ҚарашаҚатысу[13],\"P\")","v":0},{"$f":"COUNTIF(ҚарашаҚатысу[14],\"Pi\")+COUNTIF(ҚарашаҚатысу[14],\"P\")","v":0},{"$f":"COUNTIF(ҚарашаҚатысу[15],\"Pi\")+COUNTIF(ҚарашаҚатысу[15],\"P\")","v":0},{"$f":"COUNTIF(ҚарашаҚатысу[16],\"Pi\")+COUNTIF(ҚарашаҚатысу[16],\"P\")","v":0},{"$f":"COUNTIF(ҚарашаҚатысу[17],\"Pi\")+COUNTIF(ҚарашаҚатысу[17],\"P\")","v":0},{"$f":"COUNTIF(ҚарашаҚатысу[18],\"Pi\")+COUNTIF(ҚарашаҚатысу[18],\"P\")","v":0},{"$f":"COUNTIF(ҚарашаҚатысу[19],\"Pi\")+COUNTIF(ҚарашаҚатысу[19],\"P\")","v":0},{"$f":"COUNTIF(ҚарашаҚатысу[20],\"Pi\")+COUNTIF(ҚарашаҚатысу[20],\"P\")","v":0},{"$f":"COUNTIF(ҚарашаҚатысу[21],\"Pi\")+COUNTIF(ҚарашаҚатысу[21],\"P\")","v":0},{"$f":"COUNTIF(ҚарашаҚатысу[22],\"Pi\")+COUNTIF(ҚарашаҚатысу[22],\"P\")","v":0},{"$f":"COUNTIF(ҚарашаҚатысу[23],\"Pi\")+COUNTIF(ҚарашаҚатысу[23],\"P\")","v":0},{"$f":"COUNTIF(ҚарашаҚатысу[24],\"Pi\")+COUNTIF(ҚарашаҚатысу[24],\"P\")","v":0},{"$f":"COUNTIF(ҚарашаҚатысу[25],\"Pi\")+COUNTIF(ҚарашаҚатысу[25],\"P\")","v":0},{"$f":"COUNTIF(ҚарашаҚатысу[26],\"Pi\")+COUNTIF(ҚарашаҚатысу[26],\"P\")","v":0},{"$f":"COUNTIF(ҚарашаҚатысу[27],\"Pi\")+COUNTIF(ҚарашаҚатысу[27],\"P\")","v":0},{"$f":"COUNTIF(ҚарашаҚатысу[28],\"Pi\")+COUNTIF(ҚарашаҚатысу[28],\"P\")","v":0},{"$f":"COUNTIF(ҚарашаҚатысу[29],\"Pi\")+COUNTIF(ҚарашаҚатысу[29],\"P\")","v":0},{"$f":"COUNTIF(ҚарашаҚатысу[30],\"Pi\")+COUNTIF(ҚарашаҚатысу[30],\"P\")","v":0},{"$f":"COUNTIF(ҚарашаҚатысу[[ ]],\"Pi\")+COUNTIF(ҚарашаҚатысу[[ ]],\"P\")","v":0},{"$f":"SUBTOTAL(109,ҚарашаҚатысу[К])","v":0},{"$f":"SUBTOTAL(109,ҚарашаҚатысу[P])","v":0},{"$f":"SUBTOTAL(109,ҚарашаҚатысу[Pi])","v":0},{"$f":"SUBTOTAL(109,ҚарашаҚатысу[Б])","v":0},{"$f":"SUBTOTAL(109,ҚарашаҚатысу[Болмаған күндері])","v":0}]

{"sheet":"Желтоқсан","index":6,"n_rows":12,"n_cols":39,"rows_kept":12,"merged":[[4,34,4,38]]}
["ОҚУШЫНЫҢ ҚАТЫСУ ЖАЗБАСЫ",{"$nulls":36},"Оқу жылының басы:",{"$f":"ЖылдықКүнтізбе","v":2012}]
[]
[null,null,{"$f":"ТүстіКілтМәтін","v":"ТҮСТІ ПЕРНЕ"},{"$f":"1-код","v":"К"},{"$f":"1-кодМәтіні","v":"Кешіккен"},null,null,{"$f":"2-код","v":"P"},{"$f":"2-кодМәтіні","v":"Кешірілген"},null,null,{"$f":"3-код","v":"Pi"},{"$f":"3-кодМәтіні","v":"Кешірілмеген"},null,null,{"$f":"4-код","v":"Б"},{"$f":"4-кодМәтіні","v":"Бар"},null,null,{"$f":"5-код","v":"М"},{"$f":"5-кодМәтіні","v":"Мектепте емес"}]
[]
[null,{"$f":"DATE(ЖылдықКүнтізбе,12,1)","v":"2012-12-01"},null,{"$f":"TEXT(WEEKDAY(DATE(ЖылдықКүнтізбе,12,1),1),\"aaa\")","v":"Sat"},{"$f":"TEXT(WEEKDAY(DATE(ЖылдықКүнтізбе,12,2),1),\"aaa\")","v":"Sun"},{"$f":"TEXT(WEEKDAY(DATE(ЖылдықКүнтізбе,12,3),1),\"aaa\")","v":"Mon"},{"$f":"TEXT(WEEKDAY(DATE(ЖылдықКүнтізбе,12,4),1),\"aaa\")","v":"Tue"},{"$f":"TEXT(WEEKDAY(DATE(ЖылдықКүнтізбе,12,5),1),\"aaa\")","v":"Wed"},{"$f":"TEXT(WEEKDAY(DATE(ЖылдықКүнтізбе,12,6),1),\"aaa\")","v":"Thu"},{"$f":"TEXT(WEEKDAY(DATE(ЖылдықКүнтізбе,12,7),1),\"aaa\")","v":"Fri"},{"$f":"TEXT(WEEKDAY(DATE(ЖылдықКүнтізбе,12,8),1),\"aaa\")","v":"Sat"},{"$f":"TEXT(WEEKDAY(DATE(ЖылдықКүнтізбе,12,9),1),\"aaa\")","v":"Sun"},{"$f":"TEXT(WEEKDAY(DATE(ЖылдықКүнтізбе,12,10),1),\"aaa\")","v":"Mon"},{"$f":"TEXT(WEEKDAY(DATE(ЖылдықКүнтізбе,12,11),1),\"aaa\")","v":"Tue"},{"$f":"TEXT(WEEKDAY(DATE(ЖылдықКүнтізбе,12,12),1),\"aaa\")","v":"Wed"},{"$f":"TEXT(WEEKDAY(DATE(ЖылдықКүнтізбе,12,13),1),\"aaa\")","v":"Thu"},{"$f":"TEXT(WEEKDAY(DATE(ЖылдықКүнтізбе,12,14),1),\"aaa\")","v":"Fri"},{"$f":"TEXT(WEEKDAY(DATE(ЖылдықКүнтізбе,12,15),1),\"aaa\")","v":"Sat"},{"$f":"TEXT(WEEKDAY(DATE(ЖылдықКүнтізбе,12,16),1),\"aaa\")","v":"Sun"},{"$f":"TEXT(WEEKDAY(DATE(ЖылдықКүнтізбе,12,17),1),\"aaa\")","v":"Mon"},{"$f":"TEXT(WEEKDAY(DATE(ЖылдықКүнтізбе,12,18),1),\"aaa\")","v":"Tue"},{"$f":"TEXT(WEEKDAY(DATE(ЖылдықКүнтізбе,12,19),1),\"aaa\")","v":"Wed"},{"$f":"TEXT(WEEKDAY(DATE(ЖылдықКүнтізбе,12,20),1),\"aaa\")","v":"Thu"},{"$f":"TEXT(WEEKDAY(DATE(ЖылдықКүнтізбе,12,21),1),\"aaa\")","v":"Fri"},{"$f":"TEXT(WEEKDAY(DATE(ЖылдықКүнтізбе,12,22),1),\"aaa\")","v":"Sat"},{"$f":"TEXT(WEEKDAY(DATE(ЖылдықКүнтізбе,12,23),1),\"aaa\")","v":"Sun"},{"$f":"TEXT(WEEKDAY(DATE(ЖылдықКүнтізбе,12,24),1),\"aaa\")","v":"Mon"},{"$f":"TEXT(WEEKDAY(DATE(ЖылдықКүнтізбе,12,25),1),\"aaa\")","v":"Tue"},{"$f":"TEXT(WEEKDAY(DATE(ЖылдықКүнтізбе,12,26),1),\"aaa\")","v":"Wed"},{"$f":"TEXT(WEEKDAY(DATE(ЖылдықКүнтізбе,12,27),1),\"aaa\")","v":"Thu"},{"$f":"TEXT(WEEKDAY(DATE(ЖылдықКүнтізбе,12,28),1),\"aaa\")","v":"Fri"},{"$f":"TEXT(WEEKDAY(DATE(ЖылдықКүнтізбе,12,29),1),\"aaa\")","v":"Sat"},{"$f":"TEXT(WEEKDAY(DATE(ЖылдықКүнтізбе,12,30),1),\"aaa\")","v":"Sun"},{"$f":"TEXT(WEEKDAY(DATE(ЖылдықКүнтізбе,12,31),1),\"aaa\")","v":"Mon"},"Қорытындылар"]
[null,"Оқушы идентификаторы","Оқушы аты","1","2","3","4","5","6","7","8","9","10","11","12","13","14","15","16","17","18","19","20","21","22","23","24","25","26","27","28","29","30","31","К","P","Pi","Б","Болмаған күндері"]
[null,null,{"$f":"IFERROR(VLOOKUP(ЖелтоқсанҚатысу[[#This Row],[Оқушы идентификаторы]],СтуденттерТізімі[],18,FALSE),\"\")","v":""},{"$nulls":31},{"$f":"COUNTIF(ЖелтоқсанҚатысу[[#This Row],[1]:[31]],1-код)","v":0},{"$f":"COUNTIF(ЖелтоқсанҚатысу[[#This Row],[1]:[31]],2-код)","v":0},{"$f":"COUNTIF(ЖелтоқсанҚатысу[[#This Row],[1]:[31]],3-код)","v":0},{"$f":"COUNTIF(ЖелтоқсанҚатысу[[#This Row],[1]:[31]],4-код)","v":0},{"$f":"SUM(ҚыркүйекҚатысу[[#This Row],[P]:[Pi]])","v":0}]
[null,null,{"$f":"IFERROR(VLOOKUP(ЖелтоқсанҚатысу[[#This Row],[Оқушы идентификаторы]],СтуденттерТізімі[],18,FALSE),\"\")","v":""},{"$nulls":31},{"$f":"COUNTIF(ЖелтоқсанҚатысу[[#This Row],[1]:[31]],1-код)","v":0},{"$f":"COUNTIF(ЖелтоқсанҚатысу[[#This Row],[1]:[31]],2-код)","v":0},{"$f":"COUNTIF(ЖелтоқсанҚатысу[[#This Row],[1]:[31]],3-код)","v":0},{"$f":"COUNTIF(ЖелтоқсанҚатысу[[#This Row],[1]:[31]],4-код)","v":0},{"$f":"SUM(ҚыркүйекҚатысу[[#This Row],[P]:[Pi]])","v":0}]
[null,null,{"$f":"IFERROR(VLOOKUP(ЖелтоқсанҚатысу[[#This Row],[Оқушы идентификаторы]],СтуденттерТізімі[],18,FALSE),\"\")","v":""},{"$nulls":31},{"$f":"COUNTIF(ЖелтоқсанҚатысу[[#This Row],[1]:[31]],1-код)","v":0},{"$f":"COUNTIF(ЖелтоқсанҚатысу[[#This Row],[1]:[31]],2-код)","v":0},{"$f":"COUNTIF(ЖелтоқсанҚатысу[[#This Row],[1]:[31]],3-код)","v":0},{"$f":"COUNTIF(ЖелтоқсанҚатысу[[#This Row],[1]:[31]],4-код)","v":0},{"$f":"SUM(ҚыркүйекҚатысу[[#This Row],[P]:[Pi]])","v":0}]
[null,null,{"$f":"IFERROR(VLOOKUP(ЖелтоқсанҚатысу[[#This Row],[Оқушы идентификаторы]],СтуденттерТізімі[],18,FALSE),\"\")","v":""},{"$nulls":31},{"$f":"COUNTIF(ЖелтоқсанҚатысу[[#This Row],[1]:[31]],1-код)","v":0},{"$f":"COUNTIF(ЖелтоқсанҚатысу[[#This Row],[1]:[31]],2-код)","v":0},{"$f":"COUNTIF(ЖелтоқсанҚатысу[[#This Row],[1]:[31]],3-код)","v":0},{"$f":"COUNTIF(ЖелтоқсанҚатысу[[#This Row],[1]:[31]],4-код)","v":0},{"$f":"SUM(ҚыркүйекҚатысу[[#This Row],[P]:[Pi]])","v":0}]
[null,null,{"$f":"IFERROR(VLOOKUP(ЖелтоқсанҚатысу[[#This Row],[Оқушы идентификаторы]],СтуденттерТізімі[],18,FALSE),\"\")","v":""},{"$nulls":31},{"$f":"COUNTIF(ЖелтоқсанҚатысу[[#This Row],[1]:[31]],1-код)","v":0},{"$f":"COUNTIF(ЖелтоқсанҚатысу[[#This Row],[1]:[31]],2-код)","v":0},{"$f":"COUNTIF(ЖелтоқсанҚатысу[[#This Row],[1]:[31]],3-код)","v":0},{"$f":"COUNTIF(ЖелтоқсанҚатысу[[#This Row],[1]:[31]],4-код)","v":0},{"$f":"SUM(ҚыркүйекҚатысу[[#This Row],[P]:[Pi]])","v":0}]
[null,null,"Жалпы болмаған күндері",{"$f":"COUNTIF(ЖелтоқсанҚатысу[1],\"Pi\")+COUNTIF(ЖелтоқсанҚатысу[1],\"P\")","v":0},{"$f":"COUNTIF(ЖелтоқсанҚатысу[2],\"Pi\")+COUNTIF(ЖелтоқсанҚатысу[2],\"P\")","v":0},{"$f":"COUNTIF(ЖелтоқсанҚатысу[3],\"Pi\")+COUNTIF(ЖелтоқсанҚатысу[3],\"P\")","v":0},{"$f":"COUNTIF(ЖелтоқсанҚатысу[4],\"Pi\")+COUNTIF(ЖелтоқсанҚатысу[4],\"P\")","v":0},{"$f":"COUNTIF(ЖелтоқсанҚатысу[5],\"Pi\")+COUNTIF(ЖелтоқсанҚатысу[5],\"P\")","v":0},{"$f":"COUNTIF(ЖелтоқсанҚатысу[6],\"Pi\")+COUNTIF(ЖелтоқсанҚатысу[6],\"P\")","v":0},{"$f":"COUNTIF(ЖелтоқсанҚатысу[7],\"Pi\")+COUNTIF(ЖелтоқсанҚатысу[7],\"P\")","v":0},{"$f":"COUNTIF(ЖелтоқсанҚатысу[8],\"Pi\")+COUNTIF(ЖелтоқсанҚатысу[8],\"P\")","v":0},{"$f":"COUNTIF(ЖелтоқсанҚатысу[9],\"Pi\")+COUNTIF(ЖелтоқсанҚатысу[9],\"P\")","v":0},{"$f":"COUNTIF(ЖелтоқсанҚатысу[10],\"Pi\")+COUNTIF(ЖелтоқсанҚатысу[10],\"P\")","v":0},{"$f":"COUNTIF(ЖелтоқсанҚатысу[11],\"Pi\")+COUNTIF(ЖелтоқсанҚатысу[11],\"P\")","v":0},{"$f":"COUNTIF(ЖелтоқсанҚатысу[12],\"Pi\")+COUNTIF(ЖелтоқсанҚатысу[12],\"P\")","v":0},{"$f":"COUNTIF(ЖелтоқсанҚатысу[13],\"Pi\")+COUNTIF(ЖелтоқсанҚатысу[13],\"P\")","v":0},{"$f":"COUNTIF(ЖелтоқсанҚатысу[14],\"Pi\")+COUNTIF(ЖелтоқсанҚатысу[14],\"P\")","v":0},{"$f":"COUNTIF(ЖелтоқсанҚатысу[15],\"Pi\")+COUNTIF(ЖелтоқсанҚатысу[15],\"P\")","v":0},{"$f":"COUNTIF(ЖелтоқсанҚатысу[16],\"Pi\")+COUNTIF(ЖелтоқсанҚатысу[16],\"P\")","v":0},{"$f":"COUNTIF(ЖелтоқсанҚатысу[17],\"Pi\")+COUNTIF(ЖелтоқсанҚатысу[17],\"P\")","v":0},{"$f":"COUNTIF(ЖелтоқсанҚатысу[18],\"Pi\")+COUNTIF(ЖелтоқсанҚатысу[18],\"P\")","v":0},{"$f":"COUNTIF(ЖелтоқсанҚатысу[19],\"Pi\")+COUNTIF(ЖелтоқсанҚатысу[19],\"P\")","v":0},{"$f":"COUNTIF(ЖелтоқсанҚатысу[20],\"Pi\")+COUNTIF(ЖелтоқсанҚатысу[20],\"P\")","v":0},{"$f":"COUNTIF(ЖелтоқсанҚатысу[21],\"Pi\")+COUNTIF(ЖелтоқсанҚатысу[21],\"P\")","v":0},{"$f":"COUNTIF(ЖелтоқсанҚатысу[22],\"Pi\")+COUNTIF(ЖелтоқсанҚатысу[22],\"P\")","v":0},{"$f":"COUNTIF(ЖелтоқсанҚатысу[23],\"Pi\")+COUNTIF(ЖелтоқсанҚатысу[23],\"P\")","v":0},{"$f":"COUNTIF(ЖелтоқсанҚатысу[24],\"Pi\")+COUNTIF(ЖелтоқсанҚатысу[24],\"P\")","v":0},{"$f":"COUNTIF(ЖелтоқсанҚатысу[25],\"Pi\")+COUNTIF(ЖелтоқсанҚатысу[25],\"P\")","v":0},{"$f":"COUNTIF(ЖелтоқсанҚатысу[26],\"Pi\")+COUNTIF(ЖелтоқсанҚатысу[26],\"P\")","v":0},{"$f":"COUNTIF(ЖелтоқсанҚатысу[27],\"Pi\")+COUNTIF(ЖелтоқсанҚатысу[27],\"P\")","v":0},{"$f":"COUNTIF(ЖелтоқсанҚатысу[28],\"Pi\")+COUNTIF(ЖелтоқсанҚатысу[28],\"P\")","v":0},{"$f":"COUNTIF(ЖелтоқсанҚатысу[29],\"Pi\")+COUNTIF(ЖелтоқсанҚатысу[29],\"P\")","v":0},{"$f":"COUNTIF(ЖелтоқсанҚатысу[30],\"Pi\")+COUNTIF(ЖелтоқсанҚатысу[30],\"P\")","v":0},{"$f":"COUNTIF(ЖелтоқсанҚатысу[31],\"Pi\")+COUNTIF(ЖелтоқсанҚатысу[31],\"P\")","v":0},{"$f":"SUBTOTAL(109,ЖелтоқсанҚатысу[К])","v":0},{"$f":"SUBTOTAL(109,ЖелтоқсанҚатысу[P])","v":0},{"$f":"SUBTOTAL(109,ЖелтоқсанҚатысу[Pi])","v":0},{"$f":"SUBTOTAL(109,ЖелтоқсанҚатысу[Б])","v":0},{"$f":"SUBTOTAL(109,ЖелтоқсанҚатысу[Болмаған күндері])","v":0}]

{"sheet":"Қаңтар","index":7,"n_rows":12,"n_cols":39,"rows_kept":12,"merged":[[4,34,4,38]]}
["ОҚУШЫНЫҢ ҚАТЫСУ ЖАЗБАСЫ",{"$nulls":36},"Оқу жылының басы:",{"$f":"ЖылдықКүнтізбе","v":2012}]
[]
[null,null,{"$f":"ТүстіКілтМәтін","v":"ТҮСТІ ПЕРНЕ"},{"$f":"1-код","v":"К"},{"$f":"1-кодМәтіні","v":"Кешіккен"},null,null,{"$f":"2-код","v":"P"},{"$f":"2-кодМәтіні","v":"Кешірілген"},null,null,{"$f":"3-код","v":"Pi"},{"$f":"3-кодМәтіні","v":"Кешірілмеген"},null,null,{"$f":"4-код","v":"Б"},{"$f":"4-кодМәтіні","v":"Бар"},null,null,{"$f":"5-код","v":"М"},{"$f":"5-кодМәтіні","v":"Мектепте емес"}]
[]
[null,{"$f":"DATE(ЖылдықКүнтізбе+1,1,1)","v":"2013-01-01"},null,{"$f":"TEXT(WEEKDAY(DATE(ЖылдықКүнтізбе+1,1,1),1),\"aaa\")","v":"Tue"},{"$f":"TEXT(WEEKDAY(DATE(ЖылдықКүнтізбе+1,1,2),1),\"aaa\")","v":"Wed"},{"$f":"TEXT(WEEKDAY(DATE(ЖылдықКүнтізбе+1,1,3),1),\"aaa\")","v":"Thu"},{"$f":"TEXT(WEEKDAY(DATE(ЖылдықКүнтізбе+1,1,4),1),\"aaa\")","v":"Fri"},{"$f":"TEXT(WEEKDAY(DATE(ЖылдықКүнтізбе+1,1,5),1),\"aaa\")","v":"Sat"},{"$f":"TEXT(WEEKDAY(DATE(ЖылдықКүнтізбе+1,1,6),1),\"aaa\")","v":"Sun"},{"$f":"TEXT(WEEKDAY(DATE(ЖылдықКүнтізбе+1,1,7),1),\"aaa\")","v":"Mon"},{"$f":"TEXT(WEEKDAY(DATE(ЖылдықКүнтізбе+1,1,8),1),\"aaa\")","v":"Tue"},{"$f":"TEXT(WEEKDAY(DATE(ЖылдықКүнтізбе+1,1,9),1),\"aaa\")","v":"Wed"},{"$f":"TEXT(WEEKDAY(DATE(ЖылдықКүнтізбе+1,1,10),1),\"aaa\")","v":"Thu"},{"$f":"TEXT(WEEKDAY(DATE(ЖылдықКүнтізбе+1,1,11),1),\"aaa\")","v":"Fri"},{"$f":"TEXT(WEEKDAY(DATE(ЖылдықКүнтізбе+1,1,12),1),\"aaa\")","v":"Sat"},{"$f":"TEXT(WEEKDAY(DATE(ЖылдықКүнтізбе+1,1,13),1),\"aaa\")","v":"Sun"},{"$f":"TEXT(WEEKDAY(DATE(ЖылдықКүнтізбе+1,1,14),1),\"aaa\")","v":"Mon"},{"$f":"TEXT(WEEKDAY(DATE(ЖылдықКүнтізбе+1,1,15),1),\"aaa\")","v":"Tue"},{"$f":"TEXT(WEEKDAY(DATE(ЖылдықКүнтізбе+1,1,16),1),\"aaa\")","v":"Wed"},{"$f":"TEXT(WEEKDAY(DATE(ЖылдықКүнтізбе+1,1,17),1),\"aaa\")","v":"Thu"},{"$f":"TEXT(WEEKDAY(DATE(ЖылдықКүнтізбе+1,1,18),1),\"aaa\")","v":"Fri"},{"$f":"TEXT(WEEKDAY(DATE(ЖылдықКүнтізбе+1,1,19),1),\"aaa\")","v":"Sat"},{"$f":"TEXT(WEEKDAY(DATE(ЖылдықКүнтізбе+1,1,20),1),\"aaa\")","v":"Sun"},{"$f":"TEXT(WEEKDAY(DATE(ЖылдықКүнтізбе+1,1,21),1),\"aaa\")","v":"Mon"},{"$f":"TEXT(WEEKDAY(DATE(ЖылдықКүнтізбе+1,1,22),1),\"aaa\")","v":"Tue"},{"$f":"TEXT(WEEKDAY(DATE(ЖылдықКүнтізбе+1,1,23),1),\"aaa\")","v":"Wed"},{"$f":"TEXT(WEEKDAY(DATE(ЖылдықКүнтізбе+1,1,24),1),\"aaa\")","v":"Thu"},{"$f":"TEXT(WEEKDAY(DATE(ЖылдықКүнтізбе+1,1,25),1),\"aaa\")","v":"Fri"},{"$f":"TEXT(WEEKDAY(DATE(ЖылдықКүнтізбе+1,1,26),1),\"aaa\")","v":"Sat"},{"$f":"TEXT(WEEKDAY(DATE(ЖылдықКүнтізбе+1,1,27),1),\"aaa\")","v":"Sun"},{"$f":"TEXT(WEEKDAY(DATE(ЖылдықКүнтізбе+1,1,28),1),\"aaa\")","v":"Mon"},{"$f":"TEXT(WEEKDAY(DATE(ЖылдықКүнтізбе+1,1,29),1),\"aaa\")","v":"Tue"},{"$f":"TEXT(WEEKDAY(DATE(ЖылдықКүнтізбе+1,1,30),1),\"aaa\")","v":"Wed"},{"$f":"TEXT(WEEKDAY(DATE(ЖылдықКүнтізбе+1,1,31),1),\"aaa\")","v":"Thu"},"Қорытындылар"]
[null,"Оқушы идентификаторы","Оқушы аты","1","2","3","4","5","6","7","8","9","10","11","12","13","14","15","16","17","18","19","20","21","22","23","24","25","26","27","28","29","30","31","К","P","Pi","Б","Болмаған күндері"]
[null,null,{"$f":"IFERROR(VLOOKUP(ҚаңтарҚатысу[[#This Row],[Оқушы идентификаторы]],СтуденттерТізімі[],18,FALSE),\"\")","v":""},{"$nulls":31},{"$f":"COUNTIF(ҚаңтарҚатысу[[#This Row],[1]:[31]],1-код)","v":0},{"$f":"COUNTIF(ҚаңтарҚатысу[[#This Row],[1]:[31]],2-код)","v":0},{"$f":"COUNTIF(ҚаңтарҚатысу[[#This Row],[1]:[31]],3-код)","v":0},{"$f":"COUNTIF(ҚаңтарҚатысу[[#This Row],[1]:[31]],4-код)","v":0},{"$f":"SUM(ҚыркүйекҚатысу[[#This Row],[P]:[Pi]])","v":0}]
[null,null,{"$f":"IFERROR(VLOOKUP(ҚаңтарҚатысу[[#This Row],[Оқушы идентификаторы]],СтуденттерТізімі[],18,FALSE),\"\")","v":""},{"$nulls":31},{"$f":"COUNTIF(ҚаңтарҚатысу[[#This Row],[1]:[31]],1-код)","v":0},{"$f":"COUNTIF(ҚаңтарҚатысу[[#This Row],[1]:[31]],2-код)","v":0},{"$f":"COUNTIF(ҚаңтарҚатысу[[#This Row],[1]:[31]],3-код)","v":0},{"$f":"COUNTIF(ҚаңтарҚатысу[[#This Row],[1]:[31]],4-код)","v":0},{"$f":"SUM(ҚыркүйекҚатысу[[#This Row],[P]:[Pi]])","v":0}]
[null,null,{"$f":"IFERROR(VLOOKUP(ҚаңтарҚатысу[[#This Row],[Оқушы идентификаторы]],СтуденттерТізімі[],18,FALSE),\"\")","v":""},{"$nulls":31},{"$f":"COUNTIF(ҚаңтарҚатысу[[#This Row],[1]:[31]],1-код)","v":0},{"$f":"COUNTIF(ҚаңтарҚатысу[[#This Row],[1]:[31]],2-код)","v":0},{"$f":"COUNTIF(ҚаңтарҚатысу[[#This Row],[1]:[31]],3-код)","v":0},{"$f":"COUNTIF(ҚаңтарҚатысу[[#This Row],[1]:[31]],4-код)","v":0},{"$f":"SUM(ҚыркүйекҚатысу[[#This Row],[P]:[Pi]])","v":0}]
[null,null,{"$f":"IFERROR(VLOOKUP(ҚаңтарҚатысу[[#This Row],[Оқушы идентификаторы]],СтуденттерТізімі[],18,FALSE),\"\")","v":""},{"$nulls":31},{"$f":"COUNTIF(ҚаңтарҚатысу[[#This Row],[1]:[31]],1-код)","v":0},{"$f":"COUNTIF(ҚаңтарҚатысу[[#This Row],[1]:[31]],2-код)","v":0},{"$f":"COUNTIF(ҚаңтарҚатысу[[#This Row],[1]:[31]],3-код)","v":0},{"$f":"COUNTIF(ҚаңтарҚатысу[[#This Row],[1]:[31]],4-код)","v":0},{"$f":"SUM(ҚыркүйекҚатысу[[#This Row],[P]:[Pi]])","v":0}]
[null,null,{"$f":"IFERROR(VLOOKUP(ҚаңтарҚатысу[[#This Row],[Оқушы идентификаторы]],СтуденттерТізімі[],18,FALSE),\"\")","v":""},{"$nulls":31},{"$f":"COUNTIF(ҚаңтарҚатысу[[#This Row],[1]:[31]],1-код)","v":0},{"$f":"COUNTIF(ҚаңтарҚатысу[[#This Row],[1]:[31]],2-код)","v":0},{"$f":"COUNTIF(ҚаңтарҚатысу[[#This Row],[1]:[31]],3-код)","v":0},{"$f":"COUNTIF(ҚаңтарҚатысу[[#This Row],[1]:[31]],4-код)","v":0},{"$f":"SUM(ҚыркүйекҚатысу[[#This Row],[P]:[Pi]])","v":0}]
[null,null,"Жалпы болмаған күндері",{"$f":"COUNTIF(ҚаңтарҚатысу[1],\"Pi\")+COUNTIF(ҚаңтарҚатысу[1],\"P\")","v":0},{"$f":"COUNTIF(ҚаңтарҚатысу[2],\"Pi\")+COUNTIF(ҚаңтарҚатысу[2],\"P\")","v":0},{"$f":"COUNTIF(ҚаңтарҚатысу[3],\"Pi\")+COUNTIF(ҚаңтарҚатысу[3],\"P\")","v":0},{"$f":"COUNTIF(ҚаңтарҚатысу[4],\"Pi\")+COUNTIF(ҚаңтарҚатысу[4],\"P\")","v":0},{"$f":"COUNTIF(ҚаңтарҚатысу[5],\"Pi\")+COUNTIF(ҚаңтарҚатысу[5],\"P\")","v":0},{"$f":"COUNTIF(ҚаңтарҚатысу[6],\"Pi\")+COUNTIF(ҚаңтарҚатысу[6],\"P\")","v":0},{"$f":"COUNTIF(ҚаңтарҚатысу[7],\"Pi\")+COUNTIF(ҚаңтарҚатысу[7],\"P\")","v":0},{"$f":"COUNTIF(ҚаңтарҚатысу[8],\"Pi\")+COUNTIF(ҚаңтарҚатысу[8],\"P\")","v":0},{"$f":"COUNTIF(ҚаңтарҚатысу[9],\"Pi\")+COUNTIF(ҚаңтарҚатысу[9],\"P\")","v":0},{"$f":"COUNTIF(ҚаңтарҚатысу[10],\"Pi\")+COUNTIF(ҚаңтарҚатысу[10],\"P\")","v":0},{"$f":"COUNTIF(ҚаңтарҚатысу[11],\"Pi\")+COUNTIF(ҚаңтарҚатысу[11],\"P\")","v":0},{"$f":"COUNTIF(ҚаңтарҚатысу[12],\"Pi\")+COUNTIF(ҚаңтарҚатысу[12],\"P\")","v":0},{"$f":"COUNTIF(ҚаңтарҚатысу[13],\"Pi\")+COUNTIF(ҚаңтарҚатысу[13],\"P\")","v":0},{"$f":"COUNTIF(ҚаңтарҚатысу[14],\"Pi\")+COUNTIF(ҚаңтарҚатысу[14],\"P\")","v":0},{"$f":"COUNTIF(ҚаңтарҚатысу[15],\"Pi\")+COUNTIF(ҚаңтарҚатысу[15],\"P\")","v":0},{"$f":"COUNTIF(ҚаңтарҚатысу[16],\"Pi\")+COUNTIF(ҚаңтарҚатысу[16],\"P\")","v":0},{"$f":"COUNTIF(ҚаңтарҚатысу[17],\"Pi\")+COUNTIF(ҚаңтарҚатысу[17],\"P\")","v":0},{"$f":"COUNTIF(ҚаңтарҚатысу[18],\"Pi\")+COUNTIF(ҚаңтарҚатысу[18],\"P\")","v":0},{"$f":"COUNTIF(ҚаңтарҚатысу[19],\"Pi\")+COUNTIF(ҚаңтарҚатысу[19],\"P\")","v":0},{"$f":"COUNTIF(ҚаңтарҚатысу[20],\"Pi\")+COUNTIF(ҚаңтарҚатысу[20],\"P\")","v":0},{"$f":"COUNTIF(ҚаңтарҚатысу[21],\"Pi\")+COUNTIF(ҚаңтарҚатысу[21],\"P\")","v":0},{"$f":"COUNTIF(ҚаңтарҚатысу[22],\"Pi\")+COUNTIF(ҚаңтарҚатысу[22],\"P\")","v":0},{"$f":"COUNTIF(ҚаңтарҚатысу[23],\"Pi\")+COUNTIF(ҚаңтарҚатысу[23],\"P\")","v":0},{"$f":"COUNTIF(ҚаңтарҚатысу[24],\"Pi\")+COUNTIF(ҚаңтарҚатысу[24],\"P\")","v":0},{"$f":"COUNTIF(ҚаңтарҚатысу[25],\"Pi\")+COUNTIF(ҚаңтарҚатысу[25],\"P\")","v":0},{"$f":"COUNTIF(ҚаңтарҚатысу[26],\"Pi\")+COUNTIF(ҚаңтарҚатысу[26],\"P\")","v":0},{"$f":"COUNTIF(ҚаңтарҚатысу[27],\"Pi\")+COUNTIF(ҚаңтарҚатысу[27],\"P\")","v":0},{"$f":"COUNTIF(ҚаңтарҚатысу[28],\"Pi\")+COUNTIF(ҚаңтарҚатысу[28],\"P\")","v":0},{"$f":"COUNTIF(ҚаңтарҚатысу[29],\"Pi\")+COUNTIF(ҚаңтарҚатысу[29],\"P\")","v":0},{"$f":"COUNTIF(ҚаңтарҚатысу[30],\"Pi\")+COUNTIF(ҚаңтарҚатысу[30],\"P\")","v":0},{"$f":"COUNTIF(ҚаңтарҚатысу[31],\"Pi\")+COUNTIF(ҚаңтарҚатысу[31],\"P\")","v":0},{"$f":"SUBTOTAL(109,ҚаңтарҚатысу[К])","v":0},{"$f":"SUBTOTAL(109,ҚаңтарҚатысу[P])","v":0},{"$f":"SUBTOTAL(109,ҚаңтарҚатысу[Pi])","v":0},{"$f":"SUBTOTAL(109,ҚаңтарҚатысу[Б])","v":0},{"$f":"SUBTOTAL(109,ҚаңтарҚатысу[Болмаған күндері])","v":0}]

{"sheet":"Ақпан","index":8,"n_rows":12,"n_cols":39,"rows_kept":12,"merged":[[4,34,4,38]]}
["ОҚУШЫНЫҢ ҚАТЫСУ ЖАЗБАСЫ",{"$nulls":36},"Оқу жылының басы:",{"$f":"ЖылдықКүнтізбе","v":2012}]
[]
[null,null,{"$f":"ТүстіКілтМәтін","v":"ТҮСТІ ПЕРНЕ"},{"$f":"1-код","v":"К"},{"$f":"1-кодМәтіні","v":"Кешіккен"},null,null,{"$f":"2-код","v":"P"},{"$f":"2-кодМәтіні","v":"Кешірілген"},null,null,{"$f":"3-код","v":"Pi"},{"$f":"3-кодМәтіні","v":"Кешірілмеген"},null,null,{"$f":"4-код","v":"Б"},{"$f":"4-кодМәтіні","v":"Бар"},null,null,{"$f":"5-код","v":"М"},{"$f":"5-кодМәтіні","v":"Мектепте емес"}]
[]
[null,{"$f":"DATE(ЖылдықКүнтізбе+1,2,1)","v":"2013-02-01"},null,{"$f":"TEXT(WEEKDAY(DATE(ЖылдықКүнтізбе+1,2,1),1),\"aaa\")","v":"Fri"},{"$f":"TEXT(WEEKDAY(DATE(ЖылдықКүнтізбе+1,2,2),1),\"aaa\")","v":"Sat"},{"$f":"TEXT(WEEKDAY(DATE(ЖылдықКүнтізбе+1,2,3),1),\"aaa\")","v":"Sun"},{"$f":"TEXT(WEEKDAY(DATE(ЖылдықКүнтізбе+1,2,4),1),\"aaa\")","v":"Mon"},{"$f":"TEXT(WEEKDAY(DATE(ЖылдықКүнтізбе+1,2,5),1),\"aaa\")","v":"Tue"},{"$f":"TEXT(WEEKDAY(DATE(ЖылдықКүнтізбе+1,2,6),1),\"aaa\")","v":"Wed"},{"$f":"TEXT(WEEKDAY(DATE(ЖылдықКүнтізбе+1,2,7),1),\"aaa\")","v":"Thu"},{"$f":"TEXT(WEEKDAY(DATE(ЖылдықКүнтізбе+1,2,8),1),\"aaa\")","v":"Fri"},{"$f":"TEXT(WEEKDAY(DATE(ЖылдықКүнтізбе+1,2,9),1),\"aaa\")","v":"Sat"},{"$f":"TEXT(WEEKDAY(DATE(ЖылдықКүнтізбе+1,2,10),1),\"aaa\")","v":"Sun"},{"$f":"TEXT(WEEKDAY(DATE(ЖылдықКүнтізбе+1,2,11),1),\"aaa\")","v":"Mon"},{"$f":"TEXT(WEEKDAY(DATE(ЖылдықКүнтізбе+1,2,12),1),\"aaa\")","v":"Tue"},{"$f":"TEXT(WEEKDAY(DATE(ЖылдықКүнтізбе+1,2,13),1),\"aaa\")","v":"Wed"},{"$f":"TEXT(WEEKDAY(DATE(ЖылдықКүнтізбе+1,2,14),1),\"aaa\")","v":"Thu"},{"$f":"TEXT(WEEKDAY(DATE(ЖылдықКүнтізбе+1,2,15),1),\"aaa\")","v":"Fri"},{"$f":"TEXT(WEEKDAY(DATE(ЖылдықКүнтізбе+1,2,16),1),\"aaa\")","v":"Sat"},{"$f":"TEXT(WEEKDAY(DATE(ЖылдықКүнтізбе+1,2,17),1),\"aaa\")","v":"Sun"},{"$f":"TEXT(WEEKDAY(DATE(ЖылдықКүнтізбе+1,2,18),1),\"aaa\")","v":"Mon"},{"$f":"TEXT(WEEKDAY(DATE(ЖылдықКүнтізбе+1,2,19),1),\"aaa\")","v":"Tue"},{"$f":"TEXT(WEEKDAY(DATE(ЖылдықКүнтізбе+1,2,20),1),\"aaa\")","v":"Wed"},{"$f":"TEXT(WEEKDAY(DATE(ЖылдықКүнтізбе+1,2,21),1),\"aaa\")","v":"Thu"},{"$f":"TEXT(WEEKDAY(DATE(ЖылдықКүнтізбе+1,2,22),1),\"aaa\")","v":"Fri"},{"$f":"TEXT(WEEKDAY(DATE(ЖылдықКүнтізбе+1,2,23),1),\"aaa\")","v":"Sat"},{"$f":"TEXT(WEEKDAY(DATE(ЖылдықКүнтізбе+1,2,24),1),\"aaa\")","v":"Sun"},{"$f":"TEXT(WEEKDAY(DATE(ЖылдықКүнтізбе+1,2,25),1),\"aaa\")","v":"Mon"},{"$f":"TEXT(WEEKDAY(DATE(ЖылдықКүнтізбе+1,2,26),1),\"aaa\")","v":"Tue"},{"$f":"TEXT(WEEKDAY(DATE(ЖылдықКүнтізбе+1,2,27),1),\"aaa\")","v":"Wed"},{"$f":"TEXT(WEEKDAY(DATE(ЖылдықКүнтізбе+1,2,28),1),\"aaa\")","v":"Thu"},{"$f":"TEXT(WEEKDAY(DATE(ЖылдықКүнтізбе+1,2,29),1),\"aaa\")","v":"Fri"},null,null,"Қорытындылар"]
[null,"Оқушы идентификаторы","Оқушы аты","1","2","3","4","5","6","7","8","9","10","11","12","13","14","15","16","17","18","19","20","21","22","23","24","25","26","27","28","29","30","31","К","P","Pi","Б","Болмаған күндері"]
[null,null,{"$f":"IFERROR(VLOOKUP(АқпанҚатысу[[#This Row],[Оқушы идентификаторы]],СтуденттерТізімі[],18,FALSE),\"\")","v":""},{"$nulls":31},{"$f":"COUNTIF(АқпанҚатысу[[#This Row],[1]:[31]],1-код)","v":0},{"$f":"COUNTIF(АқпанҚатысу[[#This Row],[1]:[31]],2-код)","v":0},{"$f":"COUNTIF(АқпанҚатысу[[#This Row],[1]:[31]],3-код)","v":0},{"$f":"COUNTIF(АқпанҚатысу[[#This Row],[1]:[31]],4-код)","v":0},{"$f":"SUM(ҚыркүйекҚатысу[[#This Row],[P]:[Pi]])","v":0}]
[null,null,{"$f":"IFERROR(VLOOKUP(АқпанҚатысу[[#This Row],[Оқушы идентификаторы]],СтуденттерТізімі[],18,FALSE),\"\")","v":""},{"$nulls":31},{"$f":"COUNTIF(АқпанҚатысу[[#This Row],[1]:[31]],1-код)","v":0},{"$f":"COUNTIF(АқпанҚатысу[[#This Row],[1]:[31]],2-код)","v":0},{"$f":"COUNTIF(АқпанҚатысу[[#This Row],[1]:[31]],3-код)","v":0},{"$f":"COUNTIF(АқпанҚатысу[[#This Row],[1]:[31]],4-код)","v":0},{"$f":"SUM(ҚыркүйекҚатысу[[#This Row],[P]:[Pi]])","v":0}]
[null,null,{"$f":"IFERROR(VLOOKUP(АқпанҚатысу[[#This Row],[Оқушы идентификаторы]],СтуденттерТізімі[],18,FALSE),\"\")","v":""},{"$nulls":31},{"$f":"COUNTIF(АқпанҚатысу[[#This Row],[1]:[31]],1-код)","v":0},{"$f":"COUNTIF(АқпанҚатысу[[#This Row],[1]:[31]],2-код)","v":0},{"$f":"COUNTIF(АқпанҚатысу[[#This Row],[1]:[31]],3-код)","v":0},{"$f":"COUNTIF(АқпанҚатысу[[#This Row],[1]:[31]],4-код)","v":0},{"$f":"SUM(ҚыркүйекҚатысу[[#This Row],[P]:[Pi]])","v":0}]
[null,null,{"$f":"IFERROR(VLOOKUP(АқпанҚатысу[[#This Row],[Оқушы идентификаторы]],СтуденттерТізімі[],18,FALSE),\"\")","v":""},{"$nulls":31},{"$f":"COUNTIF(АқпанҚатысу[[#This Row],[1]:[31]],1-код)","v":0},{"$f":"COUNTIF(АқпанҚатысу[[#This Row],[1]:[31]],2-код)","v":0},{"$f":"COUNTIF(АқпанҚатысу[[#This Row],[1]:[31]],3-код)","v":0},{"$f":"COUNTIF(АқпанҚатысу[[#This Row],[1]:[31]],4-код)","v":0},{"$f":"SUM(ҚыркүйекҚатысу[[#This Row],[P]:[Pi]])","v":0}]
[null,null,{"$f":"IFERROR(VLOOKUP(АқпанҚатысу[[#This Row],[Оқушы идентификаторы]],СтуденттерТізімі[],18,FALSE),\"\")","v":""},{"$nulls":31},{"$f":"COUNTIF(АқпанҚатысу[[#This Row],[1]:[31]],1-код)","v":0},{"$f":"COUNTIF(АқпанҚатысу[[#This Row],[1]:[31]],2-код)","v":0},{"$f":"COUNTIF(АқпанҚатысу[[#This Row],[1]:[31]],3-код)","v":0},{"$f":"COUNTIF(АқпанҚатысу[[#This Row],[1]:[31]],4-код)","v":0},{"$f":"SUM(ҚыркүйекҚатысу[[#This Row],[P]:[Pi]])","v":0}]
[null,null,"Жалпы болмаған күндері",{"$f":"COUNTIF(АқпанҚатысу[1],\"Pi\")+COUNTIF(АқпанҚатысу[1],\"P\")","v":0},{"$f":"COUNTIF(АқпанҚатысу[2],\"Pi\")+COUNTIF(АқпанҚатысу[2],\"P\")","v":0},{"$f":"COUNTIF(АқпанҚатысу[3],\"Pi\")+COUNTIF(АқпанҚатысу[3],\"P\")","v":0},{"$f":"COUNTIF(АқпанҚатысу[4],\"Pi\")+COUNTIF(АқпанҚатысу[4],\"P\")","v":0},{"$f":"COUNTIF(АқпанҚатысу[5],\"Pi\")+COUNTIF(АқпанҚатысу[5],\"P\")","v":0},{"$f":"COUNTIF(АқпанҚатысу[6],\"Pi\")+COUNTIF(АқпанҚатысу[6],\"P\")","v":0},{"$f":"COUNTIF(АқпанҚатысу[7],\"Pi\")+COUNTIF(АқпанҚатысу[7],\"P\")","v":0},{"$f":"COUNTIF(АқпанҚатысу[8],\"Pi\")+COUNTIF(АқпанҚатысу[8],\"P\")","v":0},{"$f":"COUNTIF(АқпанҚатысу[9],\"Pi\")+COUNTIF(АқпанҚатысу[9],\"P\")","v":0},{"$f":"COUNTIF(АқпанҚатысу[10],\"Pi\")+COUNTIF(АқпанҚатысу[10],\"P\")","v":0},{"$f":"COUNTIF(АқпанҚатысу[11],\"Pi\")+COUNTIF(АқпанҚатысу[11],\"P\")","v":0},{"$f":"COUNTIF(АқпанҚатысу[12],\"Pi\")+COUNTIF(АқпанҚатысу[12],\"P\")","v":0},{"$f":"COUNTIF(АқпанҚатысу[13],\"Pi\")+COUNTIF(АқпанҚатысу[13],\"P\")","v":0},{"$f":"COUNTIF(АқпанҚатысу[14],\"Pi\")+COUNTIF(АқпанҚатысу[14],\"P\")","v":0},{"$f":"COUNTIF(АқпанҚатысу[15],\"Pi\")+COUNTIF(АқпанҚатысу[15],\"P\")","v":0},{"$f":"COUNTIF(АқпанҚатысу[16],\"Pi\")+COUNTIF(АқпанҚатысу[16],\"P\")","v":0},{"$f":"COUNTIF(АқпанҚатысу[17],\"Pi\")+COUNTIF(АқпанҚатысу[17],\"P\")","v":0},{"$f":"COUNTIF(АқпанҚатысу[18],\"Pi\")+COUNTIF(АқпанҚатысу[18],\"P\")","v":0},{"$f":"COUNTIF(АқпанҚатысу[19],\"Pi\")+COUNTIF(АқпанҚатысу[19],\"P\")","v":0},{"$f":"COUNTIF(АқпанҚатысу[20],\"Pi\")+COUNTIF(АқпанҚатысу[20],\"P\")","v":0},{"$f":"COUNTIF(АқпанҚатысу[21],\"Pi\")+COUNTIF(АқпанҚатысу[21],\"P\")","v":0},{"$f":"COUNTIF(АқпанҚатысу[22],\"Pi\")+COUNTIF(АқпанҚатысу[22],\"P\")","v":0},{"$f":"COUNTIF(АқпанҚатысу[23],\"Pi\")+COUNTIF(АқпанҚатысу[23],\"P\")","v":0},{"$f":"COUNTIF(АқпанҚатысу[24],\"Pi\")+COUNTIF(АқпанҚатысу[24],\"P\")","v":0},{"$f":"COUNTIF(АқпанҚатысу[25],\"Pi\")+COUNTIF(АқпанҚатысу[25],\"P\")","v":0},{"$f":"COUNTIF(АқпанҚатысу[26],\"Pi\")+COUNTIF(АқпанҚатысу[26],\"P\")","v":0},{"$f":"COUNTIF(АқпанҚатысу[27],\"Pi\")+COUNTIF(АқпанҚатысу[27],\"P\")","v":0},{"$f":"COUNTIF(АқпанҚатысу[28],\"Pi\")+COUNTIF(АқпанҚатысу[28],\"P\")","v":0},{"$f":"COUNTIF(АқпанҚатысу[29],\"Pi\")+COUNTIF(АқпанҚатысу[29],\"P\")","v":0},{"$f":"COUNTIF(АқпанҚатысу[30],\"Pi\")+COUNTIF(АқпанҚатысу[30],\"P\")","v":0},{"$f":"COUNTIF(АқпанҚатысу[31],\"Pi\")+COUNTIF(АқпанҚатысу[31],\"P\")","v":0},{"$f":"SUBTOTAL(109,АқпанҚатысу[К])","v":0},{"$f":"SUBTOTAL(109,АқпанҚатысу[P])","v":0},{"$f":"SUBTOTAL(109,АқпанҚатысу[Pi])","v":0},{"$f":"SUBTOTAL(109,АқпанҚатысу[Б])","v":0},{"$f":"SUBTOTAL(107,АқпанҚатысу[Болмаған күндері])","v":0}]

{"sheet":"Наурыз","index":9,"n_rows":12,"n_cols":39,"rows_kept":12,"merged":[[4,34,4,38]]}
["ОҚУШЫНЫҢ ҚАТЫСУ ЖАЗБАСЫ",{"$nulls":36},"Оқу жылының басы:",{"$f":"ЖылдықКүнтізбе","v":2012}]
[]
[null,null,{"$f":"ТүстіКілтМәтін","v":"ТҮСТІ ПЕРНЕ"},{"$f":"1-код","v":"К"},{"$f":"1-кодМәтіні","v":"Кешіккен"},null,null,{"$f":"2-код","v":"P"},{"$f":"2-кодМәтіні","v":"Кешірілген"},null,null,{"$f":"3-код","v":"Pi"},{"$f":"3-кодМәтіні","v":"Кешірілмеген"},null,null,{"$f":"4-код","v":"Б"},{"$f":"4-кодМәтіні","v":"Бар"},null,null,{"$f":"5-код","v":"М"},{"$f":"5-кодМәтіні","v":"Мектепте емес"}]
[]
[null,{"$f":"DATE(ЖылдықКүнтізбе+1,3,1)","v":"2013-03-01"},null,{"$f":"TEXT(WEEKDAY(DATE(ЖылдықКүнтізбе+1,3,1),1),\"aaa\")","v":"Fri"},{"$f":"TEXT(WEEKDAY(DATE(ЖылдықКүнтізбе+1,3,2),1),\"aaa\")","v":"Sat"},{"$f":"TEXT(WEEKDAY(DATE(ЖылдықКүнтізбе+1,3,3),1),\"aaa\")","v":"Sun"},{"$f":"TEXT(WEEKDAY(DATE(ЖылдықКүнтізбе+1,3,4),1),\"aaa\")","v":"Mon"},{"$f":"TEXT(WEEKDAY(DATE(ЖылдықКүнтізбе+1,3,5),1),\"aaa\")","v":"Tue"},{"$f":"TEXT(WEEKDAY(DATE(ЖылдықКүнтізбе+1,3,6),1),\"aaa\")","v":"Wed"},{"$f":"TEXT(WEEKDAY(DATE(ЖылдықКүнтізбе+1,3,7),1),\"aaa\")","v":"Thu"},{"$f":"TEXT(WEEKDAY(DATE(ЖылдықКүнтізбе+1,3,8),1),\"aaa\")","v":"Fri"},{"$f":"TEXT(WEEKDAY(DATE(ЖылдықКүнтізбе+1,3,9),1),\"aaa\")","v":"Sat"},{"$f":"TEXT(WEEKDAY(DATE(ЖылдықКүнтізбе+1,3,10),1),\"aaa\")","v":"Sun"},{"$f":"TEXT(WEEKDAY(DATE(ЖылдықКүнтізбе+1,3,11),1),\"aaa\")","v":"Mon"},{"$f":"TEXT(WEEKDAY(DATE(ЖылдықКүнтізбе+1,3,12),1),\"aaa\")","v":"Tue"},{"$f":"TEXT(WEEKDAY(DATE(ЖылдықКүнтізбе+1,3,13),1),\"aaa\")","v":"Wed"},{"$f":"TEXT(WEEKDAY(DATE(ЖылдықКүнтізбе+1,3,14),1),\"aaa\")","v":"Thu"},{"$f":"TEXT(WEEKDAY(DATE(ЖылдықКүнтізбе+1,3,15),1),\"aaa\")","v":"Fri"},{"$f":"TEXT(WEEKDAY(DATE(ЖылдықКүнтізбе+1,3,16),1),\"aaa\")","v":"Sat"},{"$f":"TEXT(WEEKDAY(DATE(ЖылдықКүнтізбе+1,3,17),1),\"aaa\")","v":"Sun"},{"$f":"TEXT(WEEKDAY(DATE(ЖылдықКүнтізбе+1,3,18),1),\"aaa\")","v":"Mon"},{"$f":"TEXT(WEEKDAY(DATE(ЖылдықКүнтізбе+1,3,19),1),\"aaa\")","v":"Tue"},{"$f":"TEXT(WEEKDAY(DATE(ЖылдықКүнтізбе+1,3,20),1),\"aaa\")","v":"Wed"},{"$f":"TEXT(WEEKDAY(DATE(ЖылдықКүнтізбе+1,3,21),1),\"aaa\")","v":"Thu"},{"$f":"TEXT(WEEKDAY(DATE(ЖылдықКүнтізбе+1,3,22),1),\"aaa\")","v":"Fri"},{"$f":"TEXT(WEEKDAY(DATE(ЖылдықКүнтізбе+1,3,23),1),\"aaa\")","v":"Sat"},{"$f":"TEXT(WEEKDAY(DATE(ЖылдықКүнтізбе+1,3,24),1),\"aaa\")","v":"Sun"},{"$f":"TEXT(WEEKDAY(DATE(ЖылдықКүнтізбе+1,3,25),1),\"aaa\")","v":"Mon"},{"$f":"TEXT(WEEKDAY(DATE(ЖылдықКүнтізбе+1,3,26),1),\"aaa\")","v":"Tue"},{"$f":"TEXT(WEEKDAY(DATE(ЖылдықКүнтізбе+1,3,27),1),\"aaa\")","v":"Wed"},{"$f":"TEXT(WEEKDAY(DATE(ЖылдықКүнтізбе+1,3,28),1),\"aaa\")","v":"Thu"},{"$f":"TEXT(WEEKDAY(DATE(ЖылдықКүнтізбе+1,3,29),1),\"aaa\")","v":"Fri"},{"$f":"TEXT(WEEKDAY(DATE(ЖылдықКүнтізбе+1,3,30),1),\"aaa\")","v":"Sat"},{"$f":"TEXT(WEEKDAY(DATE(ЖылдықКүнтізбе+1,3,31),1),\"aaa\")","v":"Sun"},"Қорытындылар"]
[null,"Оқушы идентификаторы","Оқушы аты","1","2","3","4","5","6","7","8","9","10","11","12","13","14","15","16","17","18","19","20","21","22","23","24","25","26","27","28","29","30","31","К","P","Pi","Б","Болмаған күндері"]
[null,null,{"$f":"IFERROR(VLOOKUP(НаурызҚатысу[[#This Row],[Оқушы идентификаторы]],СтуденттерТізімі[],18,FALSE),\"\")","v":""},{"$nulls":31},{"$f":"COUNTIF(НаурызҚатысу[[#This Row],[1]:[31]],1-код)","v":0},{"$f":"COUNTIF(НаурызҚатысу[[#This Row],[1]:[31]],2-код)","v":0},{"$f":"COUNTIF(НаурызҚатысу[[#This Row],[1]:[31]],3-код)","v":0},{"$f":"COUNTIF(НаурызҚатысу[[#This Row],[1]:[31]],4-код)","v":0},{"$f":"SUM(ҚыркүйекҚатысу[[#This Row],[P]:[Pi]])","v":0}]
[null,null,{"$f":"IFERROR(VLOOKUP(НаурызҚатысу[[#This Row],[Оқушы идентификаторы]],СтуденттерТізімі[],18,FALSE),\"\")","v":""},{"$nulls":31},{"$f":"COUNTIF(НаурызҚатысу[[#This Row],[1]:[31]],1-код)","v":0},{"$f":"COUNTIF(НаурызҚатысу[[#This Row],[1]:[31]],2-код)","v":0},{"$f":"COUNTIF(НаурызҚатысу[[#This Row],[1]:[31]],3-код)","v":0},{"$f":"COUNTIF(НаурызҚатысу[[#This Row],[1]:[31]],4-код)","v":0},{"$f":"SUM(ҚыркүйекҚатысу[[#This Row],[P]:[Pi]])","v":0}]
[null,null,{"$f":"IFERROR(VLOOKUP(НаурызҚатысу[[#This Row],[Оқушы идентификаторы]],СтуденттерТізімі[],18,FALSE),\"\")","v":""},{"$nulls":31},{"$f":"COUNTIF(НаурызҚатысу[[#This Row],[1]:[31]],1-код)","v":0},{"$f":"COUNTIF(НаурызҚатысу[[#This Row],[1]:[31]],2-код)","v":0},{"$f":"COUNTIF(НаурызҚатысу[[#This Row],[1]:[31]],3-код)","v":0},{"$f":"COUNTIF(НаурызҚатысу[[#This Row],[1]:[31]],4-код)","v":0},{"$f":"SUM(ҚыркүйекҚатысу[[#This Row],[P]:[Pi]])","v":0}]
[null,null,{"$f":"IFERROR(VLOOKUP(НаурызҚатысу[[#This Row],[Оқушы идентификаторы]],СтуденттерТізімі[],18,FALSE),\"\")","v":""},{"$nulls":31},{"$f":"COUNTIF(НаурызҚатысу[[#This Row],[1]:[31]],1-код)","v":0},{"$f":"COUNTIF(НаурызҚатысу[[#This Row],[1]:[31]],2-код)","v":0},{"$f":"COUNTIF(НаурызҚатысу[[#This Row],[1]:[31]],3-код)","v":0},{"$f":"COUNTIF(НаурызҚатысу[[#This Row],[1]:[31]],4-код)","v":0},{"$f":"SUM(ҚыркүйекҚатысу[[#This Row],[P]:[Pi]])","v":0}]
[null,null,{"$f":"IFERROR(VLOOKUP(НаурызҚатысу[[#This Row],[Оқушы идентификаторы]],СтуденттерТізімі[],18,FALSE),\"\")","v":""},{"$nulls":31},{"$f":"COUNTIF(НаурызҚатысу[[#This Row],[1]:[31]],1-код)","v":0},{"$f":"COUNTIF(НаурызҚатысу[[#This Row],[1]:[31]],2-код)","v":0},{"$f":"COUNTIF(НаурызҚатысу[[#This Row],[1]:[31]],3-код)","v":0},{"$f":"COUNTIF(НаурызҚатысу[[#This Row],[1]:[31]],4-код)","v":0},{"$f":"SUM(ҚыркүйекҚатысу[[#This Row],[P]:[Pi]])","v":0}]
[null,null,"Жалпы болмаған күндері",{"$f":"COUNTIF(НаурызҚатысу[1],\"Pi\")+COUNTIF(НаурызҚатысу[1],\"P\")","v":0},{"$f":"COUNTIF(НаурызҚатысу[2],\"Pi\")+COUNTIF(НаурызҚатысу[2],\"P\")","v":0},{"$f":"COUNTIF(НаурызҚатысу[3],\"Pi\")+COUNTIF(НаурызҚатысу[3],\"P\")","v":0},{"$f":"COUNTIF(НаурызҚатысу[4],\"Pi\")+COUNTIF(НаурызҚатысу[4],\"P\")","v":0},{"$f":"COUNTIF(НаурызҚатысу[5],\"Pi\")+COUNTIF(НаурызҚатысу[5],\"P\")","v":0},{"$f":"COUNTIF(НаурызҚатысу[6],\"Pi\")+COUNTIF(НаурызҚатысу[6],\"P\")","v":0},{"$f":"COUNTIF(НаурызҚатысу[7],\"Pi\")+COUNTIF(НаурызҚатысу[7],\"P\")","v":0},{"$f":"COUNTIF(НаурызҚатысу[8],\"Pi\")+COUNTIF(НаурызҚатысу[8],\"P\")","v":0},{"$f":"COUNTIF(НаурызҚатысу[9],\"Pi\")+COUNTIF(НаурызҚатысу[9],\"P\")","v":0},{"$f":"COUNTIF(НаурызҚатысу[10],\"Pi\")+COUNTIF(НаурызҚатысу[10],\"P\")","v":0},{"$f":"COUNTIF(НаурызҚатысу[11],\"Pi\")+COUNTIF(НаурызҚатысу[11],\"P\")","v":0},{"$f":"COUNTIF(НаурызҚатысу[12],\"Pi\")+COUNTIF(НаурызҚатысу[12],\"P\")","v":0},{"$f":"COUNTIF(НаурызҚатысу[13],\"Pi\")+COUNTIF(НаурызҚатысу[13],\"P\")","v":0},{"$f":"COUNTIF(НаурызҚатысу[14],\"Pi\")+COUNTIF(НаурызҚатысу[14],\"P\")","v":0},{"$f":"COUNTIF(НаурызҚатысу[15],\"Pi\")+COUNTIF(НаурызҚатысу[15],\"P\")","v":0},{"$f":"COUNTIF(НаурызҚатысу[16],\"Pi\")+COUNTIF(НаурызҚатысу[16],\"P\")","v":0},{"$f":"COUNTIF(НаурызҚатысу[17],\"Pi\")+COUNTIF(НаурызҚатысу[17],\"P\")","v":0},{"$f":"COUNTIF(НаурызҚатысу[18],\"Pi\")+COUNTIF(НаурызҚатысу[18],\"P\")","v":0},{"$f":"COUNTIF(НаурызҚатысу[19],\"Pi\")+COUNTIF(НаурызҚатысу[19],\"P\")","v":0},{"$f":"COUNTIF(НаурызҚатысу[20],\"Pi\")+COUNTIF(НаурызҚатысу[20],\"P\")","v":0},{"$f":"COUNTIF(НаурызҚатысу[21],\"Pi\")+COUNTIF(НаурызҚатысу[21],\"P\")","v":0},{"$f":"COUNTIF(НаурызҚатысу[22],\"Pi\")+COUNTIF(НаурызҚатысу[22],\"P\")","v":0},{"$f":"COUNTIF(НаурызҚатысу[23],\"Pi\")+COUNTIF(НаурызҚатысу[23],\"P\")","v":0},{"$f":"COUNTIF(НаурызҚатысу[24],\"Pi\")+COUNTIF(НаурызҚатысу[24],\"P\")","v":0},{"$f":"COUNTIF(НаурызҚатысу[25],\"Pi\")+COUNTIF(НаурызҚатысу[25],\"P\")","v":0},{"$f":"COUNTIF(НаурызҚатысу[26],\"Pi\")+COUNTIF(НаурызҚатысу[26],\"P\")","v":0},{"$f":"COUNTIF(НаурызҚатысу[27],\"Pi\")+COUNTIF(НаурызҚатысу[27],\"P\")","v":0},{"$f":"COUNTIF(НаурызҚатысу[28],\"Pi\")+COUNTIF(НаурызҚатысу[28],\"P\")","v":0},{"$f":"COUNTIF(НаурызҚатысу[29],\"Pi\")+COUNTIF(НаурызҚатысу[29],\"P\")","v":0},{"$f":"COUNTIF(НаурызҚатысу[30],\"Pi\")+COUNTIF(НаурызҚатысу[30],\"P\")","v":0},{"$f":"COUNTIF(НаурызҚатысу[31],\"Pi\")+COUNTIF(НаурызҚатысу[31],\"P\")","v":0},{"$f":"SUBTOTAL(109,НаурызҚатысу[К])","v":0},{"$f":"SUBTOTAL(109,НаурызҚатысу[P])","v":0},{"$f":"SUBTOTAL(109,НаурызҚатысу[Pi])","v":0},{"$f":"SUBTOTAL(109,НаурызҚатысу[Б])","v":0},{"$f":"SUBTOTAL(109,НаурызҚатысу[Болмаған күндері])","v":0}]

{"sheet":"Сәуір","index":10,"n_rows":12,"n_cols":39,"rows_kept":12,"merged":[[4,34,4,38]]}
["ОҚУШЫНЫҢ ҚАТЫСУ ЖАЗБАСЫ",{"$nulls":36},"Оқу жылының басы:",{"$f":"ЖылдықКүнтізбе","v":2012}]
[]
[null,null,{"$f":"ТүстіКілтМәтін","v":"ТҮСТІ ПЕРНЕ"},{"$f":"1-код","v":"К"},{"$f":"1-кодМәтіні","v":"Кешіккен"},null,null,{"$f":"2-код","v":"P"},{"$f":"2-кодМәтіні","v":"Кешірілген"},null,null,{"$f":"3-код","v":"Pi"},{"$f":"3-кодМәтіні","v":"Кешірілмеген"},null,null,{"$f":"4-код","v":"Б"},{"$f":"4-кодМәтіні","v":"Бар"},null,null,{"$f":"5-код","v":"М"},{"$f":"5-кодМәтіні","v":"Мектепте емес"}]
[]
[null,{"$f":"DATE(ЖылдықКүнтізбе+1,4,1)","v":"2013-04-01"},null,{"$f":"TEXT(WEEKDAY(DATE(ЖылдықКүнтізбе+1,4,1),1),\"aaa\")","v":"Mon"},{"$f":"TEXT(WEEKDAY(DATE(ЖылдықКүнтізбе+1,4,2),1),\"aaa\")","v":"Tue"},{"$f":"TEXT(WEEKDAY(DATE(ЖылдықКүнтізбе+1,4,3),1),\"aaa\")","v":"Wed"},{"$f":"TEXT(WEEKDAY(DATE(ЖылдықКүнтізбе+1,4,4),1),\"aaa\")","v":"Thu"},{"$f":"TEXT(WEEKDAY(DATE(ЖылдықКүнтізбе+1,4,5),1),\"aaa\")","v":"Fri"},{"$f":"TEXT(WEEKDAY(DATE(ЖылдықКүнтізбе+1,4,6),1),\"aaa\")","v":"Sat"},{"$f":"TEXT(WEEKDAY(DATE(ЖылдықКүнтізбе+1,4,7),1),\"aaa\")","v":"Sun"},{"$f":"TEXT(WEEKDAY(DATE(ЖылдықКүнтізбе+1,4,8),1),\"aaa\")","v":"Mon"},{"$f":"TEXT(WEEKDAY(DATE(ЖылдықКүнтізбе+1,4,9),1),\"aaa\")","v":"Tue"},{"$f":"TEXT(WEEKDAY(DATE(ЖылдықКүнтізбе+1,4,10),1),\"aaa\")","v":"Wed"},{"$f":"TEXT(WEEKDAY(DATE(ЖылдықКүнтізбе+1,4,11),1),\"aaa\")","v":"Thu"},{"$f":"TEXT(WEEKDAY(DATE(ЖылдықКүнтізбе+1,4,12),1),\"aaa\")","v":"Fri"},{"$f":"TEXT(WEEKDAY(DATE(ЖылдықКүнтізбе+1,4,13),1),\"aaa\")","v":"Sat"},{"$f":"TEXT(WEEKDAY(DATE(ЖылдықКүнтізбе+1,4,14),1),\"aaa\")","v":"Sun"},{"$f":"TEXT(WEEKDAY(DATE(ЖылдықКүнтізбе+1,4,15),1),\"aaa\")","v":"Mon"},{"$f":"TEXT(WEEKDAY(DATE(ЖылдықКүнтізбе+1,4,16),1),\"aaa\")","v":"Tue"},{"$f":"TEXT(WEEKDAY(DATE(ЖылдықКүнтізбе+1,4,17),1),\"aaa\")","v":"Wed"},{"$f":"TEXT(WEEKDAY(DATE(ЖылдықКүнтізбе+1,4,18),1),\"aaa\")","v":"Thu"},{"$f":"TEXT(WEEKDAY(DATE(ЖылдықКүнтізбе+1,4,19),1),\"aaa\")","v":"Fri"},{"$f":"TEXT(WEEKDAY(DATE(ЖылдықКүнтізбе+1,4,20),1),\"aaa\")","v":"Sat"},{"$f":"TEXT(WEEKDAY(DATE(ЖылдықКүнтізбе+1,4,21),1),\"aaa\")","v":"Sun"},{"$f":"TEXT(WEEKDAY(DATE(ЖылдықКүнтізбе+1,4,22),1),\"aaa\")","v":"Mon"},{"$f":"TEXT(WEEKDAY(DATE(ЖылдықКүнтізбе+1,4,23),1),\"aaa\")","v":"Tue"},{"$f":"TEXT(WEEKDAY(DATE(ЖылдықКүнтізбе+1,4,24),1),\"aaa\")","v":"Wed"},{"$f":"TEXT(WEEKDAY(DATE(ЖылдықКүнтізбе+1,4,25),1),\"aaa\")","v":"Thu"},{"$f":"TEXT(WEEKDAY(DATE(ЖылдықКүнтізбе+1,4,26),1),\"aaa\")","v":"Fri"},{"$f":"TEXT(WEEKDAY(DATE(ЖылдықКүнтізбе+1,4,27),1),\"aaa\")","v":"Sat"},{"$f":"TEXT(WEEKDAY(DATE(ЖылдықКүнтізбе+1,4,28),1),\"aaa\")","v":"Sun"},{"$f":"TEXT(WEEKDAY(DATE(ЖылдықКүнтізбе+1,4,29),1),\"aaa\")","v":"Mon"},{"$f":"TEXT(WEEKDAY(DATE(ЖылдықКүнтізбе+1,4,30),1),\"aaa\")","v":"Tue"},null,"Қорытындылар"]
[null,"Оқушы идентификаторы","Оқушы аты","1","2","3","4","5","6","7","8","9","10","11","12","13","14","15","16","17","18","19","20","21","22","23","24","25","26","27","28","29","30"," ","К","P","Pi","Б","Болмаған күндері"]
[null,null,{"$f":"IFERROR(VLOOKUP(СәуірҚатысу[[#This Row],[Оқушы идентификаторы]],СтуденттерТізімі[],18,FALSE),\"\")","v":""},{"$nulls":31},{"$f":"COUNTIF(СәуірҚатысу[[#This Row],[1]:[ ]],1-код)","v":0},{"$f":"COUNTIF(СәуірҚатысу[[#This Row],[1]:[ ]],2-код)","v":0},{"$f":"COUNTIF(СәуірҚатысу[[#This Row],[1]:[ ]],3-код)","v":0},{"$f":"COUNTIF(СәуірҚатысу[[#This Row],[1]:[ ]],4-код)","v":0},{"$f":"SUM(ҚыркүйекҚатысу[[#This Row],[P]:[Pi]])","v":0}]
[null,null,{"$f":"IFERROR(VLOOKUP(СәуірҚатысу[[#This Row],[Оқушы идентификаторы]],СтуденттерТізімі[],18,FALSE),\"\")","v":""},{"$nulls":31},{"$f":"COUNTIF(СәуірҚатысу[[#This Row],[1]:[ ]],1-код)","v":0},{"$f":"COUNTIF(СәуірҚатысу[[#This Row],[1]:[ ]],2-код)","v":0},{"$f":"COUNTIF(СәуірҚатысу[[#This Row],[1]:[ ]],3-код)","v":0},{"$f":"COUNTIF(СәуірҚатысу[[#This Row],[1]:[ ]],4-код)","v":0},{"$f":"SUM(ҚыркүйекҚатысу[[#This Row],[P]:[Pi]])","v":0}]
[null,null,{"$f":"IFERROR(VLOOKUP(СәуірҚатысу[[#This Row],[Оқушы идентификаторы]],СтуденттерТізімі[],18,FALSE),\"\")","v":""},{"$nulls":31},{"$f":"COUNTIF(СәуірҚатысу[[#This Row],[1]:[ ]],1-код)","v":0},{"$f":"COUNTIF(СәуірҚатысу[[#This Row],[1]:[ ]],2-код)","v":0},{"$f":"COUNTIF(СәуірҚатысу[[#This Row],[1]:[ ]],3-код)","v":0},{"$f":"COUNTIF(СәуірҚатысу[[#This Row],[1]:[ ]],4-код)","v":0},{"$f":"SUM(ҚыркүйекҚатысу[[#This Row],[P]:[Pi]])","v":0}]
[null,null,{"$f":"IFERROR(VLOOKUP(СәуірҚатысу[[#This Row],[Оқушы идентификаторы]],СтуденттерТізімі[],18,FALSE),\"\")","v":""},{"$nulls":31},{"$f":"COUNTIF(СәуірҚатысу[[#This Row],[1]:[ ]],1-код)","v":0},{"$f":"COUNTIF(СәуірҚатысу[[#This Row],[1]:[ ]],2-код)","v":0},{"$f":"COUNTIF(СәуірҚатысу[[#This Row],[1]:[ ]],3-код)","v":0},{"$f":"COUNTIF(СәуірҚатысу[[#This Row],[1]:[ ]],4-код)","v":0},{"$f":"SUM(ҚыркүйекҚатысу[[#This Row],[P]:[Pi]])","v":0}]
[null,null,{"$f":"IFERROR(VLOOKUP(СәуірҚатысу[[#This Row],[Оқушы идентификаторы]],СтуденттерТізімі[],18,FALSE),\"\")","v":""},{"$nulls":31},{"$f":"COUNTIF(СәуірҚатысу[[#This Row],[1]:[ ]],1-код)","v":0},{"$f":"COUNTIF(СәуірҚатысу[[#This Row],[1]:[ ]],2-код)","v":0},{"$f":"COUNTIF(СәуірҚатысу[[#This Row],[1]:[ ]],3-код)","v":0},{"$f":"COUNTIF(СәуірҚатысу[[#This Row],[1]:[ ]],4-код)","v":0},{"$f":"SUM(ҚыркүйекҚатысу[[#This Row],[P]:[Pi]])","v":0}]
[null,null,"Жалпы болмаған күндері",{"$f":"COUNTIF(СәуірҚатысу[1],\"Pi\")+COUNTIF(СәуірҚатысу[1],\"P\")","v":0},{"$f":"COUNTIF(СәуірҚатысу[2],\"Pi\")+COUNTIF(СәуірҚатысу[2],\"P\")","v":0},{"$f":"COUNTIF(СәуірҚатысу[3],\"Pi\")+COUNTIF(СәуірҚатысу[3],\"P\")","v":0},{"$f":"COUNTIF(СәуірҚатысу[4],\"Pi\")+COUNTIF(СәуірҚатысу[4],\"P\")","v":0},{"$f":"COUNTIF(СәуірҚатысу[5],\"Pi\")+COUNTIF(СәуірҚатысу[5],\"P\")","v":0},{"$f":"COUNTIF(СәуірҚатысу[6],\"Pi\")+COUNTIF(СәуірҚатысу[6],\"P\")","v":0},{"$f":"COUNTIF(СәуірҚатысу[7],\"Pi\")+COUNTIF(СәуірҚатысу[7],\"P\")","v":0},{"$f":"COUNTIF(СәуірҚатысу[8],\"Pi\")+COUNTIF(СәуірҚатысу[8],\"P\")","v":0},{"$f":"COUNTIF(СәуірҚатысу[9],\"Pi\")+COUNTIF(СәуірҚатысу[9],\"P\")","v":0},{"$f":"COUNTIF(СәуірҚатысу[10],\"Pi\")+COUNTIF(СәуірҚатысу[10],\"P\")","v":0},{"$f":"COUNTIF(СәуірҚатысу[11],\"Pi\")+COUNTIF(СәуірҚатысу[11],\"P\")","v":0},{"$f":"COUNTIF(СәуірҚатысу[12],\"Pi\")+COUNTIF(СәуірҚатысу[12],\"P\")","v":0},{"$f":"COUNTIF(СәуірҚатысу[13],\"Pi\")+COUNTIF(СәуірҚатысу[13],\"P\")","v":0},{"$f":"COUNTIF(СәуірҚатысу[14],\"Pi\")+COUNTIF(СәуірҚатысу[14],\"P\")","v":0},{"$f":"COUNTIF(СәуірҚатысу[15],\"Pi\")+COUNTIF(СәуірҚатысу[15],\"P\")","v":0},{"$f":"COUNTIF(СәуірҚатысу[16],\"Pi\")+COUNTIF(СәуірҚатысу[16],\"P\")","v":0},{"$f":"COUNTIF(СәуірҚатысу[17],\"Pi\")+COUNTIF(СәуірҚатысу[17],\"P\")","v":0},{"$f":"COUNTIF(СәуірҚатысу[18],\"Pi\")+COUNTIF(СәуірҚатысу[18],\"P\")","v":0},{"$f":"COUNTIF(СәуірҚатысу[19],\"Pi\")+COUNTIF(СәуірҚатысу[19],\"P\")","v":0},{"$f":"COUNTIF(СәуірҚатысу[20],\"Pi\")+COUNTIF(СәуірҚатысу[20],\"P\")","v":0},{"$f":"COUNTIF(СәуірҚатысу[21],\"Pi\")+COUNTIF(СәуірҚатысу[21],\"P\")","v":0},{"$f":"COUNTIF(СәуірҚатысу[22],\"Pi\")+COUNTIF(СәуірҚатысу[22],\"P\")","v":0},{"$f":"COUNTIF(СәуірҚатысу[23],\"Pi\")+COUNTIF(СәуірҚатысу[23],\"P\")","v":0},{"$f":"COUNTIF(СәуірҚатысу[24],\"Pi\")+COUNTIF(СәуірҚатысу[24],\"P\")","v":0},{"$f":"COUNTIF(СәуірҚатысу[25],\"Pi\")+COUNTIF(СәуірҚатысу[25],\"P\")","v":0},{"$f":"COUNTIF(СәуірҚатысу[26],\"Pi\")+COUNTIF(СәуірҚатысу[26],\"P\")","v":0},{"$f":"COUNTIF(СәуірҚатысу[27],\"Pi\")+COUNTIF(СәуірҚатысу[27],\"P\")","v":0},{"$f":"COUNTIF(СәуірҚатысу[28],\"Pi\")+COUNTIF(СәуірҚатысу[28],\"P\")","v":0},{"$f":"COUNTIF(СәуірҚатысу[29],\"Pi\")+COUNTIF(СәуірҚатысу[29],\"P\")","v":0},{"$f":"COUNTIF(СәуірҚатысу[30],\"Pi\")+COUNTIF(СәуірҚатысу[30],\"P\")","v":0},{"$f":"COUNTIF(СәуірҚатысу[[ ]],\"Pi\")+COUNTIF(СәуірҚатысу[[ ]],\"P\")","v":0},{"$f":"SUBTOTAL(109,СәуірҚатысу[К])","v":0},{"$f":"SUBTOTAL(109,СәуірҚатысу[P])","v":0},{"$f":"SUBTOTAL(109,СәуірҚатысу[Pi])","v":0},{"$f":"SUBTOTAL(109,СәуірҚатысу[Б])","v":0},{"$f":"SUBTOTAL(109,СәуірҚатысу[Болмаған күндері])","v":0}]

{"sheet":"Мамыр","index":11,"n_rows":12,"n_cols":39,"rows_kept":12,"merged":[[4,34,4,38]]}
["ОҚУШЫНЫҢ ҚАТЫСУ ЖАЗБАСЫ",{"$nulls":36},"Оқу жылының басы:",{"$f":"ЖылдықКүнтізбе","v":2012}]
[]
[null,null,{"$f":"ТүстіКілтМәтін","v":"ТҮСТІ ПЕРНЕ"},{"$f":"1-код","v":"К"},{"$f":"1-кодМәтіні","v":"Кешіккен"},null,null,{"$f":"2-код","v":"P"},{"$f":"2-кодМәтіні","v":"Кешірілген"},null,null,{"$f":"3-код","v":"Pi"},{"$f":"3-кодМәтіні","v":"Кешірілмеген"},null,null,{"$f":"4-код","v":"Б"},{"$f":"4-кодМәтіні","v":"Бар"},null,null,{"$f":"5-код","v":"М"},{"$f":"5-кодМәтіні","v":"Мектепте емес"}]
[]
[null,{"$f":"DATE(ЖылдықКүнтізбе+1,5,1)","v":"2013-05-01"},null,{"$f":"TEXT(WEEKDAY(DATE(ЖылдықКүнтізбе+1,5,1),1),\"aaa\")","v":"Wed"},{"$f":"TEXT(WEEKDAY(DATE(ЖылдықКүнтізбе+1,5,2),1),\"aaa\")","v":"Thu"},{"$f":"TEXT(WEEKDAY(DATE(ЖылдықКүнтізбе+1,5,3),1),\"aaa\")","v":"Fri"},{"$f":"TEXT(WEEKDAY(DATE(ЖылдықКүнтізбе+1,5,4),1),\"aaa\")","v":"Sat"},{"$f":"TEXT(WEEKDAY(DATE(ЖылдықКүнтізбе+1,5,5),1),\"aaa\")","v":"Sun"},{"$f":"TEXT(WEEKDAY(DATE(ЖылдықКүнтізбе+1,5,6),1),\"aaa\")","v":"Mon"},{"$f":"TEXT(WEEKDAY(DATE(ЖылдықКүнтізбе+1,5,7),1),\"aaa\")","v":"Tue"},{"$f":"TEXT(WEEKDAY(DATE(ЖылдықКүнтізбе+1,5,8),1),\"aaa\")","v":"Wed"},{"$f":"TEXT(WEEKDAY(DATE(ЖылдықКүнтізбе+1,5,9),1),\"aaa\")","v":"Thu"},{"$f":"TEXT(WEEKDAY(DATE(ЖылдықКүнтізбе+1,5,10),1),\"aaa\")","v":"Fri"},{"$f":"TEXT(WEEKDAY(DATE(ЖылдықКүнтізбе+1,5,11),1),\"aaa\")","v":"Sat"},{"$f":"TEXT(WEEKDAY(DATE(ЖылдықКүнтізбе+1,5,12),1),\"aaa\")","v":"Sun"},{"$f":"TEXT(WEEKDAY(DATE(ЖылдықКүнтізбе+1,5,13),1),\"aaa\")","v":"Mon"},{"$f":"TEXT(WEEKDAY(DATE(ЖылдықКүнтізбе+1,5,14),1),\"aaa\")","v":"Tue"},{"$f":"TEXT(WEEKDAY(DATE(ЖылдықКүнтізбе+1,5,15),1),\"aaa\")","v":"Wed"},{"$f":"TEXT(WEEKDAY(DATE(ЖылдықКүнтізбе+1,5,16),1),\"aaa\")","v":"Thu"},{"$f":"TEXT(WEEKDAY(DATE(ЖылдықКүнтізбе+1,5,17),1),\"aaa\")","v":"Fri"},{"$f":"TEXT(WEEKDAY(DATE(ЖылдықКүнтізбе+1,5,18),1),\"aaa\")","v":"Sat"},{"$f":"TEXT(WEEKDAY(DATE(ЖылдықКүнтізбе+1,5,19),1),\"aaa\")","v":"Sun"},{"$f":"TEXT(WEEKDAY(DATE(ЖылдықКүнтізбе+1,5,20),1),\"aaa\")","v":"Mon"},{"$f":"TEXT(WEEKDAY(DATE(ЖылдықКүнтізбе+1,5,21),1),\"aaa\")","v":"Tue"},{"$f":"TEXT(WEEKDAY(DATE(ЖылдықКүнтізбе+1,5,22),1),\"aaa\")","v":"Wed"},{"$f":"TEXT(WEEKDAY(DATE(ЖылдықКүнтізбе+1,5,23),1),\"aaa\")","v":"Thu"},{"$f":"TEXT(WEEKDAY(DATE(ЖылдықКүнтізбе+1,5,24),1),\"aaa\")","v":"Fri"},{"$f":"TEXT(WEEKDAY(DATE(ЖылдықКүнтізбе+1,5,25),1),\"aaa\")","v":"Sat"},{"$f":"TEXT(WEEKDAY(DATE(ЖылдықКүнтізбе+1,5,26),1),\"aaa\")","v":"Sun"},{"$f":"TEXT(WEEKDAY(DATE(ЖылдықКүнтізбе+1,5,27),1),\"aaa\")","v":"Mon"},{"$f":"TEXT(WEEKDAY(DATE(ЖылдықКүнтізбе+1,5,28),1),\"aaa\")","v":"Tue"},{"$f":"TEXT(WEEKDAY(DATE(ЖылдықКүнтізбе+1,5,29),1),\"aaa\")","v":"Wed"},{"$f":"TEXT(WEEKDAY(DATE(ЖылдықКүнтізбе+1,5,30),1),\"aaa\")","v":"Thu"},{"$f":"TEXT(WEEKDAY(DATE(ЖылдықКүнтізбе+1,5,31),1),\"aaa\")","v":"Fri"},"Қорытындылар"]
[null,"Оқушы идентификаторы","Оқушы аты","1","2","3","4","5","6","7","8","9","10","11","12","13","14","15","16","17","18","19","20","21","22","23","24","25","26","27","28","29","30","31","К","P","Pi","Б","Болмаған күндері"]
[null,null,{"$f":"IFERROR(VLOOKUP(МамырҚатысу[[#This Row],[Оқушы идентификаторы]],СтуденттерТізімі[],18,FALSE),\"\")","v":""},{"$nulls":31},{"$f":"COUNTIF(МамырҚатысу[[#This Row],[1]:[31]],1-код)","v":0},{"$f":"COUNTIF(МамырҚатысу[[#This Row],[1]:[31]],2-код)","v":0},{"$f":"COUNTIF(МамырҚатысу[[#This Row],[1]:[31]],3-код)","v":0},{"$f":"COUNTIF(МамырҚатысу[[#This Row],[1]:[31]],4-код)","v":0},{"$f":"SUM(ҚыркүйекҚатысу[[#This Row],[P]:[Pi]])","v":0}]
[null,null,{"$f":"IFERROR(VLOOKUP(МамырҚатысу[[#This Row],[Оқушы идентификаторы]],СтуденттерТізімі[],18,FALSE),\"\")","v":""},{"$nulls":31},{"$f":"COUNTIF(МамырҚатысу[[#This Row],[1]:[31]],1-код)","v":0},{"$f":"COUNTIF(МамырҚатысу[[#This Row],[1]:[31]],2-код)","v":0},{"$f":"COUNTIF(МамырҚатысу[[#This Row],[1]:[31]],3-код)","v":0},{"$f":"COUNTIF(МамырҚатысу[[#This Row],[1]:[31]],4-код)","v":0},{"$f":"SUM(ҚыркүйекҚатысу[[#This Row],[P]:[Pi]])","v":0}]
[null,null,{"$f":"IFERROR(VLOOKUP(МамырҚатысу[[#This Row],[Оқушы идентификаторы]],СтуденттерТізімі[],18,FALSE),\"\")","v":""},{"$nulls":31},{"$f":"COUNTIF(МамырҚатысу[[#This Row],[1]:[31]],1-код)","v":0},{"$f":"COUNTIF(МамырҚатысу[[#This Row],[1]:[31]],2-код)","v":0},{"$f":"COUNTIF(МамырҚатысу[[#This Row],[1]:[31]],3-код)","v":0},{"$f":"COUNTIF(МамырҚатысу[[#This Row],[1]:[31]],4-код)","v":0},{"$f":"SUM(ҚыркүйекҚатысу[[#This Row],[P]:[Pi]])","v":0}]
[null,null,{"$f":"IFERROR(VLOOKUP(МамырҚатысу[[#This Row],[Оқушы идентификаторы]],СтуденттерТізімі[],18,FALSE),\"\")","v":""},{"$nulls":31},{"$f":"COUNTIF(МамырҚатысу[[#This Row],[1]:[31]],1-код)","v":0},{"$f":"COUNTIF(МамырҚатысу[[#This Row],[1]:[31]],2-код)","v":0},{"$f":"COUNTIF(МамырҚатысу[[#This Row],[1]:[31]],3-код)","v":0},{"$f":"COUNTIF(МамырҚатысу[[#This Row],[1]:[31]],4-код)","v":0},{"$f":"SUM(ҚыркүйекҚатысу[[#This Row],[P]:[Pi]])","v":0}]
[null,null,{"$f":"IFERROR(VLOOKUP(МамырҚатысу[[#This Row],[Оқушы идентификаторы]],СтуденттерТізімі[],18,FALSE),\"\")","v":""},{"$nulls":31},{"$f":"COUNTIF(МамырҚатысу[[#This Row],[1]:[31]],1-код)","v":0},{"$f":"COUNTIF(МамырҚатысу[[#This Row],[1]:[31]],2-код)","v":0},{"$f":"COUNTIF(МамырҚатысу[[#This Row],[1]:[31]],3-код)","v":0},{"$f":"COUNTIF(МамырҚатысу[[#This Row],[1]:[31]],4-код)","v":0},{"$f":"SUM(ҚыркүйекҚатысу[[#This Row],[P]:[Pi]])","v":0}]
[null,null,"Жалпы болмаған күндері",{"$f":"COUNTIF(МамырҚатысу[1],\"Pi\")+COUNTIF(МамырҚатысу[1],\"P\")","v":0},{"$f":"COUNTIF(МамырҚатысу[2],\"Pi\")+COUNTIF(МамырҚатысу[2],\"P\")","v":0},{"$f":"COUNTIF(МамырҚатысу[3],\"Pi\")+COUNTIF(МамырҚатысу[3],\"P\")","v":0},{"$f":"COUNTIF(МамырҚатысу[4],\"Pi\")+COUNTIF(МамырҚатысу[4],\"P\")","v":0},{"$f":"COUNTIF(МамырҚатысу[5],\"Pi\")+COUNTIF(МамырҚатысу[5],\"P\")","v":0},{"$f":"COUNTIF(МамырҚатысу[6],\"Pi\")+COUNTIF(МамырҚатысу[6],\"P\")","v":0},{"$f":"COUNTIF(МамырҚатысу[7],\"Pi\")+COUNTIF(МамырҚатысу[7],\"P\")","v":0},{"$f":"COUNTIF(МамырҚатысу[8],\"Pi\")+COUNTIF(МамырҚатысу[8],\"P\")","v":0},{"$f":"COUNTIF(МамырҚатысу[9],\"Pi\")+COUNTIF(МамырҚатысу[9],\"P\")","v":0},{"$f":"COUNTIF(МамырҚатысу[10],\"Pi\")+COUNTIF(МамырҚатысу[10],\"P\")","v":0},{"$f":"COUNTIF(МамырҚатысу[11],\"Pi\")+COUNTIF(МамырҚатысу[11],\"P\")","v":0},{"$f":"COUNTIF(МамырҚатысу[12],\"Pi\")+COUNTIF(МамырҚатысу[12],\"P\")","v":0},{"$f":"COUNTIF(МамырҚатысу[13],\"Pi\")+COUNTIF(МамырҚатысу[13],\"P\")","v":0},{"$f":"COUNTIF(МамырҚатысу[14],\"Pi\")+COUNTIF(МамырҚатысу[14],\"P\")","v":0},{"$f":"COUNTIF(МамырҚатысу[15],\"Pi\")+COUNTIF(МамырҚатысу[15],\"P\")","v":0},{"$f":"COUNTIF(МамырҚатысу[16],\"Pi\")+COUNTIF(МамырҚатысу[16],\"P\")","v":0},{"$f":"COUNTIF(МамырҚатысу[17],\"Pi\")+COUNTIF(МамырҚатысу[17],\"P\")","v":0},{"$f":"COUNTIF(МамырҚатысу[18],\"Pi\")+COUNTIF(МамырҚатысу[18],\"P\")","v":0},{"$f":"COUNTIF(МамырҚатысу[19],\"Pi\")+COUNTIF(МамырҚатысу[19],\"P\")","v":0},{"$f":"COUNTIF(МамырҚатысу[20],\"Pi\")+COUNTIF(МамырҚатысу[20],\"P\")","v":0},{"$f":"COUNTIF(МамырҚатысу[21],\"Pi\")+COUNTIF(МамырҚатысу[21],\"P\")","v":0},{"$f":"COUNTIF(МамырҚатысу[22],\"Pi\")+COUNTIF(МамырҚатысу[22],\"P\")","v":0},{"$f":"COUNTIF(МамырҚатысу[23],\"Pi\")+COUNTIF(МамырҚатысу[23],\"P\")","v":0},{"$f":"COUNTIF(МамырҚатысу[24],\"Pi\")+COUNTIF(МамырҚатысу[24],\"P\")","v":0},{"$f":"COUNTIF(МамырҚатысу[25],\"Pi\")+COUNTIF(МамырҚатысу[25],\"P\")","v":0},{"$f":"COUNTIF(МамырҚатысу[26],\"Pi\")+COUNTIF(МамырҚатысу[26],\"P\")","v":0},{"$f":"COUNTIF(МамырҚатысу[27],\"Pi\")+COUNTIF(МамырҚатысу[27],\"P\")","v":0},{"$f":"COUNTIF(МамырҚатысу[28],\"Pi\")+COUNTIF(МамырҚатысу[28],\"P\")","v":0},{"$f":"COUNTIF(МамырҚатысу[29],\"Pi\")+COUNTIF(МамырҚатысу[29],\"P\")","v":0},{"$f":"COUNTIF(МамырҚатысу[30],\"Pi\")+COUNTIF(МамырҚатысу[30],\"P\")","v":0},{"$f":"COUNTIF(МамырҚатысу[31],\"Pi\")+COUNTIF(МамырҚатысу[31],\"P\")","v":0},{"$f":"SUBTOTAL(109,МамырҚатысу[К])","v":0},{"$f":"SUBTOTAL(109,МамырҚатысу[P])","v":0},{"$f":"SUBTOTAL(109,МамырҚатысу[Pi])","v":0},{"$f":"SUBTOTAL(109,МамырҚатысу[Б])","v":0},{"$f":"SUBTOTAL(109,МамырҚатысу[Болмаған күндері])","v":0}]

{"sheet":"Маусым","index":12,"n_rows":12,"n_cols":39,"rows_kept":12,"merged":[[4,34,4,38]]}
["ОҚУШЫНЫҢ ҚАТЫСУ ЖАЗБАСЫ",{"$nulls":36},"Оқу жылының басы:",{"$f":"ЖылдықКүнтізбе","v":2012}]
[]
[null,null,{"$f":"ТүстіКілтМәтін","v":"ТҮСТІ ПЕРНЕ"},{"$f":"1-код","v":"К"},{"$f":"1-кодМәтіні","v":"Кешіккен"},null,null,{"$f":"2-код","v":"P"},{"$f":"2-кодМәтіні","v":"Кешірілген"},null,null,{"$f":"3-код","v":"Pi"},{"$f":"3-кодМәтіні","v":"Кешірілмеген"},null,null,{"$f":"4-код","v":"Б"},{"$f":"4-кодМәтіні","v":"Бар"},null,null,{"$f":"5-код","v":"М"},{"$f":"5-кодМәтіні","v":"Мектепте емес"}]
[]
[null,{"$f":"DATE(ЖылдықКүнтізбе+1,6,1)","v":"2013-06-01"},null,{"$f":"TEXT(WEEKDAY(DATE(ЖылдықКүнтізбе+1,6,1),1),\"aaa\")","v":"Sat"},{"$f":"TEXT(WEEKDAY(DATE(ЖылдықКүнтізбе+1,6,2),1),\"aaa\")","v":"Sun"},{"$f":"TEXT(WEEKDAY(DATE(ЖылдықКүнтізбе+1,6,3),1),\"aaa\")","v":"Mon"},{"$f":"TEXT(WEEKDAY(DATE(ЖылдықКүнтізбе+1,6,4),1),\"aaa\")","v":"Tue"},{"$f":"TEXT(WEEKDAY(DATE(ЖылдықКүнтізбе+1,6,5),1),\"aaa\")","v":"Wed"},{"$f":"TEXT(WEEKDAY(DATE(ЖылдықКүнтізбе+1,6,6),1),\"aaa\")","v":"Thu"},{"$f":"TEXT(WEEKDAY(DATE(ЖылдықКүнтізбе+1,6,7),1),\"aaa\")","v":"Fri"},{"$f":"TEXT(WEEKDAY(DATE(ЖылдықКүнтізбе+1,6,8),1),\"aaa\")","v":"Sat"},{"$f":"TEXT(WEEKDAY(DATE(ЖылдықКүнтізбе+1,6,9),1),\"aaa\")","v":"Sun"},{"$f":"TEXT(WEEKDAY(DATE(ЖылдықКүнтізбе+1,6,10),1),\"aaa\")","v":"Mon"},{"$f":"TEXT(WEEKDAY(DATE(ЖылдықКүнтізбе+1,6,11),1),\"aaa\")","v":"Tue"},{"$f":"TEXT(WEEKDAY(DATE(ЖылдықКүнтізбе+1,6,12),1),\"aaa\")","v":"Wed"},{"$f":"TEXT(WEEKDAY(DATE(ЖылдықКүнтізбе+1,6,13),1),\"aaa\")","v":"Thu"},{"$f":"TEXT(WEEKDAY(DATE(ЖылдықКүнтізбе+1,6,14),1),\"aaa\")","v":"Fri"},{"$f":"TEXT(WEEKDAY(DATE(ЖылдықКүнтізбе+1,6,15),1),\"aaa\")","v":"Sat"},{"$f":"TEXT(WEEKDAY(DATE(ЖылдықКүнтізбе+1,6,16),1),\"aaa\")","v":"Sun"},{"$f":"TEXT(WEEKDAY(DATE(ЖылдықКүнтізбе+1,6,17),1),\"aaa\")","v":"Mon"},{"$f":"TEXT(WEEKDAY(DATE(ЖылдықКүнтізбе+1,6,18),1),\"aaa\")","v":"Tue"},{"$f":"TEXT(WEEKDAY(DATE(ЖылдықКүнтізбе+1,6,19),1),\"aaa\")","v":"Wed"},{"$f":"TEXT(WEEKDAY(DATE(ЖылдықКүнтізбе+1,6,20),1),\"aaa\")","v":"Thu"},{"$f":"TEXT(WEEKDAY(DATE(ЖылдықКүнтізбе+1,6,21),1),\"aaa\")","v":"Fri"},{"$f":"TEXT(WEEKDAY(DATE(ЖылдықКүнтізбе+1,6,22),1),\"aaa\")","v":"Sat"},{"$f":"TEXT(WEEKDAY(DATE(ЖылдықКүнтізбе+1,6,23),1),\"aaa\")","v":"Sun"},{"$f":"TEXT(WEEKDAY(DATE(ЖылдықКүнтізбе+1,6,24),1),\"aaa\")","v":"Mon"},{"$f":"TEXT(WEEKDAY(DATE(ЖылдықКүнтізбе+1,6,25),1),\"aaa\")","v":"Tue"},{"$f":"TEXT(WEEKDAY(DATE(ЖылдықКүнтізбе+1,6,26),1),\"aaa\")","v":"Wed"},{"$f":"TEXT(WEEKDAY(DATE(ЖылдықКүнтізбе+1,6,27),1),\"aaa\")","v":"Thu"},{"$f":"TEXT(WEEKDAY(DATE(ЖылдықКүнтізбе+1,6,28),1),\"aaa\")","v":"Fri"},{"$f":"TEXT(WEEKDAY(DATE(ЖылдықКүнтізбе+1,6,29),1),\"aaa\")","v":"Sat"},{"$f":"TEXT(WEEKDAY(DATE(ЖылдықКүнтізбе+1,6,30),1),\"aaa\")","v":"Sun"},null,"Қорытындылар"]
[null,"Оқушы идентификаторы","Оқушы аты","1","2","3","4","5","6","7","8","9","10","11","12","13","14","15","16","17","18","19","20","21","22","23","24","25","26","27","28","29","30"," ","К","P","Pi","Б","Болмаған күндері"]
[null,null,{"$f":"IFERROR(VLOOKUP(МаусымҚатысу[[#This Row],[Оқушы идентификаторы]],СтуденттерТізімі[],18,FALSE),\"\")","v":""},{"$nulls":31},{"$f":"COUNTIF(МаусымҚатысу[[#This Row],[1]:[ ]],1-код)","v":0},{"$f":"COUNTIF(МаусымҚатысу[[#This Row],[1]:[ ]],2-код)","v":0},{"$f":"COUNTIF(МаусымҚатысу[[#This Row],[1]:[ ]],3-код)","v":0},{"$f":"COUNTIF(МаусымҚатысу[[#This Row],[1]:[ ]],4-код)","v":0},{"$f":"SUM(ҚыркүйекҚатысу[[#This Row],[P]:[Pi]])","v":0}]
[null,null,{"$f":"IFERROR(VLOOKUP(МаусымҚатысу[[#This Row],[Оқушы идентификаторы]],СтуденттерТізімі[],18,FALSE),\"\")","v":""},{"$nulls":31},{"$f":"COUNTIF(МаусымҚатысу[[#This Row],[1]:[ ]],1-код)","v":0},{"$f":"COUNTIF(МаусымҚатысу[[#This Row],[1]:[ ]],2-код)","v":0},{"$f":"COUNTIF(МаусымҚатысу[[#This Row],[1]:[ ]],3-код)","v":0},{"$f":"COUNTIF(МаусымҚатысу[[#This Row],[1]:[ ]],4-код)","v":0},{"$f":"SUM(ҚыркүйекҚатысу[[#This Row],[P]:[Pi]])","v":0}]
[null,null,{"$f":"IFERROR(VLOOKUP(МаусымҚатысу[[#This Row],[Оқушы идентификаторы]],СтуденттерТізімі[],18,FALSE),\"\")","v":""},{"$nulls":31},{"$f":"COUNTIF(МаусымҚатысу[[#This Row],[1]:[ ]],1-код)","v":0},{"$f":"COUNTIF(МаусымҚатысу[[#This Row],[1]:[ ]],2-код)","v":0},{"$f":"COUNTIF(МаусымҚатысу[[#This Row],[1]:[ ]],3-код)","v":0},{"$f":"COUNTIF(МаусымҚатысу[[#This Row],[1]:[ ]],4-код)","v":0},{"$f":"SUM(ҚыркүйекҚатысу[[#This Row],[P]:[Pi]])","v":0}]
[null,null,{"$f":"IFERROR(VLOOKUP(МаусымҚатысу[[#This Row],[Оқушы идентификаторы]],СтуденттерТізімі[],18,FALSE),\"\")","v":""},{"$nulls":31},{"$f":"COUNTIF(МаусымҚатысу[[#This Row],[1]:[ ]],1-код)","v":0},{"$f":"COUNTIF(МаусымҚатысу[[#This Row],[1]:[ ]],2-код)","v":0},{"$f":"COUNTIF(МаусымҚатысу[[#This Row],[1]:[ ]],3-код)","v":0},{"$f":"COUNTIF(МаусымҚатысу[[#This Row],[1]:[ ]],4-код)","v":0},{"$f":"SUM(ҚыркүйекҚатысу[[#This Row],[P]:[Pi]])","v":0}]
[null,null,{"$f":"IFERROR(VLOOKUP(МаусымҚатысу[[#This Row],[Оқушы идентификаторы]],СтуденттерТізімі[],18,FALSE),\"\")","v":""},{"$nulls":31},{"$f":"COUNTIF(МаусымҚатысу[[#This Row],[1]:[ ]],1-код)","v":0},{"$f":"COUNTIF(МаусымҚатысу[[#This Row],[1]:[ ]],2-код)","v":0},{"$f":"COUNTIF(МаусымҚатысу[[#This Row],[1]:[ ]],3-код)","v":0},{"$f":"COUNTIF(МаусымҚатысу[[#This Row],[1]:[ ]],4-код)","v":0},{"$f":"SUM(ҚыркүйекҚатысу[[#This Row],[P]:[Pi]])","v":0}]
[null,null,"Жалпы болмаған күндері",{"$f":"COUNTIF(МаусымҚатысу[1],\"Pi\")+COUNTIF(МаусымҚатысу[1],\"P\")","v":0},{"$f":"COUNTIF(МаусымҚатысу[2],\"Pi\")+COUNTIF(МаусымҚатысу[2],\"P\")","v":0},{"$f":"COUNTIF(МаусымҚатысу[3],\"Pi\")+COUNTIF(МаусымҚатысу[3],\"P\")","v":0},{"$f":"COUNTIF(МаусымҚатысу[4],\"Pi\")+COUNTIF(МаусымҚатысу[4],\"P\")","v":0},{"$f":"COUNTIF(МаусымҚатысу[5],\"Pi\")+COUNTIF(МаусымҚатысу[5],\"P\")","v":0},{"$f":"COUNTIF(МаусымҚатысу[6],\"Pi\")+COUNTIF(МаусымҚатысу[6],\"P\")","v":0},{"$f":"COUNTIF(МаусымҚатысу[7],\"Pi\")+COUNTIF(МаусымҚатысу[7],\"P\")","v":0},{"$f":"COUNTIF(МаусымҚатысу[8],\"Pi\")+COUNTIF(МаусымҚатысу[8],\"P\")","v":0},{"$f":"COUNTIF(МаусымҚатысу[9],\"Pi\")+COUNTIF(МаусымҚатысу[9],\"P\")","v":0},{"$f":"COUNTIF(МаусымҚатысу[10],\"Pi\")+COUNTIF(МаусымҚатысу[10],\"P\")","v":0},{"$f":"COUNTIF(МаусымҚатысу[11],\"Pi\")+COUNTIF(МаусымҚатысу[11],\"P\")","v":0},{"$f":"COUNTIF(МаусымҚатысу[12],\"Pi\")+COUNTIF(МаусымҚатысу[12],\"P\")","v":0},{"$f":"COUNTIF(МаусымҚатысу[13],\"Pi\")+COUNTIF(МаусымҚатысу[13],\"P\")","v":0},{"$f":"COUNTIF(МаусымҚатысу[14],\"Pi\")+COUNTIF(МаусымҚатысу[14],\"P\")","v":0},{"$f":"COUNTIF(МаусымҚатысу[15],\"Pi\")+COUNTIF(МаусымҚатысу[15],\"P\")","v":0},{"$f":"COUNTIF(МаусымҚатысу[16],\"Pi\")+COUNTIF(МаусымҚатысу[16],\"P\")","v":0},{"$f":"COUNTIF(МаусымҚатысу[17],\"Pi\")+COUNTIF(МаусымҚатысу[17],\"P\")","v":0},{"$f":"COUNTIF(МаусымҚатысу[18],\"Pi\")+COUNTIF(МаусымҚатысу[18],\"P\")","v":0},{"$f":"COUNTIF(МаусымҚатысу[19],\"Pi\")+COUNTIF(МаусымҚатысу[19],\"P\")","v":0},{"$f":"COUNTIF(МаусымҚатысу[20],\"Pi\")+COUNTIF(МаусымҚатысу[20],\"P\")","v":0},{"$f":"COUNTIF(МаусымҚатысу[21],\"Pi\")+COUNTIF(МаусымҚатысу[21],\"P\")","v":0},{"$f":"COUNTIF(МаусымҚатысу[22],\"Pi\")+COUNTIF(МаусымҚатысу[22],\"P\")","v":0},{"$f":"COUNTIF(МаусымҚатысу[23],\"Pi\")+COUNTIF(МаусымҚатысу[23],\"P\")","v":0},{"$f":"COUNTIF(МаусымҚатысу[24],\"Pi\")+COUNTIF(МаусымҚатысу[24],\"P\")","v":0},{"$f":"COUNTIF(МаусымҚатысу[25],\"Pi\")+COUNTIF(МаусымҚатысу[25],\"P\")","v":0},{"$f":"COUNTIF(МаусымҚатысу[26],\"Pi\")+COUNTIF(МаусымҚатысу[26],\"P\")","v":0},{"$f":"COUNTIF(МаусымҚатысу[27],\"Pi\")+COUNTIF(МаусымҚатысу[27],\"P\")","v":0},{"$f":"COUNTIF(МаусымҚатысу[28],\"Pi\")+COUNTIF(МаусымҚатысу[28],\"P\")","v":0},{"$f":"COUNTIF(МаусымҚатысу[29],\"Pi\")+COUNTIF(МаусымҚатысу[29],\"P\")","v":0},{"$f":"COUNTIF(МаусымҚатысу[30],\"Pi\")+COUNTIF(МаусымҚатысу[30],\"P\")","v":0},{"$f":"COUNTIF(МаусымҚатысу[[ ]],\"Pi\")+COUNTIF(МаусымҚатысу[[ ]],\"P\")","v":0},{"$f":"SUBTOTAL(109,МаусымҚатысу[К])","v":0},{"$f":"SUBTOTAL(109,МаусымҚатысу[P])","v":0},{"$f":"SUBTOTAL(109,МаусымҚатысу[Pi])","v":0},{"$f":"SUBTOTAL(109,МаусымҚатысу[Б])","v":0},{"$f":"SUBTOTAL(109,МаусымҚатысу[Болмаған күндері])","v":0}]

{"sheet":"Шілде","index":13,"n_rows":12,"n_cols":39,"rows_kept":12,"merged":[[4,34,4,38]]}
["ОҚУШЫНЫҢ ҚАТЫСУ ЖАЗБАСЫ",{"$nulls":36},"Оқу жылының басы:",{"$f":"ЖылдықКүнтізбе","v":2012}]
[]
[null,null,{"$f":"ТүстіКілтМәтін","v":"ТҮСТІ ПЕРНЕ"},{"$f":"1-код","v":"К"},{"$f":"1-кодМәтіні","v":"Кешіккен"},null,null,{"$f":"2-код","v":"P"},{"$f":"2-кодМәтіні","v":"Кешірілген"},null,null,{"$f":"3-код","v":"Pi"},{"$f":"3-кодМәтіні","v":"Кешірілмеген"},null,null,{"$f":"4-код","v":"Б"},{"$f":"4-кодМәтіні","v":"Бар"},null,null,{"$f":"5-код","v":"М"},{"$f":"5-кодМәтіні","v":"Мектепте емес"}]
[]
[null,{"$f":"DATE(ЖылдықКүнтізбе+1,7,1)","v":"2013-07-01"},null,{"$f":"TEXT(WEEKDAY(DATE(ЖылдықКүнтізбе+1,7,1),1),\"aaa\")","v":"Mon"},{"$f":"TEXT(WEEKDAY(DATE(ЖылдықКүнтізбе+1,7,2),1),\"aaa\")","v":"Tue"},{"$f":"TEXT(WEEKDAY(DATE(ЖылдықКүнтізбе+1,7,3),1),\"aaa\")","v":"Wed"},{"$f":"TEXT(WEEKDAY(DATE(ЖылдықКүнтізбе+1,7,4),1),\"aaa\")","v":"Thu"},{"$f":"TEXT(WEEKDAY(DATE(ЖылдықКүнтізбе+1,7,5),1),\"aaa\")","v":"Fri"},{"$f":"TEXT(WEEKDAY(DATE(ЖылдықКүнтізбе+1,7,6),1),\"aaa\")","v":"Sat"},{"$f":"TEXT(WEEKDAY(DATE(ЖылдықКүнтізбе+1,7,7),1),\"aaa\")","v":"Sun"},{"$f":"TEXT(WEEKDAY(DATE(ЖылдықКүнтізбе+1,7,8),1),\"aaa\")","v":"Mon"},{"$f":"TEXT(WEEKDAY(DATE(ЖылдықКүнтізбе+1,7,9),1),\"aaa\")","v":"Tue"},{"$f":"TEXT(WEEKDAY(DATE(ЖылдықКүнтізбе+1,7,10),1),\"aaa\")","v":"Wed"},{"$f":"TEXT(WEEKDAY(DATE(ЖылдықКүнтізбе+1,7,11),1),\"aaa\")","v":"Thu"},{"$f":"TEXT(WEEKDAY(DATE(ЖылдықКүнтізбе+1,7,12),1),\"aaa\")","v":"Fri"},{"$f":"TEXT(WEEKDAY(DATE(ЖылдықКүнтізбе+1,7,13),1),\"aaa\")","v":"Sat"},{"$f":"TEXT(WEEKDAY(DATE(ЖылдықКүнтізбе+1,7,14),1),\"aaa\")","v":"Sun"},{"$f":"TEXT(WEEKDAY(DATE(ЖылдықКүнтізбе+1,7,15),1),\"aaa\")","v":"Mon"},{"$f":"TEXT(WEEKDAY(DATE(ЖылдықКүнтізбе+1,7,16),1),\"aaa\")","v":"Tue"},{"$f":"TEXT(WEEKDAY(DATE(ЖылдықКүнтізбе+1,7,17),1),\"aaa\")","v":"Wed"},{"$f":"TEXT(WEEKDAY(DATE(ЖылдықКүнтізбе+1,7,18),1),\"aaa\")","v":"Thu"},{"$f":"TEXT(WEEKDAY(DATE(ЖылдықКүнтізбе+1,7,19),1),\"aaa\")","v":"Fri"},{"$f":"TEXT(WEEKDAY(DATE(ЖылдықКүнтізбе+1,7,20),1),\"aaa\")","v":"Sat"},{"$f":"TEXT(WEEKDAY(DATE(ЖылдықКүнтізбе+1,7,21),1),\"aaa\")","v":"Sun"},{"$f":"TEXT(WEEKDAY(DATE(ЖылдықКүнтізбе+1,7,22),1),\"aaa\")","v":"Mon"},{"$f":"TEXT(WEEKDAY(DATE(ЖылдықКүнтізбе+1,7,23),1),\"aaa\")","v":"Tue"},{"$f":"TEXT(WEEKDAY(DATE(ЖылдықКүнтізбе+1,7,24),1),\"aaa\")","v":"Wed"},{"$f":"TEXT(WEEKDAY(DATE(ЖылдықКүнтізбе+1,7,25),1),\"aaa\")","v":"Thu"},{"$f":"TEXT(WEEKDAY(DATE(ЖылдықКүнтізбе+1,7,26),1),\"aaa\")","v":"Fri"},{"$f":"TEXT(WEEKDAY(DATE(ЖылдықКүнтізбе+1,7,27),1),\"aaa\")","v":"Sat"},{"$f":"TEXT(WEEKDAY(DATE(ЖылдықКүнтізбе+1,7,28),1),\"aaa\")","v":"Sun"},{"$f":"TEXT(WEEKDAY(DATE(ЖылдықКүнтізбе+1,7,29),1),\"aaa\")","v":"Mon"},{"$f":"TEXT(WEEKDAY(DATE(ЖылдықКүнтізбе+1,7,30),1),\"aaa\")","v":"Tue"},{"$f":"TEXT(WEEKDAY(DATE(ЖылдықКүнтізбе+1,7,31),1),\"aaa\")","v":"Wed"},"Қорытындылар"]
[null,"Оқушы идентификаторы","Оқушы аты","1","2","3","4","5","6","7","8","9","10","11","12","13","14","15","16","17","18","19","20","21","22","23","24","25","26","27","28","29","30","31","К","P","Pi","Б","Болмаған күндері"]
[null,null,{"$f":"IFERROR(VLOOKUP(ШілдеҚатысу[[#This Row],[Оқушы идентификаторы]],СтуденттерТізімі[],18,FALSE),\"\")","v":""},{"$nulls":31},{"$f":"COUNTIF(ШілдеҚатысу[[#This Row],[1]:[31]],1-код)","v":0},{"$f":"COUNTIF(ШілдеҚатысу[[#This Row],[1]:[31]],2-код)","v":0},{"$f":"COUNTIF(ШілдеҚатысу[[#This Row],[1]:[31]],3-код)","v":0},{"$f":"COUNTIF(ШілдеҚатысу[[#This Row],[1]:[31]],4-код)","v":0},{"$f":"SUM(ҚыркүйекҚатысу[[#This Row],[P]:[Pi]])","v":0}]
[null,null,{"$f":"IFERROR(VLOOKUP(ШілдеҚатысу[[#This Row],[Оқушы идентификаторы]],СтуденттерТізімі[],18,FALSE),\"\")","v":""},{"$nulls":31},{"$f":"COUNTIF(ШілдеҚатысу[[#This Row],[1]:[31]],1-код)","v":0},{"$f":"COUNTIF(ШілдеҚатысу[[#This Row],[1]:[31]],2-код)","v":0},{"$f":"COUNTIF(ШілдеҚатысу[[#This Row],[1]:[31]],3-код)","v":0},{"$f":"COUNTIF(ШілдеҚатысу[[#This Row],[1]:[31]],4-код)","v":0},{"$f":"SUM(ҚыркүйекҚатысу[[#This Row],[P]:[Pi]])","v":0}]
[null,null,{"$f":"IFERROR(VLOOKUP(ШілдеҚатысу[[#This Row],[Оқушы идентификаторы]],СтуденттерТізімі[],18,FALSE),\"\")","v":""},{"$nulls":31},{"$f":"COUNTIF(ШілдеҚатысу[[#This Row],[1]:[31]],1-код)","v":0},{"$f":"COUNTIF(ШілдеҚатысу[[#This Row],[1]:[31]],2-код)","v":0},{"$f":"COUNTIF(ШілдеҚатысу[[#This Row],[1]:[31]],3-код)","v":0},{"$f":"COUNTIF(ШілдеҚатысу[[#This Row],[1]:[31]],4-код)","v":0},{"$f":"SUM(ҚыркүйекҚатысу[[#This Row],[P]:[Pi]])","v":0}]
[null,null,{"$f":"IFERROR(VLOOKUP(ШілдеҚатысу[[#This Row],[Оқушы идентификаторы]],СтуденттерТізімі[],18,FALSE),\"\")","v":""},{"$nulls":31},{"$f":"COUNTIF(ШілдеҚатысу[[#This Row],[1]:[31]],1-код)","v":0},{"$f":"COUNTIF(ШілдеҚатысу[[#This Row],[1]:[31]],2-код)","v":0},{"$f":"COUNTIF(ШілдеҚатысу[[#This Row],[1]:[31]],3-код)","v":0},{"$f":"COUNTIF(ШілдеҚатысу[[#This Row],[1]:[31]],4-код)","v":0},{"$f":"SUM(ҚыркүйекҚатысу[[#This Row],[P]:[Pi]])","v":0}]
[null,null,{"$f":"IFERROR(VLOOKUP(ШілдеҚатысу[[#This Row],[Оқушы идентификаторы]],СтуденттерТізімі[],18,FALSE),\"\")","v":""},{"$nulls":31},{"$f":"COUNTIF(ШілдеҚатысу[[#This Row],[1]:[31]],1-код)","v":0},{"$f":"COUNTIF(ШілдеҚатысу[[#This Row],[1]:[31]],2-код)","v":0},{"$f":"COUNTIF(ШілдеҚатысу[[#This Row],[1]:[31]],3-код)","v":0},{"$f":"COUNTIF(ШілдеҚатысу[[#This Row],[1]:[31]],4-код)","v":0},{"$f":"SUM(ҚыркүйекҚатысу[[#This Row],[P]:[Pi]])","v":0}]
[null,null,"Жалпы болмаған күндері",{"$f":"COUNTIF(ШілдеҚатысу[1],\"Pi\")+COUNTIF(ШілдеҚатысу[1],\"P\")","v":0},{"$f":"COUNTIF(ШілдеҚатысу[2],\"Pi\")+COUNTIF(ШілдеҚатысу[2],\"P\")","v":0},{"$f":"COUNTIF(ШілдеҚатысу[3],\"Pi\")+COUNTIF(ШілдеҚатысу[3],\"P\")","v":0},{"$f":"COUNTIF(ШілдеҚатысу[4],\"Pi\")+COUNTIF(ШілдеҚатысу[4],\"P\")","v":0},{"$f":"COUNTIF(ШілдеҚатысу[5],\"Pi\")+COUNTIF(ШілдеҚатысу[5],\"P\")","v":0},{"$f":"COUNTIF(ШілдеҚатысу[6],\"Pi\")+COUNTIF(ШілдеҚатысу[6],\"P\")","v":0},{"$f":"COUNTIF(ШілдеҚатысу[7],\"Pi\")+COUNTIF(ШілдеҚатысу[7],\"P\")","v":0},{"$f":"COUNTIF(ШілдеҚатысу[8],\"Pi\")+COUNTIF(ШілдеҚатысу[8],\"P\")","v":0},{"$f":"COUNTIF(ШілдеҚатысу[9],\"Pi\")+COUNTIF(ШілдеҚатысу[9],\"P\")","v":0},{"$f":"COUNTIF(ШілдеҚатысу[10],\"Pi\")+COUNTIF(ШілдеҚатысу[10],\"P\")","v":0},{"$f":"COUNTIF(ШілдеҚатысу[11],\"Pi\")+COUNTIF(ШілдеҚатысу[11],\"P\")","v":0},{"$f":"COUNTIF(ШілдеҚатысу[12],\"Pi\")+COUNTIF(ШілдеҚатысу[12],\"P\")","v":0},{"$f":"COUNTIF(ШілдеҚатысу[13],\"Pi\")+COUNTIF(ШілдеҚатысу[13],\"P\")","v":0},{"$f":"COUNTIF(ШілдеҚатысу[14],\"Pi\")+COUNTIF(ШілдеҚатысу[14],\"P\")","v":0},{"$f":"COUNTIF(ШілдеҚатысу[15],\"Pi\")+COUNTIF(ШілдеҚатысу[15],\"P\")","v":0},{"$f":"COUNTIF(ШілдеҚатысу[16],\"Pi\")+COUNTIF(ШілдеҚатысу[16],\"P\")","v":0},{"$f":"COUNTIF(ШілдеҚатысу[17],\"Pi\")+COUNTIF(ШілдеҚатысу[17],\"P\")","v":0},{"$f":"COUNTIF(ШілдеҚатысу[18],\"Pi\")+COUNTIF(ШілдеҚатысу[18],\"P\")","v":0},{"$f":"COUNTIF(ШілдеҚатысу[19],\"Pi\")+COUNTIF(ШілдеҚатысу[19],\"P\")","v":0},{"$f":"COUNTIF(ШілдеҚатысу[20],\"Pi\")+COUNTIF(ШілдеҚатысу[20],\"P\")","v":0},{"$f":"COUNTIF(ШілдеҚатысу[21],\"Pi\")+COUNTIF(ШілдеҚатысу[21],\"P\")","v":0},{"$f":"COUNTIF(ШілдеҚатысу[22],\"Pi\")+COUNTIF(ШілдеҚатысу[22],\"P\")","v":0},{"$f":"COUNTIF(ШілдеҚатысу[23],\"Pi\")+COUNTIF(ШілдеҚатысу[23],\"P\")","v":0},{"$f":"COUNTIF(ШілдеҚатысу[24],\"Pi\")+COUNTIF(ШілдеҚатысу[24],\"P\")","v":0},{"$f":"COUNTIF(ШілдеҚатысу[25],\"Pi\")+COUNTIF(ШілдеҚатысу[25],\"P\")","v":0},{"$f":"COUNTIF(ШілдеҚатысу[26],\"Pi\")+COUNTIF(ШілдеҚатысу[26],\"P\")","v":0},{"$f":"COUNTIF(ШілдеҚатысу[27],\"Pi\")+COUNTIF(ШілдеҚатысу[27],\"P\")","v":0},{"$f":"COUNTIF(ШілдеҚатысу[28],\"Pi\")+COUNTIF(ШілдеҚатысу[28],\"P\")","v":0},{"$f":"COUNTIF(ШілдеҚатысу[29],\"Pi\")+COUNTIF(ШілдеҚатысу[29],\"P\")","v":0},{"$f":"COUNTIF(ШілдеҚатысу[30],\"Pi\")+COUNTIF(ШілдеҚатысу[30],\"P\")","v":0},{"$f":"COUNTIF(ШілдеҚатысу[31],\"Pi\")+COUNTIF(ШілдеҚатысу[31],\"P\")","v":0},{"$f":"SUBTOTAL(109,ШілдеҚатысу[К])","v":0},{"$f":"SUBTOTAL(109,ШілдеҚатысу[P])","v":0},{"$f":"SUBTOTAL(109,ШілдеҚатысу[Pi])","v":0},{"$f":"SUBTOTAL(109,ШілдеҚатысу[Б])","v":0},{"$f":"SUBTOTAL(109,ШілдеҚатысу[Болмаған күндері])","v":0}]

{"sheet":"Оқушының қатысуы туралы есеп","index":14,"n_rows":40,"n_cols":37,"rows_kept":40,"merged":[[2,3,2,14],[2,15,2,17],[2,18,2,21],[2,22,2,29],[2,30,2,31],[2,32,2,35],[3,1,3,2],[3,3,3,14],[3,15,3,17],[3,18,3,21],[3,22,3,29],[3,30,3,31],[3,32,3,35],[4,1,4,9],[4,10,4,21],[4,22,4,29],[4,30,4,36],[5,1,5,9],[5,10,5,21],[5,22,5,29],[5,30,5,36],[6,1,6,9],[6,10,6,21],[6,22,6,29],[6,30,6,36],[7,1,7,9],[7,10,7,21],[7,22,7,29],[7,30,7,36],[8,1,8,9],[8,10,8,21],[8,22,8,29],[8,30,8,36],[9,1,9,9],[9,10,9,21],[9,22,9,29],[9,30,9,36],[13,1,14,32],[13,33,13,36],[15,1,16,1],[15,33,16,33],[15,34,16,34],[15,35,16,35],[15,36,16,36],[17,1,18,1],[17,33,18,33],[17,34,18,34],[17,35,18,35],[17,36,18,36],[19,1,20,1],[19,33,20,33],[19,34,20,34],[19,35,20,35],[19,36,20,36],[21,1,22,1],[21,33,22,33],[21,34,22,34],[21,35,22,35],[21,36,22,36],[23,1,24,1],[23,33,24,33],[23,34,24,34],[23,35,24,35],[23,36,24,36],[25,1,26,1],[25,33,26,33],[25,34,26,34],[25,35,26,35],[25,36,26,36],[27,1,28,1],[27,33,28,33],[27,34,28,34],[27,35,28,35],[27,36,28,36],[29,1,30,1],[29,33,30,33],[29,34,30,34],[29,35,30,35],[29,36,30,36],[31,1,32,1],[31,33,32,33],[31,34,32,34],[31,35,32,35],[31,36,32,36],[33,1,34,1],[33,33,34,33],[33,34,34,34],[33,35,34,35],[33,36,34,36],[35,1,36,1],[35,33,36,33],[35,34,36,34],[35,35,36,35],[35,36,36,36],[37,1,38,1],[37,33,38,33],[37,34,38,34],[37,35,38,35],[37,36,38,36],[39,30,39,32]]}
[{"$f":"\"Қатысу жазбасы \"","v":"Қатысу жазбасы "},{"$nulls":7},{"$f":"D4","v":"Марат Абенов"}]
[]
[null,"Оқушы идентификаторы",null,"Оқушы аты",{"$nulls":11},"Жынысы",null,null,"Туған күні",{"$nulls":3},"Мектеп",{"$nulls":7},"Баға",null,"Мұғалім",{"$nulls":3},"Бөлме"]
[null,"S001",null,{"$f":"IFERROR(VLOOKUP(СтудентІздеу,СтуденттерТізімі[],18,FALSE),\"\")","v":"Марат Абенов"},{"$nulls":11},{"$f":"IFERROR(VLOOKUP(СтудентІздеу,СтуденттерТізімі[],4,FALSE),\"\")","v":"Е"},null,null,{"$f":"IFERROR(VLOOKUP(СтудентІздеу,СтуденттерТізімі[],5,FALSE),\"\")","v":"1997-03-28"},{"$nulls":3},"Көркем өнер мектебі ",{"$nulls":7},7,null,"Жандос Оспанов",{"$nulls":3},123]
[null,"Ата-ана немесе қамқоршының аты 1",{"$nulls":8},"Қатынас",{"$nulls":11},"Жұмыс нөмірі",{"$nulls":7},"Үй нөмірі"]
[null,{"$f":"IFERROR(VLOOKUP(СтудентІздеу,СтуденттерТізімі[],6,FALSE),\"\")","v":"Майра"},{"$nulls":8},{"$f":"IFERROR(VLOOKUP(СтудентІздеу,СтуденттерТізімі[],7,FALSE),\"\")","v":"Абенов"},{"$nulls":11},{"$f":"IFERROR(VLOOKUP(СтудентІздеу,СтуденттерТізімі[],8,FALSE),\"\")","v":"1 235 550 134"},{"$nulls":7},{"$f":"IFERROR(VLOOKUP(СтудентІздеу,СтуденттерТізімі[],9,FALSE),\"\")","v":"2 345 550 134"}]
[null,"Ата-ана немесе қамқоршының аты 2",{"$nulls":8},"Қатынас",{"$nulls":11},"Жұмыс нөмірі",{"$nulls":7},"Үй нөмірі"]
[null,{"$f":"IFERROR(VLOOKUP(СтудентІздеу,СтуденттерТізімі[],10,FALSE),\"\")","v":"Майра Абенова"},{"$nulls":8},{"$f":"IFERROR(VLOOKUP(СтудентІздеу,СтуденттерТізімі[],11,FALSE),\"\")","v":"Әке"},{"$nulls":11},{"$f":"IFERROR(VLOOKUP(СтудентІздеу,СтуденттерТізімі[],12,FALSE),\"\")","v":1235550134},{"$nulls":7},{"$f":"IFERROR(VLOOKUP(СтудентІздеу,СтуденттерТізімі[],13,FALSE),\"\")","v":2345550134}]
[null,"Жедел контакт",{"$nulls":8},"Қатынас",{"$nulls":11},"Жұмыс нөмірі",{"$nulls":7},"Үй нөмірі"]
[null,{"$f":"IFERROR(VLOOKUP(СтудентІздеу,СтуденттерТізімі[],14,FALSE),\"\")","v":"Алибек Оразов"},{"$nulls":8},{"$f":"IFERROR(VLOOKUP(СтудентІздеу,СтуденттерТізімі[],15,FALSE),\"\")","v":"Ата"},{"$nulls":11},{"$f":"IFERROR(VLOOKUP(СтудентІздеу,СтуденттерТізімі[],16,FALSE),\"\")","v":7895550189},{"$nulls":7},{"$f":"IFERROR(VLOOKUP(СтудентІздеу,СтуденттерТізімі[],17,FALSE),\"\")","v":7895550134}]
[]
[null,{"$f":"Тамыз!C3","v":"ТҮСТІ ПЕРНЕ"},{"$f":"Тамыз!D3","v":"К"},{"$f":"Тамыз!E3","v":"Кешіккен"},null,null,{"$f":"Тамыз!H3","v":"P"},{"$f":"Тамыз!I3","v":"Кешірілген"},null,null,{"$f":"Тамыз!L3","v":"Pi"},{"$f":"Тамыз!M3","v":"Кешірілмеген"},{"$nulls":3},{"$f":"Тамыз!P3","v":"Б"},{"$f":"Тамыз!Q3","v":"Бар"},null,null,{"$f":"Тамыз!T3","v":"М"},{"$f":"Тамыз!U3","v":"Мектепте емес"}]
[]
[null,"Қатысу",{"$nulls":31},"Қатысу қорытындылары"]
[{"$nulls":33},"К","P","Pi","Б"]
[null,"Тамыз",1,2,3,4,5,6,7,8,9,10,11,12,13,14,15,16,17,18,19,20,21,22,23,24,25,26,27,28,29,30,31,{"$f":"COUNTIF($D17:$AH17,1-код)","v":0},{"$f":"COUNTIF($D17:$AH17,2-код)","v":0},{"$f":"COUNTIF($D17:$AH17,3-код)","v":0},{"$f":"COUNTIF($D17:$AH17,4-код)","v":0}]
[null,null,{"$f":"IFERROR(VLOOKUP(СтудентІздеу,ТамызҚатысу[],3,FALSE),\"\")","v":"Б"},{"$f":"IFERROR(VLOOKUP(СтудентІздеу,ТамызҚатысу[],4,FALSE),\"\")","v":"Б"},{"$f":"IFERROR(VLOOKUP(СтудентІздеу,ТамызҚатысу[],5,FALSE),\"\")","v":"К"},{"$f":"IFERROR(VLOOKUP(СтудентІздеу,ТамызҚатысу[],6,FALSE),\"\")","v":"К"},{"$f":"IFERROR(VLOOKUP(СтудентІздеу,ТамызҚатысу[],7,FALSE),\"\")","v":"Б"},{"$f":"IFERROR(VLOOKUP(СтудентІздеу,ТамызҚатысу[],8,FALSE),\"\")","v":"М"},{"$f":"IFERROR(VLOOKUP(СтудентІздеу,ТамызҚатысу[],9,FALSE),\"\")","v":"М"},{"$f":"IFERROR(VLOOKUP(СтудентІздеу,ТамызҚатысу[],10,FALSE),\"\")","v":"Б"},{"$f":"IFERROR(VLOOKUP(СтудентІздеу,ТамызҚатысу[],11,FALSE),\"\")","v":"Б"},{"$f":"IFERROR(VLOOKUP(СтудентІздеу,ТамызҚатысу[],12,FALSE),\"\")","v":"P"},{"$f":"IFERROR(VLOOKUP(СтудентІздеу,ТамызҚатысу[],13,FALSE),\"\")","v":"Б"},{"$f":"IFERROR(VLOOKUP(СтудентІздеу,ТамызҚатысу[],14,FALSE),\"\")","v":"Б"},{"$f":"IFERROR(VLOOKUP(СтудентІздеу,ТамызҚатысу[],15,FALSE),\"\")","v":"М"},{"$f":"IFERROR(VLOOKUP(СтудентІздеу,ТамызҚатысу[],16,FALSE),\"\")","v":"М"},{"$f":"IFERROR(VLOOKUP(СтудентІздеу,ТамызҚатысу[],17,FALSE),\"\")","v":"Б"},{"$f":"IFERROR(VLOOKUP(СтудентІздеу,ТамызҚатысу[],18,FALSE),\"\")","v":"Б"},{"$f":"IFERROR(VLOOKUP(СтудентІздеу,ТамызҚатысу[],19,FALSE),\"\")","v":"Б"},{"$f":"IFERROR(VLOOKUP(СтудентІздеу,ТамызҚатысу[],20,FALSE),\"\")","v":"Б"},{"$f":"IFERROR(VLOOKUP(СтудентІздеу,ТамызҚатысу[],21,FALSE),\"\")","v":"Б"},{"$f":"IFERROR(VLOOKUP(СтудентІздеу,ТамызҚатысу[],22,FALSE),\"\")","v":"М"},{"$f":"IFERROR(VLOOKUP(СтудентІздеу,ТамызҚатысу[],23,FALSE),\"\")","v":"М"},{"$f":"IFERROR(VLOOKUP(СтудентІздеу,ТамызҚатысу[],24,FALSE),\"\")","v":"Б"},{"$f":"IFERROR(VLOOKUP(СтудентІздеу,ТамызҚатысу[],25,FALSE),\"\")","v":"Б"},{"$f":"IFERROR(VLOOKUP(СтудентІздеу,ТамызҚатысу[],26,FALSE),\"\")","v":"Б"},{"$f":"IFERROR(VLOOKUP(СтудентІздеу,ТамызҚатысу[],27,FALSE),\"\")","v":"Б"},{"$f":"IFERROR(VLOOKUP(СтудентІздеу,ТамызҚатысу[],28,FALSE),\"\")","v":"Б"},{"$f":"IFERROR(VLOOKUP(СтудентІздеу,ТамызҚатысу[],29,FALSE),\"\")","v":"М"},{"$f":"IFERROR(VLOOKUP(СтудентІздеу,ТамызҚатысу[],30,FALSE),\"\")","v":"М"},{"$f":"IFERROR(VLOOKUP(СтудентІздеу,ТамызҚатысу[],31,FALSE),\"\")","v":"Б"},{"$f":"IFERROR(VLOOKUP(СтудентІздеу,ТамызҚатысу[],32,FALSE),\"\")","v":"Б"},{"$f":"IFERROR(VLOOKUP(СтудентІздеу,ТамызҚатысу[],33,FALSE),\"\")","v":"Б"}]
[null,"Қыркүйек",1,2,3,4,5,6,7,8,9,10,11,12,13,14,15,16,17,18,19,20,21,22,23,24,25,26,27,28,29,30,null,{"$f":"COUNTIF($D19:$AH19,1-код)","v":0},{"$f":"COUNTIF($D19:$AH19,2-код)","v":0},{"$f":"COUNTIF($D19:$AH19,3-код)","v":0},{"$f":"COUNTIF($D19:$AH19,4-код)","v":0}]
[null,null,{"$f":"IFERROR(VLOOKUP(СтудентІздеу,ҚыркүйекҚатысу[],3,FALSE),\"\")","v":""},{"$f":"IFERROR(VLOOKUP(СтудентІздеу,ҚыркүйекҚатысу[],4,FALSE),\"\")","v":""},{"$f":"IFERROR(VLOOKUP(СтудентІздеу,ҚыркүйекҚатысу[],5,FALSE),\"\")","v":""},{"$f":"IFERROR(VLOOKUP(СтудентІздеу,ҚыркүйекҚатысу[],6,FALSE),\"\")","v":""},{"$f":"IFERROR(VLOOKUP(СтудентІздеу,ҚыркүйекҚатысу[],7,FALSE),\"\")","v":""},{"$f":"IFERROR(VLOOKUP(СтудентІздеу,ҚыркүйекҚатысу[],8,FALSE),\"\")","v":""},{"$f":"IFERROR(VLOOKUP(СтудентІздеу,ҚыркүйекҚатысу[],9,FALSE),\"\")","v":""},{"$f":"IFERROR(VLOOKUP(СтудентІздеу,ҚыркүйекҚатысу[],10,FALSE),\"\")","v":""},{"$f":"IFERROR(VLOOKUP(СтудентІздеу,ҚыркүйекҚатысу[],11,FALSE),\"\")","v":""},{"$f":"IFERROR(VLOOKUP(СтудентІздеу,ҚыркүйекҚатысу[],12,FALSE),\"\")","v":""},{"$f":"IFERROR(VLOOKUP(СтудентІздеу,ҚыркүйекҚатысу[],13,FALSE),\"\")","v":""},{"$f":"IFERROR(VLOOKUP(СтудентІздеу,ҚыркүйекҚатысу[],14,FALSE),\"\")","v":""},{"$f":"IFERROR(VLOOKUP(СтудентІздеу,ҚыркүйекҚатысу[],15,FALSE),\"\")","v":""},{"$f":"IFERROR(VLOOKUP(СтудентІздеу,ҚыркүйекҚатысу[],16,FALSE),\"\")","v":""},{"$f":"IFERROR(VLOOKUP(СтудентІздеу,ҚыркүйекҚатысу[],17,FALSE),\"\")","v":""},{"$f":"IFERROR(VLOOKUP(СтудентІздеу,ҚыркүйекҚатысу[],18,FALSE),\"\")","v":""},{"$f":"IFERROR(VLOOKUP(СтудентІздеу,ҚыркүйекҚатысу[],19,FALSE),\"\")","v":""},{"$f":"IFERROR(VLOOKUP(СтудентІздеу,ҚыркүйекҚатысу[],20,FALSE),\"\")","v":""},{"$f":"IFERROR(VLOOKUP(СтудентІздеу,ҚыркүйекҚатысу[],21,FALSE),\"\")","v":""},{"$f":"IFERROR(VLOOKUP(СтудентІздеу,ҚыркүйекҚатысу[],22,FALSE),\"\")","v":""},{"$f":"IFERROR(VLOOKUP(СтудентІздеу,ҚыркүйекҚатысу[],23,FALSE),\"\")","v":""},{"$f":"IFERROR(VLOOKUP(СтудентІздеу,ҚыркүйекҚатысу[],24,FALSE),\"\")","v":""},{"$f":"IFERROR(VLOOKUP(СтудентІздеу,ҚыркүйекҚатысу[],25,FALSE),\"\")","v":""},{"$f":"IFERROR(VLOOKUP(СтудентІздеу,ҚыркүйекҚатысу[],26,FALSE),\"\")","v":""},{"$f":"IFERROR(VLOOKUP(СтудентІздеу,ҚыркүйекҚатысу[],27,FALSE),\"\")","v":""},{"$f":"IFERROR(VLOOKUP(СтудентІздеу,ҚыркүйекҚатысу[],28,FALSE),\"\")","v":""},{"$f":"IFERROR(VLOOKUP(СтудентІздеу,ҚыркүйекҚатысу[],29,FALSE),\"\")","v":""},{"$f":"IFERROR(VLOOKUP(СтудентІздеу,ҚыркүйекҚатысу[],30,FALSE),\"\")","v":""},{"$f":"IFERROR(VLOOKUP(СтудентІздеу,ҚыркүйекҚатысу[],31,FALSE),\"\")","v":""},{"$f":"IFERROR(VLOOKUP(СтудентІздеу,ҚыркүйекҚатысу[],32,FALSE),\"\")","v":""}]
[null,"Қазан",1,2,3,4,5,6,7,8,9,10,11,12,13,14,15,16,17,18,19,20,21,22,23,24,25,26,27,28,29,30,31,{"$f":"COUNTIF($D21:$AH21,1-код)","v":0},{"$f":"COUNTIF($D21:$AH21,2-код)","v":0},{"$f":"COUNTIF($D21:$AH21,3-код)","v":0},{"$f":"COUNTIF($D21:$AH21,4-код)","v":0}]
[null,null,{"$f":"IFERROR(VLOOKUP(СтудентІздеу,ҚазанҚатысу[],3,FALSE),\"\")","v":""},{"$f":"IFERROR(VLOOKUP(СтудентІздеу,ҚазанҚатысу[],4,FALSE),\"\")","v":""},{"$f":"IFERROR(VLOOKUP(СтудентІздеу,ҚазанҚатысу[],5,FALSE),\"\")","v":""},{"$f":"IFERROR(VLOOKUP(СтудентІздеу,ҚазанҚатысу[],6,FALSE),\"\")","v":""},{"$f":"IFERROR(VLOOKUP(СтудентІздеу,ҚазанҚатысу[],7,FALSE),\"\")","v":""},{"$f":"IFERROR(VLOOKUP(СтудентІздеу,ҚазанҚатысу[],8,FALSE),\"\")","v":""},{"$f":"IFERROR(VLOOKUP(СтудентІздеу,ҚазанҚатысу[],9,FALSE),\"\")","v":""},{"$f":"IFERROR(VLOOKUP(СтудентІздеу,ҚазанҚатысу[],10,FALSE),\"\")","v":""},{"$f":"IFERROR(VLOOKUP(СтудентІздеу,ҚазанҚатысу[],11,FALSE),\"\")","v":""},{"$f":"IFERROR(VLOOKUP(СтудентІздеу,ҚазанҚатысу[],12,FALSE),\"\")","v":""},{"$f":"IFERROR(VLOOKUP(СтудентІздеу,ҚазанҚатысу[],13,FALSE),\"\")","v":""},{"$f":"IFERROR(VLOOKUP(СтудентІздеу,ҚазанҚатысу[],14,FALSE),\"\")","v":""},{"$f":"IFERROR(VLOOKUP(СтудентІздеу,ҚазанҚатысу[],15,FALSE),\"\")","v":""},{"$f":"IFERROR(VLOOKUP(СтудентІздеу,ҚазанҚатысу[],16,FALSE),\"\")","v":""},{"$f":"IFERROR(VLOOKUP(СтудентІздеу,ҚазанҚатысу[],17,FALSE),\"\")","v":""},{"$f":"IFERROR(VLOOKUP(СтудентІздеу,ҚазанҚатысу[],18,FALSE),\"\")","v":""},{"$f":"IFERROR(VLOOKUP(СтудентІздеу,ҚазанҚатысу[],19,FALSE),\"\")","v":""},{"$f":"IFERROR(VLOOKUP(СтудентІздеу,ҚазанҚатысу[],20,FALSE),\"\")","v":""},{"$f":"IFERROR(VLOOKUP(СтудентІздеу,ҚазанҚатысу[],21,FALSE),\"\")","v":""},{"$f":"IFERROR(VLOOKUP(СтудентІздеу,ҚазанҚатысу[],22,FALSE),\"\")","v":""},{"$f":"IFERROR(VLOOKUP(СтудентІздеу,ҚазанҚатысу[],23,FALSE),\"\")","v":""},{"$f":"IFERROR(VLOOKUP(СтудентІздеу,ҚазанҚатысу[],24,FALSE),\"\")","v":""},{"$f":"IFERROR(VLOOKUP(СтудентІздеу,ҚазанҚатысу[],25,FALSE),\"\")","v":""},{"$f":"IFERROR(VLOOKUP(СтудентІздеу,ҚазанҚатысу[],26,FALSE),\"\")","v":""},{"$f":"IFERROR(VLOOKUP(СтудентІздеу,ҚазанҚатысу[],27,FALSE),\"\")","v":""},{"$f":"IFERROR(VLOOKUP(СтудентІздеу,ҚазанҚатысу[],28,FALSE),\"\")","v":""},{"$f":"IFERROR(VLOOKUP(СтудентІздеу,ҚазанҚатысу[],29,FALSE),\"\")","v":""},{"$f":"IFERROR(VLOOKUP(СтудентІздеу,ҚазанҚатысу[],30,FALSE),\"\")","v":""},{"$f":"IFERROR(VLOOKUP(СтудентІздеу,ҚазанҚатысу[],31,FALSE),\"\")","v":""},{"$f":"IFERROR(VLOOKUP(СтудентІздеу,ҚазанҚатысу[],32,FALSE),\"\")","v":""},{"$f":"IFERROR(VLOOKUP(СтудентІздеу,ҚазанҚатысу[],33,FALSE),\"\")","v":""}]
[null,"Қараша",1,2,3,4,5,6,7,8,9,10,11,12,13,14,15,16,17,18,19,20,21,22,23,24,25,26,27,28,29,30,null,{"$f":"COUNTIF($D23:$AH23,1-код)","v":0},{"$f":"COUNTIF($D23:$AH23,2-код)","v":0},{"$f":"COUNTIF($D23:$AH23,3-код)","v":0},{"$f":"COUNTIF($D23:$AH23,4-код)","v":0}]
[null,null,{"$f":"IFERROR(VLOOKUP(СтудентІздеу,ҚарашаҚатысу[],3,FALSE),\"\")","v":""},{"$f":"IFERROR(VLOOKUP(СтудентІздеу,ҚарашаҚатысу[],4,FALSE),\"\")","v":""},{"$f":"IFERROR(VLOOKUP(СтудентІздеу,ҚарашаҚатысу[],5,FALSE),\"\")","v":""},{"$f":"IFERROR(VLOOKUP(СтудентІздеу,ҚарашаҚатысу[],6,FALSE),\"\")","v":""},{"$f":"IFERROR(VLOOKUP(СтудентІздеу,ҚарашаҚатысу[],7,FALSE),\"\")","v":""},{"$f":"IFERROR(VLOOKUP(СтудентІздеу,ҚарашаҚатысу[],8,FALSE),\"\")","v":""},{"$f":"IFERROR(VLOOKUP(СтудентІздеу,ҚарашаҚатысу[],9,FALSE),\"\")","v":""},{"$f":"IFERROR(VLOOKUP(СтудентІздеу,ҚарашаҚатысу[],10,FALSE),\"\")","v":""},{"$f":"IFERROR(VLOOKUP(СтудентІздеу,ҚарашаҚатысу[],11,FALSE),\"\")","v":""},{"$f":"IFERROR(VLOOKUP(СтудентІздеу,ҚарашаҚатысу[],12,FALSE),\"\")","v":""},{"$f":"IFERROR(VLOOKUP(СтудентІздеу,ҚарашаҚатысу[],13,FALSE),\"\")","v":""},{"$f":"IFERROR(VLOOKUP(СтудентІздеу,ҚарашаҚатысу[],14,FALSE),\"\")","v":""},{"$f":"IFERROR(VLOOKUP(СтудентІздеу,ҚарашаҚатысу[],15,FALSE),\"\")","v":""},{"$f":"IFERROR(VLOOKUP(СтудентІздеу,ҚарашаҚатысу[],16,FALSE),\"\")","v":""},{"$f":"IFERROR(VLOOKUP(СтудентІздеу,ҚарашаҚатысу[],17,FALSE),\"\")","v":""},{"$f":"IFERROR(VLOOKUP(СтудентІздеу,ҚарашаҚатысу[],18,FALSE),\"\")","v":""},{"$f":"IFERROR(VLOOKUP(СтудентІздеу,ҚарашаҚатысу[],19,FALSE),\"\")","v":""},{"$f":"IFERROR(VLOOKUP(СтудентІздеу,ҚарашаҚатысу[],20,FALSE),\"\")","v":""},{"$f":"IFERROR(VLOOKUP(СтудентІздеу,ҚарашаҚатысу[],21,FALSE),\"\")","v":""},{"$f":"IFERROR(VLOOKUP(СтудентІздеу,ҚарашаҚатысу[],22,FALSE),\"\")","v":""},{"$f":"IFERROR(VLOOKUP(СтудентІздеу,ҚарашаҚатысу[],23,FALSE),\"\")","v":""},{"$f":"IFERROR(VLOOKUP(СтудентІздеу,ҚарашаҚатысу[],24,FALSE),\"\")","v":""},{"$f":"IFERROR(VLOOKUP(СтудентІздеу,ҚарашаҚатысу[],25,FALSE),\"\")","v":""},{"$f":"IFERROR(VLOOKUP(СтудентІздеу,ҚарашаҚатысу[],26,FALSE),\"\")","v":""},{"$f":"IFERROR(VLOOKUP(СтудентІздеу,ҚарашаҚатысу[],27,FALSE),\"\")","v":""},{"$f":"IFERROR(VLOOKUP(СтудентІздеу,ҚарашаҚатысу[],28,FALSE),\"\")","v":""},{"$f":"IFERROR(VLOOKUP(СтудентІздеу,ҚарашаҚатысу[],29,FALSE),\"\")","v":""},{"$f":"IFERROR(VLOOKUP(СтудентІздеу,ҚарашаҚатысу[],30,FALSE),\"\")","v":""},{"$f":"IFERROR(VLOOKUP(СтудентІздеу,ҚарашаҚатысу[],31,FALSE),\"\")","v":""},{"$f":"IFERROR(VLOOKUP(СтудентІздеу,ҚарашаҚатысу[],32,FALSE),\"\")","v":""}]
[null,"Желтоқсан",1,2,3,4,5,6,7,8,9,10,11,12,13,14,15,16,17,18,19,20,21,22,23,24,25,26,27,28,29,30,31,{"$f":"COUNTIF($D25:$AH25,1-код)","v":0},{"$f":"COUNTIF($D25:$AH25,2-код)","v":0},{"$f":"COUNTIF($D25:$AH25,3-код)","v":0},{"$f":"COUNTIF($D25:$AH25,4-код)","v":0}]
[null,null,{"$f":"IFERROR(VLOOKUP(СтудентІздеу,ЖелтоқсанҚатысу[],3,FALSE),\"\")","v":""},{"$f":"IFERROR(VLOOKUP(СтудентІздеу,ЖелтоқсанҚатысу[],4,FALSE),\"\")","v":""},{"$f":"IFERROR(VLOOKUP(СтудентІздеу,ЖелтоқсанҚатысу[],5,FALSE),\"\")","v":""},{"$f":"IFERROR(VLOOKUP(СтудентІздеу,ЖелтоқсанҚатысу[],6,FALSE),\"\")","v":""},{"$f":"IFERROR(VLOOKUP(СтудентІздеу,ЖелтоқсанҚатысу[],7,FALSE),\"\")","v":""},{"$f":"IFERROR(VLOOKUP(СтудентІздеу,ЖелтоқсанҚатысу[],8,FALSE),\"\")","v":""},{"$f":"IFERROR(VLOOKUP(СтудентІздеу,ЖелтоқсанҚатысу[],9,FALSE),\"\")","v":""},{"$f":"IFERROR(VLOOKUP(СтудентІздеу,ЖелтоқсанҚатысу[],10,FALSE),\"\")","v":""},{"$f":"IFERROR(VLOOKUP(СтудентІздеу,ЖелтоқсанҚатысу[],11,FALSE),\"\")","v":""},{"$f":"IFERROR(VLOOKUP(СтудентІздеу,ЖелтоқсанҚатысу[],12,FALSE),\"\")","v":""},{"$f":"IFERROR(VLOOKUP(СтудентІздеу,ЖелтоқсанҚатысу[],13,FALSE),\"\")","v":""},{"$f":"IFERROR(VLOOKUP(СтудентІздеу,ЖелтоқсанҚатысу[],14,FALSE),\"\")","v":""},{"$f":"IFERROR(VLOOKUP(СтудентІздеу,ЖелтоқсанҚатысу[],15,FALSE),\"\")","v":""},{"$f":"IFERROR(VLOOKUP(СтудентІздеу,ЖелтоқсанҚатысу[],16,FALSE),\"\")","v":""},{"$f":"IFERROR(VLOOKUP(СтудентІздеу,ЖелтоқсанҚатысу[],17,FALSE),\"\")","v":""},{"$f":"IFERROR(VLOOKUP(СтудентІздеу,ЖелтоқсанҚатысу[],18,FALSE),\"\")","v":""},{"$f":"IFERROR(VLOOKUP(СтудентІздеу,ЖелтоқсанҚатысу[],19,FALSE),\"\")","v":""},{"$f":"IFERROR(VLOOKUP(СтудентІздеу,ЖелтоқсанҚатысу[],20,FALSE),\"\")","v":""},{"$f":"IFERROR(VLOOKUP(СтудентІздеу,ЖелтоқсанҚатысу[],21,FALSE),\"\")","v":""},{"$f":"IFERROR(VLOOKUP(СтудентІздеу,ЖелтоқсанҚатысу[],22,FALSE),\"\")","v":""},{"$f":"IFERROR(VLOOKUP(СтудентІздеу,ЖелтоқсанҚатысу[],23,FALSE),\"\")","v":""},{"$f":"IFERROR(VLOOKUP(СтудентІздеу,ЖелтоқсанҚатысу[],24,FALSE),\"\")","v":""},{"$f":"IFERROR(VLOOKUP(СтудентІздеу,ЖелтоқсанҚатысу[],25,FALSE),\"\")","v":""},{"$f":"IFERROR(VLOOKUP(СтудентІздеу,ЖелтоқсанҚатысу[],26,FALSE),\"\")","v":""},{"$f":"IFERROR(VLOOKUP(СтудентІздеу,ЖелтоқсанҚатысу[],27,FALSE),\"\")","v":""},{"$f":"IFERROR(VLOOKUP(СтудентІздеу,ЖелтоқсанҚатысу[],28,FALSE),\"\")","v":""},{"$f":"IFERROR(VLOOKUP(СтудентІздеу,ЖелтоқсанҚатысу[],29,FALSE),\"\")","v":""},{"$f":"IFERROR(VLOOKUP(СтудентІздеу,ЖелтоқсанҚатысу[],30,FALSE),\"\")","v":""},{"$f":"IFERROR(VLOOKUP(СтудентІздеу,ЖелтоқсанҚатысу[],31,FALSE),\"\")","v":""},{"$f":"IFERROR(VLOOKUP(СтудентІздеу,ЖелтоқсанҚатысу[],32,FALSE),\"\")","v":""},{"$f":"IFERROR(VLOOKUP(СтудентІздеу,ЖелтоқсанҚатысу[],33,FALSE),\"\")","v":""}]
[null,"Қаңтар",1,2,3,4,5,6,7,8,9,10,11,12,13,14,15,16,17,18,19,20,21,22,23,24,25,26,27,28,29,30,31,{"$f":"COUNTIF($D27:$AH27,1-код)","v":0},{"$f":"COUNTIF($D27:$AH27,2-код)","v":0},{"$f":"COUNTIF($D27:$AH27,3-код)","v":0},{"$f":"COUNTIF($D27:$AH27,4-код)","v":0}]
[null,null,{"$f":"IFERROR(VLOOKUP(СтудентІздеу,ҚаңтарҚатысу[],3,FALSE),\"\")","v":""},{"$f":"IFERROR(VLOOKUP(СтудентІздеу,ҚаңтарҚатысу[],4,FALSE),\"\")","v":""},{"$f":"IFERROR(VLOOKUP(СтудентІздеу,ҚаңтарҚатысу[],5,FALSE),\"\")","v":""},{"$f":"IFERROR(VLOOKUP(СтудентІздеу,ҚаңтарҚатысу[],6,FALSE),\"\")","v":""},{"$f":"IFERROR(VLOOKUP(СтудентІздеу,ҚаңтарҚатысу[],7,FALSE),\"\")","v":""},{"$f":"IFERROR(VLOOKUP(СтудентІздеу,ҚаңтарҚатысу[],8,FALSE),\"\")","v":""},{"$f":"IFERROR(VLOOKUP(СтудентІздеу,ҚаңтарҚатысу[],9,FALSE),\"\")","v":""},{"$f":"IFERROR(VLOOKUP(СтудентІздеу,ҚаңтарҚатысу[],10,FALSE),\"\")","v":""},{"$f":"IFERROR(VLOOKUP(СтудентІздеу,ҚаңтарҚатысу[],11,FALSE),\"\")","v":""},{"$f":"IFERROR(VLOOKUP(СтудентІздеу,ҚаңтарҚатысу[],12,FALSE),\"\")","v":""},{"$f":"IFERROR(VLOOKUP(СтудентІздеу,ҚаңтарҚатысу[],13,FALSE),\"\")","v":""},{"$f":"IFERROR(VLOOKUP(СтудентІздеу,ҚаңтарҚатысу[],14,FALSE),\"\")","v":""},{"$f":"IFERROR(VLOOKUP(СтудентІздеу,ҚаңтарҚатысу[],15,FALSE),\"\")","v":""},{"$f":"IFERROR(VLOOKUP(СтудентІздеу,ҚаңтарҚатысу[],16,FALSE),\"\")","v":""},{"$f":"IFERROR(VLOOKUP(СтудентІздеу,ҚаңтарҚатысу[],17,FALSE),\"\")","v":""},{"$f":"IFERROR(VLOOKUP(СтудентІздеу,ҚаңтарҚатысу[],18,FALSE),\"\")","v":""},{"$f":"IFERROR(VLOOKUP(СтудентІздеу,ҚаңтарҚатысу[],19,FALSE),\"\")","v":""},{"$f":"IFERROR(VLOOKUP(СтудентІздеу,ҚаңтарҚатысу[],20,FALSE),\"\")","v":""},{"$f":"IFERROR(VLOOKUP(СтудентІздеу,ҚаңтарҚатысу[],21,FALSE),\"\")","v":""},{"$f":"IFERROR(VLOOKUP(СтудентІздеу,ҚаңтарҚатысу[],22,FALSE),\"\")","v":""},{"$f":"IFERROR(VLOOKUP(СтудентІздеу,ҚаңтарҚатысу[],23,FALSE),\"\")","v":""},{"$f":"IFERROR(VLOOKUP(СтудентІздеу,ҚаңтарҚатысу[],24,FALSE),\"\")","v":""},{"$f":"IFERROR(VLOOKUP(СтудентІздеу,ҚаңтарҚатысу[],25,FALSE),\"\")","v":""},{"$f":"IFERROR(VLOOKUP(СтудентІздеу,ҚаңтарҚатысу[],26,FALSE),\"\")","v":""},{"$f":"IFERROR(VLOOKUP(СтудентІздеу,ҚаңтарҚатысу[],27,FALSE),\"\")","v":""},{"$f":"IFERROR(VLOOKUP(СтудентІздеу,ҚаңтарҚатысу[],28,FALSE),\"\")","v":""},{"$f":"IFERROR(VLOOKUP(СтудентІздеу,ҚаңтарҚатысу[],29,FALSE),\"\")","v":""},{"$f":"IFERROR(VLOOKUP(СтудентІздеу,ҚаңтарҚатысу[],30,FALSE),\"\")","v":""},{"$f":"IFERROR(VLOOKUP(СтудентІздеу,ҚаңтарҚатысу[],31,FALSE),\"\")","v":""},{"$f":"IFERROR(VLOOKUP(СтудентІздеу,ҚаңтарҚатысу[],32,FALSE),\"\")","v":""},{"$f":"IFERROR(VLOOKUP(СтудентІздеу,ҚаңтарҚатысу[],33,FALSE),\"\")","v":""}]
[null,"Ақпан",1,2,3,4,5,6,7,8,9,10,11,12,13,14,15,16,17,18,19,20,21,22,23,24,25,26,27,28,29,null,null,{"$f":"COUNTIF($D29:$AH29,1-код)","v":0},{"$f":"COUNTIF($D29:$AH29,2-код)","v":0},{"$f":"COUNTIF($D29:$AH29,3-код)","v":0},{"$f":"COUNTIF($D29:$AH29,4-код)","v":0}]
[null,null,{"$f":"IFERROR(VLOOKUP(СтудентІздеу,АқпанҚатысу[],3,FALSE),\"\")","v":""},{"$f":"IFERROR(VLOOKUP(СтудентІздеу,АқпанҚатысу[],4,FALSE),\"\")","v":""},{"$f":"IFERROR(VLOOKUP(СтудентІздеу,АқпанҚатысу[],5,FALSE),\"\")","v":""},{"$f":"IFERROR(VLOOKUP(СтудентІздеу,АқпанҚатысу[],6,FALSE),\"\")","v":""},{"$f":"IFERROR(VLOOKUP(СтудентІздеу,АқпанҚатысу[],7,FALSE),\"\")","v":""},{"$f":"IFERROR(VLOOKUP(СтудентІздеу,АқпанҚатысу[],8,FALSE),\"\")","v":""},{"$f":"IFERROR(VLOOKUP(СтудентІздеу,АқпанҚатысу[],9,FALSE),\"\")","v":""},{"$f":"IFERROR(VLOOKUP(СтудентІздеу,АқпанҚатысу[],10,FALSE),\"\")","v":""},{"$f":"IFERROR(VLOOKUP(СтудентІздеу,АқпанҚатысу[],11,FALSE),\"\")","v":""},{"$f":"IFERROR(VLOOKUP(СтудентІздеу,АқпанҚатысу[],12,FALSE),\"\")","v":""},{"$f":"IFERROR(VLOOKUP(СтудентІздеу,АқпанҚатысу[],13,FALSE),\"\")","v":""},{"$f":"IFERROR(VLOOKUP(СтудентІздеу,АқпанҚатысу[],14,FALSE),\"\")","v":""},{"$f":"IFERROR(VLOOKUP(СтудентІздеу,АқпанҚатысу[],15,FALSE),\"\")","v":""},{"$f":"IFERROR(VLOOKUP(СтудентІздеу,АқпанҚатысу[],16,FALSE),\"\")","v":""},{"$f":"IFERROR(VLOOKUP(СтудентІздеу,АқпанҚатысу[],17,FALSE),\"\")","v":""},{"$f":"IFERROR(VLOOKUP(СтудентІздеу,АқпанҚатысу[],18,FALSE),\"\")","v":""},{"$f":"IFERROR(VLOOKUP(СтудентІздеу,АқпанҚатысу[],19,FALSE),\"\")","v":""},{"$f":"IFERROR(VLOOKUP(СтудентІздеу,АқпанҚатысу[],20,FALSE),\"\")","v":""},{"$f":"IFERROR(VLOOKUP(СтудентІздеу,АқпанҚатысу[],21,FALSE),\"\")","v":""},{"$f":"IFERROR(VLOOKUP(СтудентІздеу,АқпанҚатысу[],22,FALSE),\"\")","v":""},{"$f":"IFERROR(VLOOKUP(СтудентІздеу,АқпанҚатысу[],23,FALSE),\"\")","v":""},{"$f":"IFERROR(VLOOKUP(СтудентІздеу,АқпанҚатысу[],24,FALSE),\"\")","v":""},{"$f":"IFERROR(VLOOKUP(СтудентІздеу,АқпанҚатысу[],25,FALSE),\"\")","v":""},{"$f":"IFERROR(VLOOKUP(СтудентІздеу,АқпанҚатысу[],26,FALSE),\"\")","v":""},{"$f":"IFERROR(VLOOKUP(СтудентІздеу,АқпанҚатысу[],27,FALSE),\"\")","v":""},{"$f":"IFERROR(VLOOKUP(СтудентІздеу,АқпанҚатысу[],28,FALSE),\"\")","v":""},{"$f":"IFERROR(VLOOKUP(СтудентІздеу,АқпанҚатысу[],29,FALSE),\"\")","v":""},{"$f":"IFERROR(VLOOKUP(СтудентІздеу,АқпанҚатысу[],30,FALSE),\"\")","v":""},{"$f":"IFERROR(VLOOKUP(СтудентІздеу,АқпанҚатысу[],31,FALSE),\"\")","v":""}]
[null,"Наурыз",1,2,3,4,5,6,7,8,9,10,11,12,13,14,15,16,17,18,19,20,21,22,23,24,25,26,27,28,29,30,31,{"$f":"COUNTIF($D31:$AH31,1-код)","v":0},{"$f":"COUNTIF($D31:$AH31,2-код)","v":0},{"$f":"COUNTIF($D31:$AH31,3-код)","v":0},{"$f":"COUNTIF($D31:$AH31,4-код)","v":0}]
[null,null,{"$f":"IFERROR(VLOOKUP(СтудентІздеу,НаурызҚатысу[],3,FALSE),\"\")","v":""},{"$f":"IFERROR(VLOOKUP(СтудентІздеу,НаурызҚатысу[],4,FALSE),\"\")","v":""},{"$f":"IFERROR(VLOOKUP(СтудентІздеу,НаурызҚатысу[],5,FALSE),\"\")","v":""},{"$f":"IFERROR(VLOOKUP(СтудентІздеу,НаурызҚатысу[],6,FALSE),\"\")","v":""},{"$f":"IFERROR(VLOOKUP(СтудентІздеу,НаурызҚатысу[],7,FALSE),\"\")","v":""},{"$f":"IFERROR(VLOOKUP(СтудентІздеу,НаурызҚатысу[],8,FALSE),\"\")","v":""},{"$f":"IFERROR(VLOOKUP(СтудентІздеу,НаурызҚатысу[],9,FALSE),\"\")","v":""},{"$f":"IFERROR(VLOOKUP(СтудентІздеу,НаурызҚатысу[],10,FALSE),\"\")","v":""},{"$f":"IFERROR(VLOOKUP(СтудентІздеу,НаурызҚатысу[],11,FALSE),\"\")","v":""},{"$f":"IFERROR(VLOOKUP(СтудентІздеу,НаурызҚатысу[],12,FALSE),\"\")","v":""},{"$f":"IFERROR(VLOOKUP(СтудентІздеу,НаурызҚатысу[],13,FALSE),\"\")","v":""},{"$f":"IFERROR(VLOOKUP(СтудентІздеу,НаурызҚатысу[],14,FALSE),\"\")","v":""},{"$f":"IFERROR(VLOOKUP(СтудентІздеу,НаурызҚатысу[],15,FALSE),\"\")","v":""},{"$f":"IFERROR(VLOOKUP(СтудентІздеу,НаурызҚатысу[],16,FALSE),\"\")","v":""},{"$f":"IFERROR(VLOOKUP(СтудентІздеу,НаурызҚатысу[],17,FALSE),\"\")","v":""},{"$f":"IFERROR(VLOOKUP(СтудентІздеу,НаурызҚатысу[],18,FALSE),\"\")","v":""},{"$f":"IFERROR(VLOOKUP(СтудентІздеу,НаурызҚатысу[],19,FALSE),\"\")","v":""},{"$f":"IFERROR(VLOOKUP(СтудентІздеу,НаурызҚатысу[],20,FALSE),\"\")","v":""},{"$f":"IFERROR(VLOOKUP(СтудентІздеу,НаурызҚатысу[],21,FALSE),\"\")","v":""},{"$f":"IFERROR(VLOOKUP(СтудентІздеу,НаурызҚатысу[],22,FALSE),\"\")","v":""},{"$f":"IFERROR(VLOOKUP(СтудентІздеу,НаурызҚатысу[],23,FALSE),\"\")","v":""},{"$f":"IFERROR(VLOOKUP(СтудентІздеу,НаурызҚатысу[],24,FALSE),\"\")","v":""},{"$f":"IFERROR(VLOOKUP(СтудентІздеу,НаурызҚатысу[],25,FALSE),\"\")","v":""},{"$f":"IFERROR(VLOOKUP(СтудентІздеу,НаурызҚатысу[],26,FALSE),\"\")","v":""},{"$f":"IFERROR(VLOOKUP(СтудентІздеу,НаурызҚатысу[],27,FALSE),\"\")","v":""},{"$f":"IFERROR(VLOOKUP(СтудентІздеу,НаурызҚатысу[],28,FALSE),\"\")","v":""},{"$f":"IFERROR(VLOOKUP(СтудентІздеу,НаурызҚатысу[],29,FALSE),\"\")","v":""},{"$f":"IFERROR(VLOOKUP(СтудентІздеу,НаурызҚатысу[],30,FALSE),\"\")","v":""},{"$f":"IFERROR(VLOOKUP(СтудентІздеу,НаурызҚатысу[],31,FALSE),\"\")","v":""},{"$f":"IFERROR(VLOOKUP(СтудентІздеу,НаурызҚатысу[],32,FALSE),\"\")","v":""},{"$f":"IFERROR(VLOOKUP(СтудентІздеу,НаурызҚатысу[],33,FALSE),\"\")","v":""}]
[null,"Сәуір",1,2,3,4,5,6,7,8,9,10,11,12,13,14,15,16,17,18,19,20,21,22,23,24,25,26,27,28,29,30,null,{"$f":"COUNTIF($D33:$AH33,1-код)","v":0},{"$f":"COUNTIF($D33:$AH33,2-код)","v":0},{"$f":"COUNTIF($D33:$AH33,3-код)","v":0},{"$f":"COUNTIF($D33:$AH33,4-код)","v":0}]
[null,null,{"$f":"IFERROR(VLOOKUP(СтудентІздеу,СәуірҚатысу[],3,FALSE),\"\")","v":""},{"$f":"IFERROR(VLOOKUP(СтудентІздеу,СәуірҚатысу[],4,FALSE),\"\")","v":""},{"$f":"IFERROR(VLOOKUP(СтудентІздеу,СәуірҚатысу[],5,FALSE),\"\")","v":""},{"$f":"IFERROR(VLOOKUP(СтудентІздеу,СәуірҚатысу[],6,FALSE),\"\")","v":""},{"$f":"IFERROR(VLOOKUP(СтудентІздеу,СәуірҚатысу[],7,FALSE),\"\")","v":""},{"$f":"IFERROR(VLOOKUP(СтудентІздеу,СәуірҚатысу[],8,FALSE),\"\")","v":""},{"$f":"IFERROR(VLOOKUP(СтудентІздеу,СәуірҚатысу[],9,FALSE),\"\")","v":""},{"$f":"IFERROR(VLOOKUP(СтудентІздеу,СәуірҚатысу[],10,FALSE),\"\")","v":""},{"$f":"IFERROR(VLOOKUP(СтудентІздеу,СәуірҚатысу[],11,FALSE),\"\")","v":""},{"$f":"IFERROR(VLOOKUP(СтудентІздеу,СәуірҚатысу[],12,FALSE),\"\")","v":""},{"$f":"IFERROR(VLOOKUP(СтудентІздеу,СәуірҚатысу[],13,FALSE),\"\")","v":""},{"$f":"IFERROR(VLOOKUP(СтудентІздеу,СәуірҚатысу[],14,FALSE),\"\")","v":""},{"$f":"IFERROR(VLOOKUP(СтудентІздеу,СәуірҚатысу[],15,FALSE),\"\")","v":""},{"$f":"IFERROR(VLOOKUP(СтудентІздеу,СәуірҚатысу[],16,FALSE),\"\")","v":""},{"$f":"IFERROR(VLOOKUP(СтудентІздеу,СәуірҚатысу[],17,FALSE),\"\")","v":""},{"$f":"IFERROR(VLOOKUP(СтудентІздеу,СәуірҚатысу[],18,FALSE),\"\")","v":""},{"$f":"IFERROR(VLOOKUP(СтудентІздеу,СәуірҚатысу[],19,FALSE),\"\")","v":""},{"$f":"IFERROR(VLOOKUP(СтудентІздеу,СәуірҚатысу[],20,FALSE),\"\")","v":""},{"$f":"IFERROR(VLOOKUP(СтудентІздеу,СәуірҚатысу[],21,FALSE),\"\")","v":""},{"$f":"IFERROR(VLOOKUP(СтудентІздеу,СәуірҚатысу[],22,FALSE),\"\")","v":""},{"$f":"IFERROR(VLOOKUP(СтудентІздеу,СәуірҚатысу[],23,FALSE),\"\")","v":""},{"$f":"IFERROR(VLOOKUP(СтудентІздеу,СәуірҚатысу[],24,FALSE),\"\")","v":""},{"$f":"IFERROR(VLOOKUP(СтудентІздеу,СәуірҚатысу[],25,FALSE),\"\")","v":""},{"$f":"IFERROR(VLOOKUP(СтудентІздеу,СәуірҚатысу[],26,FALSE),\"\")","v":""},{"$f":"IFERROR(VLOOKUP(СтудентІздеу,СәуірҚатысу[],27,FALSE),\"\")","v":""},{"$f":"IFERROR(VLOOKUP(СтудентІздеу,СәуірҚатысу[],28,FALSE),\"\")","v":""},{"$f":"IFERROR(VLOOKUP(СтудентІздеу,СәуірҚатысу[],29,FALSE),\"\")","v":""},{"$f":"IFERROR(VLOOKUP(СтудентІздеу,СәуірҚатысу[],30,FALSE),\"\")","v":""},{"$f":"IFERROR(VLOOKUP(СтудентІздеу,СәуірҚатысу[],31,FALSE),\"\")","v":""},{"$f":"IFERROR(VLOOKUP(СтудентІздеу,СәуірҚатысу[],32,FALSE),\"\")","v":""}]
[null,"Мамыр",1,2,3,4,5,6,7,8,9,10,11,12,13,14,15,16,17,18,19,20,21,22,23,24,25,26,27,28,29,30,31,{"$f":"COUNTIF($D35:$AH35,1-код)","v":0},{"$f":"COUNTIF($D35:$AH35,2-код)","v":0},{"$f":"COUNTIF($D35:$AH35,3-код)","v":0},{"$f":"COUNTIF($D35:$AH35,4-код)","v":0}]
[null,null,{"$f":"IFERROR(VLOOKUP(СтудентІздеу,МамырҚатысу[],3,FALSE),\"\")","v":""},{"$f":"IFERROR(VLOOKUP(СтудентІздеу,МамырҚатысу[],4,FALSE),\"\")","v":""},{"$f":"IFERROR(VLOOKUP(СтудентІздеу,МамырҚатысу[],5,FALSE),\"\")","v":""},{"$f":"IFERROR(VLOOKUP(СтудентІздеу,МамырҚатысу[],6,FALSE),\"\")","v":""},{"$f":"IFERROR(VLOOKUP(СтудентІздеу,МамырҚатысу[],7,FALSE),\"\")","v":""},{"$f":"IFERROR(VLOOKUP(СтудентІздеу,МамырҚатысу[],8,FALSE),\"\")","v":""},{"$f":"IFERROR(VLOOKUP(СтудентІздеу,МамырҚатысу[],9,FALSE),\"\")","v":""},{"$f":"IFERROR(VLOOKUP(СтудентІздеу,МамырҚатысу[],10,FALSE),\"\")","v":""},{"$f":"IFERROR(VLOOKUP(СтудентІздеу,МамырҚатысу[],11,FALSE),\"\")","v":""},{"$f":"IFERROR(VLOOKUP(СтудентІздеу,МамырҚатысу[],12,FALSE),\"\")","v":""},{"$f":"IFERROR(VLOOKUP(СтудентІздеу,МамырҚатысу[],13,FALSE),\"\")","v":""},{"$f":"IFERROR(VLOOKUP(СтудентІздеу,МамырҚатысу[],14,FALSE),\"\")","v":""},{"$f":"IFERROR(VLOOKUP(СтудентІздеу,МамырҚатысу[],15,FALSE),\"\")","v":""},{"$f":"IFERROR(VLOOKUP(СтудентІздеу,МамырҚатысу[],16,FALSE),\"\")","v":""},{"$f":"IFERROR(VLOOKUP(СтудентІздеу,МамырҚатысу[],17,FALSE),\"\")","v":""},{"$f":"IFERROR(VLOOKUP(СтудентІздеу,МамырҚатысу[],18,FALSE),\"\")","v":""},{"$f":"IFERROR(VLOOKUP(СтудентІздеу,МамырҚатысу[],19,FALSE),\"\")","v":""},{"$f":"IFERROR(VLOOKUP(СтудентІздеу,МамырҚатысу[],20,FALSE),\"\")","v":""},{"$f":"IFERROR(VLOOKUP(СтудентІздеу,МамырҚатысу[],21,FALSE),\"\")","v":""},{"$f":"IFERROR(VLOOKUP(СтудентІздеу,МамырҚатысу[],22,FALSE),\"\")","v":""},{"$f":"IFERROR(VLOOKUP(СтудентІздеу,МамырҚатысу[],23,FALSE),\"\")","v":""},{"$f":"IFERROR(VLOOKUP(СтудентІздеу,МамырҚатысу[],24,FALSE),\"\")","v":""},{"$f":"IFERROR(VLOOKUP(СтудентІздеу,МамырҚатысу[],25,FALSE),\"\")","v":""},{"$f":"IFERROR(VLOOKUP(СтудентІздеу,МамырҚатысу[],26,FALSE),\"\")","v":""},{"$f":"IFERROR(VLOOKUP(СтудентІздеу,МамырҚатысу[],27,FALSE),\"\")","v":""},{"$f":"IFERROR(VLOOKUP(СтудентІздеу,МамырҚатысу[],28,FALSE),\"\")","v":""},{"$f":"IFERROR(VLOOKUP(СтудентІздеу,МамырҚатысу[],29,FALSE),\"\")","v":""},{"$f":"IFERROR(VLOOKUP(СтудентІздеу,МамырҚатысу[],30,FALSE),\"\")","v":""},{"$f":"IFERROR(VLOOKUP(СтудентІздеу,МамырҚатысу[],31,FALSE),\"\")","v":""},{"$f":"IFERROR(VLOOKUP(СтудентІздеу,МамырҚатысу[],32,FALSE),\"\")","v":""},{"$f":"IFERROR(VLOOKUP(СтудентІздеу,МамырҚатысу[],33,FALSE),\"\")","v":""}]
[null,"Маусым",1,2,3,4,5,6,7,8,9,10,11,12,13,14,15,16,17,18,19,20,21,22,23,24,25,26,27,28,29,30,null,{"$f":"COUNTIF($D37:$AH37,1-код)","v":0},{"$f":"COUNTIF($D37:$AH37,2-код)","v":0},{"$f":"COUNTIF($D37:$AH37,3-код)","v":0},{"$f":"COUNTIF($D37:$AH37,4-код)","v":0}]
[null,null,{"$f":"IFERROR(VLOOKUP(СтудентІздеу,МаусымҚатысу[],3,FALSE),\"\")","v":""},{"$f":"IFERROR(VLOOKUP(СтудентІздеу,МаусымҚатысу[],4,FALSE),\"\")","v":""},{"$f":"IFERROR(VLOOKUP(СтудентІздеу,МаусымҚатысу[],5,FALSE),\"\")","v":""},{"$f":"IFERROR(VLOOKUP(СтудентІздеу,МаусымҚатысу[],6,FALSE),\"\")","v":""},{"$f":"IFERROR(VLOOKUP(СтудентІздеу,МаусымҚатысу[],7,FALSE),\"\")","v":""},{"$f":"IFERROR(VLOOKUP(СтудентІздеу,МаусымҚатысу[],8,FALSE),\"\")","v":""},{"$f":"IFERROR(VLOOKUP(СтудентІздеу,МаусымҚатысу[],9,FALSE),\"\")","v":""},{"$f":"IFERROR(VLOOKUP(СтудентІздеу,МаусымҚатысу[],10,FALSE),\"\")","v":""},{"$f":"IFERROR(VLOOKUP(СтудентІздеу,МаусымҚатысу[],11,FALSE),\"\")","v":""},{"$f":"IFERROR(VLOOKUP(СтудентІздеу,МаусымҚатысу[],12,FALSE),\"\")","v":""},{"$f":"IFERROR(VLOOKUP(СтудентІздеу,МаусымҚатысу[],13,FALSE),\"\")","v":""},{"$f":"IFERROR(VLOOKUP(СтудентІздеу,МаусымҚатысу[],14,FALSE),\"\")","v":""},{"$f":"IFERROR(VLOOKUP(СтудентІздеу,МаусымҚатысу[],15,FALSE),\"\")","v":""},{"$f":"IFERROR(VLOOKUP(СтудентІздеу,МаусымҚатысу[],16,FALSE),\"\")","v":""},{"$f":"IFERROR(VLOOKUP(СтудентІздеу,МаусымҚатысу[],17,FALSE),\"\")","v":""},{"$f":"IFERROR(VLOOKUP(СтудентІздеу,МаусымҚатысу[],18,FALSE),\"\")","v":""},{"$f":"IFERROR(VLOOKUP(СтудентІздеу,МаусымҚатысу[],19,FALSE),\"\")","v":""},{"$f":"IFERROR(VLOOKUP(СтудентІздеу,МаусымҚатысу[],20,FALSE),\"\")","v":""},{"$f":"IFERROR(VLOOKUP(СтудентІздеу,МаусымҚатысу[],21,FALSE),\"\")","v":""},{"$f":"IFERROR(VLOOKUP(СтудентІздеу,МаусымҚатысу[],22,FALSE),\"\")","v":""},{"$f":"IFERROR(VLOOKUP(СтудентІздеу,МаусымҚатысу[],23,FALSE),\"\")","v":""},{"$f":"IFERROR(VLOOKUP(СтудентІздеу,МаусымҚатысу[],24,FALSE),\"\")","v":""},{"$f":"IFERROR(VLOOKUP(СтудентІздеу,МаусымҚатысу[],25,FALSE),\"\")","v":""},{"$f":"IFERROR(VLOOKUP(СтудентІздеу,МаусымҚатысу[],26,FALSE),\"\")","v":""},{"$f":"IFERROR(VLOOKUP(СтудентІздеу,МаусымҚатысу[],27,FALSE),\"\")","v":""},{"$f":"IFERROR(VLOOKUP(СтудентІздеу,МаусымҚатысу[],28,FALSE),\"\")","v":""},{"$f":"IFERROR(VLOOKUP(СтудентІздеу,МаусымҚатысу[],29,FALSE),\"\")","v":""},{"$f":"IFERROR(VLOOKUP(СтудентІздеу,МаусымҚатысу[],30,FALSE),\"\")","v":""},{"$f":"IFERROR(VLOOKUP(СтудентІздеу,МаусымҚатысу[],31,FALSE),\"\")","v":""},{"$f":"IFERROR(VLOOKUP(СтудентІздеу,МаусымҚатысу[],32,FALSE),\"\")","v":""}]
[null,"Шілде",1,2,3,4,5,6,7,8,9,10,11,12,13,14,15,16,17,18,19,20,21,22,23,24,25,26,27,28,29,30,31,{"$f":"COUNTIF($D39:$AH39,1-код)","v":0},{"$f":"COUNTIF($D39:$AH39,2-код)","v":0},{"$f":"COUNTIF($D39:$AH39,3-код)","v":0},{"$f":"COUNTIF($D39:$AH39,4-код)","v":0}]
[null,null,{"$f":"IFERROR(VLOOKUP(СтудентІздеу,ШілдеҚатысу[],3,FALSE),\"\")","v":""},{"$f":"IFERROR(VLOOKUP(СтудентІздеу,ШілдеҚатысу[],4,FALSE),\"\")","v":""},{"$f":"IFERROR(VLOOKUP(СтудентІздеу,ШілдеҚатысу[],5,FALSE),\"\")","v":""},{"$f":"IFERROR(VLOOKUP(СтудентІздеу,ШілдеҚатысу[],6,FALSE),\"\")","v":""},{"$f":"IFERROR(VLOOKUP(СтудентІздеу,ШілдеҚатысу[],7,FALSE),\"\")","v":""},{"$f":"IFERROR(VLOOKUP(СтудентІздеу,ШілдеҚатысу[],8,FALSE),\"\")","v":""},{"$f":"IFERROR(VLOOKUP(СтудентІздеу,ШілдеҚатысу[],9,FALSE),\"\")","v":""},{"$f":"IFERROR(VLOOKUP(СтудентІздеу,ШілдеҚатысу[],10,FALSE),\"\")","v":""},{"$f":"IFERROR(VLOOKUP(СтудентІздеу,ШілдеҚатысу[],11,FALSE),\"\")","v":""},{"$f":"IFERROR(VLOOKUP(СтудентІздеу,ШілдеҚатысу[],12,FALSE),\"\")","v":""},{"$f":"IFERROR(VLOOKUP(СтудентІздеу,ШілдеҚатысу[],13,FALSE),\"\")","v":""},{"$f":"IFERROR(VLOOKUP(СтудентІздеу,ШілдеҚатысу[],14,FALSE),\"\")","v":""},{"$f":"IFERROR(VLOOKUP(СтудентІздеу,ШілдеҚатысу[],15,FALSE),\"\")","v":""},{"$f":"IFERROR(VLOOKUP(СтудентІздеу,ШілдеҚатысу[],16,FALSE),\"\")","v":""},{"$f":"IFERROR(VLOOKUP(СтудентІздеу,ШілдеҚатысу[],17,FALSE),\"\")","v":""},{"$f":"IFERROR(VLOOKUP(СтудентІздеу,ШілдеҚатысу[],18,FALSE),\"\")","v":""},{"$f":"IFERROR(VLOOKUP(СтудентІздеу,ШілдеҚатысу[],19,FALSE),\"\")","v":""},{"$f":"IFERROR(VLOOKUP(СтудентІздеу,ШілдеҚатысу[],20,FALSE),\"\")","v":""},{"$f":"IFERROR(VLOOKUP(СтудентІздеу,ШілдеҚатысу[],21,FALSE),\"\")","v":""},{"$f":"IFERROR(VLOOKUP(СтудентІздеу,ШілдеҚатысу[],22,FALSE),\"\")","v":""},{"$f":"IFERROR(VLOOKUP(СтудентІздеу,ШілдеҚатысу[],23,FALSE),\"\")","v":""},{"$f":"IFERROR(VLOOKUP(СтудентІздеу,ШілдеҚатысу[],24,FALSE),\"\")","v":""},{"$f":"IFERROR(VLOOKUP(СтудентІздеу,ШілдеҚатысу[],25,FALSE),\"\")","v":""},{"$f":"IFERROR(VLOOKUP(СтудентІздеу,ШілдеҚатысу[],26,FALSE),\"\")","v":""},{"$f":"IFERROR(VLOOKUP(СтудентІздеу,ШілдеҚатысу[],27,FALSE),\"\")","v":""},{"$f":"IFERROR(VLOOKUP(СтудентІздеу,ШілдеҚатысу[],28,FALSE),\"\")","v":""},{"$f":"IFERROR(VLOOKUP(СтудентІздеу,ШілдеҚатысу[],29,FALSE),\"\")","v":""},{"$f":"IFERROR(VLOOKUP(СтудентІздеу,ШілдеҚатысу[],30,FALSE),\"\")","v":""},{"$f":"IFERROR(VLOOKUP(СтудентІздеу,ШілдеҚатысу[],31,FALSE),\"\")","v":""},{"$f":"IFERROR(VLOOKUP(СтудентІздеу,ШілдеҚатысу[],32,FALSE),\"\")","v":""},{"$f":"IFERROR(VLOOKUP(СтудентІздеу,ШілдеҚатысу[],33,FALSE),\"\")","v":""}]
[{"$nulls":30},"Қорытындылар",null,null,{"$f":"SUM(AH16:AH39)","v":0},{"$f":"SUM(AI16:AI39)","v":0},{"$f":"SUM(AJ16:AJ39)","v":0},{"$f":"SUM(AK16:AK39)","v":0}]